Publisher Label,Publisher URI,"Directorate code","Directorate","Service code","Service","Revenue or capital code","Revenue capital","Cost centre","Cost centre description","Bvsub Category","Bvsub description","Bvsum code","Bvsum description","Account code","Account description","Transaction No","Period","Transaction Date","Amount","Classification code","Classification description","Supplier ID","Supplier description","Company registration number","Company registration number Uri","VAT registration number"
"London Borough of Redbridge","http://opendatacommunities.org/doc/london-borough-council/redbridge","6BSOCIALSERV","Social Services","4CMANGT&SUPP","Management & Support Services","REV","Revenue","R2151","CQ and F Workforce Development","04-SUPPLIES","Supplies And Services","04F","Communications and computing","5858","Phones","3445054","201706",03/08/2016 00:00:00,12.5,"51500","Mobile Phones - Personal Numbers","REDACTED DATA","ORANGE PERSONAL COMMUNICATIONS SERVICES LIMITED","2178917","http://opencorporates.com/companies/gb/2178917","771592016"
"London Borough of Redbridge","http://opendatacommunities.org/doc/london-borough-council/redbridge","6BSOCIALSERV","Social Services","6CCHILLOOKED","Children Looked After","REV","Revenue","R2110","SEN and CD - Business and Finance Social Care","04-SUPPLIES","Supplies And Services","04F","Communications and computing","5858","Phones","3445054","201706",03/08/2016 00:00:00,12.5,"51500","Mobile Phones - Personal Numbers","REDACTED DATA","ORANGE PERSONAL COMMUNICATIONS SERVICES LIMITED","2178917","http://opencorporates.com/companies/gb/2178917","771592016"
"London Borough of Redbridge","http://opendatacommunities.org/doc/london-borough-council/redbridge","6BSOCIALSERV","Social Services","6CCHILLOOKED","Children Looked After","REV","Revenue","R2110","SEN and CD - Business and Finance Social Care","04-SUPPLIES","Supplies And Services","04F","Communications and computing","5858","Phones","3445054","201706",03/08/2016 00:00:00,12.5,"51500","Mobile Phones - Personal Numbers","REDACTED DATA","ORANGE PERSONAL COMMUNICATIONS SERVICES LIMITED","2178917","http://opencorporates.com/companies/gb/2178917","771592016"
"London Borough of Redbridge","http://opendatacommunities.org/doc/london-borough-council/redbridge","6BSOCIALSERV","Social Services","6CCHILLOOKED","Children Looked After","REV","Revenue","R2127","Fostering and Adoption","04-SUPPLIES","Supplies And Services","04F","Communications and computing","5858","Phones","3445054","201706",03/08/2016 00:00:00,12.5,"51500","Mobile Phones - Personal Numbers","REDACTED DATA","ORANGE PERSONAL COMMUNICATIONS SERVICES LIMITED","2178917","http://opencorporates.com/companies/gb/2178917","771592016"
"London Borough of Redbridge","http://opendatacommunities.org/doc/london-borough-council/redbridge","6BSOCIALSERV","Social Services","6CCHILLOOKED","Children Looked After","REV","Revenue","R2127","Fostering and Adoption","04-SUPPLIES","Supplies And Services","04F","Communications and computing","5858","Phones","3445054","201706",03/08/2016 00:00:00,12.5,"51500","Mobile Phones - Personal Numbers","REDACTED DATA","ORANGE PERSONAL COMMUNICATIONS SERVICES LIMITED","2178917","http://opencorporates.com/companies/gb/2178917","771592016"
"London Borough of Redbridge","http://opendatacommunities.org/doc/london-borough-council/redbridge","6BSOCIALSERV","Social Services","6CCHILLOOKED","Children Looked After","REV","Revenue","R2127","Fostering and Adoption","04-SUPPLIES","Supplies And Services","04F","Communications and computing","5858","Phones","3445054","201706",03/08/2016 00:00:00,12.5,"51500","Mobile Phones - Personal Numbers","REDACTED DATA","ORANGE PERSONAL COMMUNICATIONS SERVICES LIMITED","2178917","http://opencorporates.com/companies/gb/2178917","771592016"
"London Borough of Redbridge","http://opendatacommunities.org/doc/london-borough-council/redbridge","6BSOCIALSERV","Social Services","6CCHILLOOKED","Children Looked After","REV","Revenue","R2127","Fostering and Adoption","04-SUPPLIES","Supplies And Services","04F","Communications and computing","5858","Phones","3445054","201706",03/08/2016 00:00:00,12.5,"51500","Mobile Phones - Personal Numbers","REDACTED DATA","ORANGE PERSONAL COMMUNICATIONS SERVICES LIMITED","2178917","http://opencorporates.com/companies/gb/2178917","771592016"
"London Borough of Redbridge","http://opendatacommunities.org/doc/london-borough-council/redbridge","6BSOCIALSERV","Social Services","6CCHILLOOKED","Children Looked After","REV","Revenue","R2127","Fostering and Adoption","04-SUPPLIES","Supplies And Services","04F","Communications and computing","5858","Phones","3445054","201706",03/08/2016 00:00:00,12.5,"51500","Mobile Phones - Personal Numbers","REDACTED DATA","ORANGE PERSONAL COMMUNICATIONS SERVICES LIMITED","2178917","http://opencorporates.com/companies/gb/2178917","771592016"
"London Borough of Redbridge","http://opendatacommunities.org/doc/london-borough-council/redbridge","6BSOCIALSERV","Social Services","6CCHILLOOKED","Children Looked After","REV","Revenue","R2127","Fostering and Adoption","04-SUPPLIES","Supplies And Services","04F","Communications and computing","5858","Phones","3445054","201706",03/08/2016 00:00:00,12.5,"51500","Mobile Phones - Personal Numbers","REDACTED DATA","ORANGE PERSONAL COMMUNICATIONS SERVICES LIMITED","2178917","http://opencorporates.com/companies/gb/2178917","771592016"
"London Borough of Redbridge","http://opendatacommunities.org/doc/london-borough-council/redbridge","6BSOCIALSERV","Social Services","6CCHILLOOKED","Children Looked After","REV","Revenue","R2127","Fostering and Adoption","04-SUPPLIES","Supplies And Services","04F","Communications and computing","5858","Phones","3445054","201706",03/08/2016 00:00:00,12.5,"51500","Mobile Phones - Personal Numbers","REDACTED DATA","ORANGE PERSONAL COMMUNICATIONS SERVICES LIMITED","2178917","http://opencorporates.com/companies/gb/2178917","771592016"
"London Borough of Redbridge","http://opendatacommunities.org/doc/london-borough-council/redbridge","6BSOCIALSERV","Social Services","6CCHILLOOKED","Children Looked After","REV","Revenue","R2127","Fostering and Adoption","04-SUPPLIES","Supplies And Services","04F","Communications and computing","5858","Phones","3445054","201706",03/08/2016 00:00:00,12.5,"51500","Mobile Phones - Personal Numbers","REDACTED DATA","ORANGE PERSONAL COMMUNICATIONS SERVICES LIMITED","2178917","http://opencorporates.com/companies/gb/2178917","771592016"
"London Borough of Redbridge","http://opendatacommunities.org/doc/london-borough-council/redbridge","6BSOCIALSERV","Social Services","6CCHILLOOKED","Children Looked After","REV","Revenue","R2127","Fostering and Adoption","04-SUPPLIES","Supplies And Services","04F","Communications and computing","5858","Phones","3445054","201706",03/08/2016 00:00:00,12.5,"51500","Mobile Phones - Personal Numbers","REDACTED DATA","ORANGE PERSONAL COMMUNICATIONS SERVICES LIMITED","2178917","http://opencorporates.com/companies/gb/2178917","771592016"
"London Borough of Redbridge","http://opendatacommunities.org/doc/london-borough-council/redbridge","6BSOCIALSERV","Social Services","6CCHILLOOKED","Children Looked After","REV","Revenue","R2127","Fostering and Adoption","04-SUPPLIES","Supplies And Services","04F","Communications and computing","5858","Phones","3445054","201706",03/08/2016 00:00:00,12.5,"51500","Mobile Phones - Personal Numbers","REDACTED DATA","ORANGE PERSONAL COMMUNICATIONS SERVICES LIMITED","2178917","http://opencorporates.com/companies/gb/2178917","771592016"
"London Borough of Redbridge","http://opendatacommunities.org/doc/london-borough-council/redbridge","6BSOCIALSERV","Social Services","6CCHILLOOKED","Children Looked After","REV","Revenue","R2127","Fostering and Adoption","04-SUPPLIES","Supplies And Services","04F","Communications and computing","5858","Phones","3445054","201706",03/08/2016 00:00:00,12.5,"51500","Mobile Phones - Personal Numbers","REDACTED DATA","ORANGE PERSONAL COMMUNICATIONS SERVICES LIMITED","2178917","http://opencorporates.com/companies/gb/2178917","771592016"
"London Borough of Redbridge","http://opendatacommunities.org/doc/london-borough-council/redbridge","6BSOCIALSERV","Social Services","6CCHILLOOKED","Children Looked After","REV","Revenue","R2127","Fostering and Adoption","04-SUPPLIES","Supplies And Services","04F","Communications and computing","5858","Phones","3445054","201706",03/08/2016 00:00:00,12.5,"51500","Mobile Phones - Personal Numbers","REDACTED DATA","ORANGE PERSONAL COMMUNICATIONS SERVICES LIMITED","2178917","http://opencorporates.com/companies/gb/2178917","771592016"
"London Borough of Redbridge","http://opendatacommunities.org/doc/london-borough-council/redbridge","6BSOCIALSERV","Social Services","6CCHILLOOKED","Children Looked After","REV","Revenue","R2127","Fostering and Adoption","04-SUPPLIES","Supplies And Services","04F","Communications and computing","5858","Phones","3445054","201706",03/08/2016 00:00:00,12.5,"51500","Mobile Phones - Personal Numbers","REDACTED DATA","ORANGE PERSONAL COMMUNICATIONS SERVICES LIMITED","2178917","http://opencorporates.com/companies/gb/2178917","771592016"
"London Borough of Redbridge","http://opendatacommunities.org/doc/london-borough-council/redbridge","6BSOCIALSERV","Social Services","6CCHILLOOKED","Children Looked After","REV","Revenue","R2127","Fostering and Adoption","04-SUPPLIES","Supplies And Services","04F","Communications and computing","5858","Phones","3445054","201706",03/08/2016 00:00:00,12.5,"51500","Mobile Phones - Personal Numbers","REDACTED DATA","ORANGE PERSONAL COMMUNICATIONS SERVICES LIMITED","2178917","http://opencorporates.com/companies/gb/2178917","771592016"
"London Borough of Redbridge","http://opendatacommunities.org/doc/london-borough-council/redbridge","6BSOCIALSERV","Social Services","6CCHILLOOKED","Children Looked After","REV","Revenue","R2140","CQ and F - Safeguarding and Care Planning Soc Care","04-SUPPLIES","Supplies And Services","04F","Communications and computing","5858","Phones","3445054","201706",03/08/2016 00:00:00,12.5,"51500","Mobile Phones - Personal Numbers","REDACTED DATA","ORANGE PERSONAL COMMUNICATIONS SERVICES LIMITED","2178917","http://opencorporates.com/companies/gb/2178917","771592016"
"London Borough of Redbridge","http://opendatacommunities.org/doc/london-borough-council/redbridge","6BSOCIALSERV","Social Services","6CCHILLOOKED","Children Looked After","REV","Revenue","R2140","CQ and F - Safeguarding and Care Planning Soc Care","04-SUPPLIES","Supplies And Services","04F","Communications and computing","5858","Phones","3445054","201706",03/08/2016 00:00:00,12.5,"51500","Mobile Phones - Personal Numbers","REDACTED DATA","ORANGE PERSONAL COMMUNICATIONS SERVICES LIMITED","2178917","http://opencorporates.com/companies/gb/2178917","771592016"
"London Borough of Redbridge","http://opendatacommunities.org/doc/london-borough-council/redbridge","6BSOCIALSERV","Social Services","6CCHILLOOKED","Children Looked After","REV","Revenue","R2140","CQ and F - Safeguarding and Care Planning Soc Care","04-SUPPLIES","Supplies And Services","04F","Communications and computing","5858","Phones","3445054","201706",03/08/2016 00:00:00,12.5,"51500","Mobile Phones - Personal Numbers","REDACTED DATA","ORANGE PERSONAL COMMUNICATIONS SERVICES LIMITED","2178917","http://opencorporates.com/companies/gb/2178917","771592016"
"London Borough of Redbridge","http://opendatacommunities.org/doc/london-borough-council/redbridge","6BSOCIALSERV","Social Services","6CCHILLOOKED","Children Looked After","REV","Revenue","R2140","CQ and F - Safeguarding and Care Planning Soc Care","04-SUPPLIES","Supplies And Services","04F","Communications and computing","5858","Phones","3445054","201706",03/08/2016 00:00:00,12.5,"51500","Mobile Phones - Personal Numbers","REDACTED DATA","ORANGE PERSONAL COMMUNICATIONS SERVICES LIMITED","2178917","http://opencorporates.com/companies/gb/2178917","771592016"
"London Borough of Redbridge","http://opendatacommunities.org/doc/london-borough-council/redbridge","6BSOCIALSERV","Social Services","6CCHILLOOKED","Children Looked After","REV","Revenue","R2140","CQ and F - Safeguarding and Care Planning Soc Care","04-SUPPLIES","Supplies And Services","04F","Communications and computing","5858","Phones","3445054","201706",03/08/2016 00:00:00,12.5,"51500","Mobile Phones - Personal Numbers","REDACTED DATA","ORANGE PERSONAL COMMUNICATIONS SERVICES LIMITED","2178917","http://opencorporates.com/companies/gb/2178917","771592016"
"London Borough of Redbridge","http://opendatacommunities.org/doc/london-borough-council/redbridge","6BSOCIALSERV","Social Services","6CCHILLOOKED","Children Looked After","REV","Revenue","R2140","CQ and F - Safeguarding and Care Planning Soc Care","04-SUPPLIES","Supplies And Services","04F","Communications and computing","5858","Phones","3445054","201706",03/08/2016 00:00:00,12.5,"51500","Mobile Phones - Personal Numbers","REDACTED DATA","ORANGE PERSONAL COMMUNICATIONS SERVICES LIMITED","2178917","http://opencorporates.com/companies/gb/2178917","771592016"
"London Borough of Redbridge","http://opendatacommunities.org/doc/london-borough-council/redbridge","6BSOCIALSERV","Social Services","6CCHILLOOKED","Children Looked After","REV","Revenue","R2140","CQ and F - Safeguarding and Care Planning Soc Care","04-SUPPLIES","Supplies And Services","04F","Communications and computing","5858","Phones","3445054","201706",03/08/2016 00:00:00,12.5,"51500","Mobile Phones - Personal Numbers","REDACTED DATA","ORANGE PERSONAL COMMUNICATIONS SERVICES LIMITED","2178917","http://opencorporates.com/companies/gb/2178917","771592016"
"London Borough of Redbridge","http://opendatacommunities.org/doc/london-borough-council/redbridge","6BSOCIALSERV","Social Services","6CCHILLOOKED","Children Looked After","REV","Revenue","R2140","CQ and F - Safeguarding and Care Planning Soc Care","04-SUPPLIES","Supplies And Services","04F","Communications and computing","5858","Phones","3445054","201706",03/08/2016 00:00:00,12.5,"51500","Mobile Phones - Personal Numbers","REDACTED DATA","ORANGE PERSONAL COMMUNICATIONS SERVICES LIMITED","2178917","http://opencorporates.com/companies/gb/2178917","771592016"
"London Borough of Redbridge","http://opendatacommunities.org/doc/london-borough-council/redbridge","6BSOCIALSERV","Social Services","6CCHILLOOKED","Children Looked After","REV","Revenue","R2140","CQ and F - Safeguarding and Care Planning Soc Care","04-SUPPLIES","Supplies And Services","04F","Communications and computing","5858","Phones","3445054","201706",03/08/2016 00:00:00,12.5,"51500","Mobile Phones - Personal Numbers","REDACTED DATA","ORANGE PERSONAL COMMUNICATIONS SERVICES LIMITED","2178917","http://opencorporates.com/companies/gb/2178917","771592016"
"London Borough of Redbridge","http://opendatacommunities.org/doc/london-borough-council/redbridge","6BSOCIALSERV","Social Services","6CCHILLOOKED","Children Looked After","REV","Revenue","R2140","CQ and F - Safeguarding and Care Planning Soc Care","04-SUPPLIES","Supplies And Services","04F","Communications and computing","5858","Phones","3445054","201706",03/08/2016 00:00:00,12.5,"51500","Mobile Phones - Personal Numbers","REDACTED DATA","ORANGE PERSONAL COMMUNICATIONS SERVICES LIMITED","2178917","http://opencorporates.com/companies/gb/2178917","771592016"
"London Borough of Redbridge","http://opendatacommunities.org/doc/london-borough-council/redbridge","6BSOCIALSERV","Social Services","6CCHILLOOKED","Children Looked After","REV","Revenue","R2140","CQ and F - Safeguarding and Care Planning Soc Care","04-SUPPLIES","Supplies And Services","04F","Communications and computing","5858","Phones","3445054","201706",03/08/2016 00:00:00,12.5,"51500","Mobile Phones - Personal Numbers","REDACTED DATA","ORANGE PERSONAL COMMUNICATIONS SERVICES LIMITED","2178917","http://opencorporates.com/companies/gb/2178917","771592016"
"London Borough of Redbridge","http://opendatacommunities.org/doc/london-borough-council/redbridge","6BSOCIALSERV","Social Services","6CCHILLOOKED","Children Looked After","REV","Revenue","R2140","CQ and F - Safeguarding and Care Planning Soc Care","04-SUPPLIES","Supplies And Services","04F","Communications and computing","5858","Phones","3445054","201706",03/08/2016 00:00:00,12.5,"51500","Mobile Phones - Personal Numbers","REDACTED DATA","ORANGE PERSONAL COMMUNICATIONS SERVICES LIMITED","2178917","http://opencorporates.com/companies/gb/2178917","771592016"
"London Borough of Redbridge","http://opendatacommunities.org/doc/london-borough-council/redbridge","6BSOCIALSERV","Social Services","6CCHILLOOKED","Children Looked After","REV","Revenue","R2140","CQ and F - Safeguarding and Care Planning Soc Care","04-SUPPLIES","Supplies And Services","04F","Communications and computing","5858","Phones","3445054","201706",03/08/2016 00:00:00,12.5,"51500","Mobile Phones - Personal Numbers","REDACTED DATA","ORANGE PERSONAL COMMUNICATIONS SERVICES LIMITED","2178917","http://opencorporates.com/companies/gb/2178917","771592016"
"London Borough of Redbridge","http://opendatacommunities.org/doc/london-borough-council/redbridge","6BSOCIALSERV","Social Services","6CCHILLOOKED","Children Looked After","REV","Revenue","R2140","CQ and F - Safeguarding and Care Planning Soc Care","04-SUPPLIES","Supplies And Services","04F","Communications and computing","5858","Phones","3445054","201706",03/08/2016 00:00:00,12.5,"51500","Mobile Phones - Personal Numbers","REDACTED DATA","ORANGE PERSONAL COMMUNICATIONS SERVICES LIMITED","2178917","http://opencorporates.com/companies/gb/2178917","771592016"
"London Borough of Redbridge","http://opendatacommunities.org/doc/london-borough-council/redbridge","6BSOCIALSERV","Social Services","6CCHILLOOKED","Children Looked After","REV","Revenue","R2140","CQ and F - Safeguarding and Care Planning Soc Care","04-SUPPLIES","Supplies And Services","04F","Communications and computing","5858","Phones","3445054","201706",03/08/2016 00:00:00,12.5,"51500","Mobile Phones - Personal Numbers","REDACTED DATA","ORANGE PERSONAL COMMUNICATIONS SERVICES LIMITED","2178917","http://opencorporates.com/companies/gb/2178917","771592016"
"London Borough of Redbridge","http://opendatacommunities.org/doc/london-borough-council/redbridge","6BSOCIALSERV","Social Services","6CCHILLOOKED","Children Looked After","REV","Revenue","R2140","CQ and F - Safeguarding and Care Planning Soc Care","04-SUPPLIES","Supplies And Services","04F","Communications and computing","5858","Phones","3445054","201706",03/08/2016 00:00:00,12.5,"51500","Mobile Phones - Personal Numbers","REDACTED DATA","ORANGE PERSONAL COMMUNICATIONS SERVICES LIMITED","2178917","http://opencorporates.com/companies/gb/2178917","771592016"
"London Borough of Redbridge","http://opendatacommunities.org/doc/london-borough-council/redbridge","6BSOCIALSERV","Social Services","6CCHILLOOKED","Children Looked After","REV","Revenue","R2140","CQ and F - Safeguarding and Care Planning Soc Care","04-SUPPLIES","Supplies And Services","04F","Communications and computing","5858","Phones","3445054","201706",03/08/2016 00:00:00,12.5,"51500","Mobile Phones - Personal Numbers","REDACTED DATA","ORANGE PERSONAL COMMUNICATIONS SERVICES LIMITED","2178917","http://opencorporates.com/companies/gb/2178917","771592016"
"London Borough of Redbridge","http://opendatacommunities.org/doc/london-borough-council/redbridge","6BSOCIALSERV","Social Services","6CCHILLOOKED","Children Looked After","REV","Revenue","R2140","CQ and F - Safeguarding and Care Planning Soc Care","04-SUPPLIES","Supplies And Services","04F","Communications and computing","5858","Phones","3445054","201706",03/08/2016 00:00:00,12.5,"51500","Mobile Phones - Personal Numbers","REDACTED DATA","ORANGE PERSONAL COMMUNICATIONS SERVICES LIMITED","2178917","http://opencorporates.com/companies/gb/2178917","771592016"
"London Borough of Redbridge","http://opendatacommunities.org/doc/london-borough-council/redbridge","6BSOCIALSERV","Social Services","6CCHILLOOKED","Children Looked After","REV","Revenue","R2157","Core CP and EI","04-SUPPLIES","Supplies And Services","04F","Communications and computing","5858","Phones","3445054","201706",03/08/2016 00:00:00,12.5,"51500","Mobile Phones - Personal Numbers","REDACTED DATA","ORANGE PERSONAL COMMUNICATIONS SERVICES LIMITED","2178917","http://opencorporates.com/companies/gb/2178917","771592016"
"London Borough of Redbridge","http://opendatacommunities.org/doc/london-borough-council/redbridge","6BSOCIALSERV","Social Services","6CCHILLOOKED","Children Looked After","REV","Revenue","R2166","Child Protection Assmt Service Soc Care","04-SUPPLIES","Supplies And Services","04F","Communications and computing","5858","Phones","3445054","201706",03/08/2016 00:00:00,12.5,"51500","Mobile Phones - Personal Numbers","REDACTED DATA","ORANGE PERSONAL COMMUNICATIONS SERVICES LIMITED","2178917","http://opencorporates.com/companies/gb/2178917","771592016"
"London Borough of Redbridge","http://opendatacommunities.org/doc/london-borough-council/redbridge","6BSOCIALSERV","Social Services","6CCHILLOOKED","Children Looked After","REV","Revenue","R2166","Child Protection Assmt Service Soc Care","04-SUPPLIES","Supplies And Services","04F","Communications and computing","5858","Phones","3445054","201706",03/08/2016 00:00:00,12.5,"51500","Mobile Phones - Personal Numbers","REDACTED DATA","ORANGE PERSONAL COMMUNICATIONS SERVICES LIMITED","2178917","http://opencorporates.com/companies/gb/2178917","771592016"
"London Borough of Redbridge","http://opendatacommunities.org/doc/london-borough-council/redbridge","6BSOCIALSERV","Social Services","6CCHILLOOKED","Children Looked After","REV","Revenue","R2166","Child Protection Assmt Service Soc Care","04-SUPPLIES","Supplies And Services","04F","Communications and computing","5858","Phones","3445054","201706",03/08/2016 00:00:00,12.5,"51500","Mobile Phones - Personal Numbers","REDACTED DATA","ORANGE PERSONAL COMMUNICATIONS SERVICES LIMITED","2178917","http://opencorporates.com/companies/gb/2178917","771592016"
"London Borough of Redbridge","http://opendatacommunities.org/doc/london-borough-council/redbridge","6BSOCIALSERV","Social Services","6CCHILLOOKED","Children Looked After","REV","Revenue","R2166","Child Protection Assmt Service Soc Care","04-SUPPLIES","Supplies And Services","04F","Communications and computing","5858","Phones","3445054","201706",03/08/2016 00:00:00,12.5,"51500","Mobile Phones - Personal Numbers","REDACTED DATA","ORANGE PERSONAL COMMUNICATIONS SERVICES LIMITED","2178917","http://opencorporates.com/companies/gb/2178917","771592016"
"London Borough of Redbridge","http://opendatacommunities.org/doc/london-borough-council/redbridge","6BSOCIALSERV","Social Services","6CCHILLOOKED","Children Looked After","REV","Revenue","R2166","Child Protection Assmt Service Soc Care","04-SUPPLIES","Supplies And Services","04F","Communications and computing","5858","Phones","3445054","201706",03/08/2016 00:00:00,12.5,"51500","Mobile Phones - Personal Numbers","REDACTED DATA","ORANGE PERSONAL COMMUNICATIONS SERVICES LIMITED","2178917","http://opencorporates.com/companies/gb/2178917","771592016"
"London Borough of Redbridge","http://opendatacommunities.org/doc/london-borough-council/redbridge","9BNONBVO","Outside the BVACOP Objective Structure","9CNONBVO","Outside the BVACOP Objective Structure","BAL","Balance Sheet","B0133","LBR Teachers Pension","99-NONBV","Capital, Balance Sheet and Control","50Q","Other Balances & Reserves","9910","Personal Account - Debtor","70089012","201706",29/09/2016 00:00:00,1808490.28,"56860","Pensions","REDACTED DATA","TEACHERS PENSION AGENCY","",,""
"London Borough of Redbridge","http://opendatacommunities.org/doc/london-borough-council/redbridge","9BNONBVO","Outside the BVACOP Objective Structure","9CNONBVO","Outside the BVACOP Objective Structure","BAL","Balance Sheet","B0187","TP Opted out Schools","99-NONBV","Capital, Balance Sheet and Control","50Q","Other Balances & Reserves","9910","Personal Account - Debtor","70089012","201706",29/09/2016 00:00:00,89868.65,"56860","Pensions","REDACTED DATA","TEACHERS PENSION AGENCY","",,""
"London Borough of Redbridge","http://opendatacommunities.org/doc/london-borough-council/redbridge","9BNONBVO","Outside the BVACOP Objective Structure","9CNONBVO","Outside the BVACOP Objective Structure","BAL","Balance Sheet","B0214","Little Heath P.A.Y.E","99-NONBV","Capital, Balance Sheet and Control","50Q","Other Balances & Reserves","9910","Personal Account - Debtor","70089012","201706",29/09/2016 00:00:00,33106.08,"56860","Pensions","REDACTED DATA","TEACHERS PENSION AGENCY","",,""
"London Borough of Redbridge","http://opendatacommunities.org/doc/london-borough-council/redbridge","9BNONBVO","Outside the BVACOP Objective Structure","9CNONBVO","Outside the BVACOP Objective Structure","CAP","Capital","C4281","Ilford County High School","99-NONBV","Capital, Balance Sheet and Control","50E","Capital - Contract Payments","9163","Main Building / structure","60321065","201706",20/09/2016 00:00:00,559600,"21555","Construction Contractors - General","REDACTED DATA","KIER CONSTRUCTION LTD T/AS KIER CONSTRUCTION LONDON","2099533","http://opencorporates.com/companies/gb/2099533","882852191"
"London Borough of Redbridge","http://opendatacommunities.org/doc/london-borough-council/redbridge","9BNONBVO","Outside the BVACOP Objective Structure","9CNONBVO","Outside the BVACOP Objective Structure","CAP","Capital","C9036","R and R Capital Exp DSO Leases","99-NONBV","Capital, Balance Sheet and Control","50F","Capital - Equipment, Furniture & Fittings","9172","Vehicles","656574","201706",26/08/2016 00:00:00,506310,"20375","Commercial Vehicle Mnfrs","REDACTED DATA","HEIL EUROPE LTD","53003","http://opencorporates.com/companies/gb/53003","271085664"
"London Borough of Redbridge","http://opendatacommunities.org/doc/london-borough-council/redbridge","6BSOCIALSERV","Social Services","6CCHILCOMSNG","Children's Services - Commissioning & Social Work","REV","Revenue","R2186","F&A - Leaving Care Team","05-THIRD","Third Party Payments","05A","Independent units within the council","6513","Agency & Contracted Services","60320248","201706",12/09/2016 00:00:00,545355.75,"17020","Charities and Voluntary Organisations","REDACTED DATA","BARNARDOS (TANNERS LANE)","1227919","http://opencorporates.com/companies/gb/1227919","507477337"
"London Borough of Redbridge","http://opendatacommunities.org/doc/london-borough-council/redbridge","1BCENTRALPUB","Central Services to the Public","1CLOCALTAXCO","Local Tax Collection","REV","Revenue","R5760","Local Tax Collection","01-EMPLOYEES","Employees","01A","Direct employee expenses","4","Agency Staff - Pay","3445520","201706",21/09/2016 00:00:00,728.44,"31230","Employment and Recruitment Agencies","REDACTED DATA","ADECCO UK LIMITED","593232","http://opencorporates.com/companies/gb/593232","232347975"
"London Borough of Redbridge","http://opendatacommunities.org/doc/london-borough-council/redbridge","1BCENTRALPUB","Central Services to the Public","1CLOCALTAXCO","Local Tax Collection","REV","Revenue","R5760","Local Tax Collection","01-EMPLOYEES","Employees","01A","Direct employee expenses","4","Agency Staff - Pay","3445520","201706",21/09/2016 00:00:00,720.47,"31230","Employment and Recruitment Agencies","REDACTED DATA","ADECCO UK LIMITED","593232","http://opencorporates.com/companies/gb/593232","232347975"
"London Borough of Redbridge","http://opendatacommunities.org/doc/london-borough-council/redbridge","1BCENTRALPUB","Central Services to the Public","1CLOCALTAXCO","Local Tax Collection","REV","Revenue","R5760","Local Tax Collection","01-EMPLOYEES","Employees","01A","Direct employee expenses","4","Agency Staff - Pay","3445520","201706",21/09/2016 00:00:00,642.28,"31230","Employment and Recruitment Agencies","REDACTED DATA","ADECCO UK LIMITED","593232","http://opencorporates.com/companies/gb/593232","232347975"
"London Borough of Redbridge","http://opendatacommunities.org/doc/london-borough-council/redbridge","1BCENTRALPUB","Central Services to the Public","1CLOCALTAXCO","Local Tax Collection","REV","Revenue","R5760","Local Tax Collection","01-EMPLOYEES","Employees","01A","Direct employee expenses","4","Agency Staff - Pay","3445520","201706",21/09/2016 00:00:00,299.93,"31230","Employment and Recruitment Agencies","REDACTED DATA","ADECCO UK LIMITED","593232","http://opencorporates.com/companies/gb/593232","232347975"
"London Borough of Redbridge","http://opendatacommunities.org/doc/london-borough-council/redbridge","1BCENTRALPUB","Central Services to the Public","1CLOCALTAXCO","Local Tax Collection","REV","Revenue","R5760","Local Tax Collection","01-EMPLOYEES","Employees","01A","Direct employee expenses","4","Agency Staff - Pay","3445520","201706",21/09/2016 00:00:00,657.72,"31230","Employment and Recruitment Agencies","REDACTED DATA","ADECCO UK LIMITED","593232","http://opencorporates.com/companies/gb/593232","232347975"
"London Borough of Redbridge","http://opendatacommunities.org/doc/london-borough-council/redbridge","6BSOCIALSERV","Social Services","6CCHILLOOKED","Children Looked After","REV","Revenue","R2166","Child Protection Assmt Service Soc Care","04-SUPPLIES","Supplies And Services","04F","Communications and computing","5858","Phones","3445054","201706",03/08/2016 00:00:00,12.5,"51500","Mobile Phones - Personal Numbers","REDACTED DATA","ORANGE PERSONAL COMMUNICATIONS SERVICES LIMITED","2178917","http://opencorporates.com/companies/gb/2178917","771592016"
"London Borough of Redbridge","http://opendatacommunities.org/doc/london-borough-council/redbridge","6BSOCIALSERV","Social Services","6CCHILLOOKED","Children Looked After","REV","Revenue","R2166","Child Protection Assmt Service Soc Care","04-SUPPLIES","Supplies And Services","04F","Communications and computing","5858","Phones","3445054","201706",03/08/2016 00:00:00,12.5,"51500","Mobile Phones - Personal Numbers","REDACTED DATA","ORANGE PERSONAL COMMUNICATIONS SERVICES LIMITED","2178917","http://opencorporates.com/companies/gb/2178917","771592016"
"London Borough of Redbridge","http://opendatacommunities.org/doc/london-borough-council/redbridge","6BSOCIALSERV","Social Services","6CCHILLOOKED","Children Looked After","REV","Revenue","R2166","Child Protection Assmt Service Soc Care","04-SUPPLIES","Supplies And Services","04F","Communications and computing","5858","Phones","3445054","201706",03/08/2016 00:00:00,12.5,"51500","Mobile Phones - Personal Numbers","REDACTED DATA","ORANGE PERSONAL COMMUNICATIONS SERVICES LIMITED","2178917","http://opencorporates.com/companies/gb/2178917","771592016"
"London Borough of Redbridge","http://opendatacommunities.org/doc/london-borough-council/redbridge","6BSOCIALSERV","Social Services","6CCHILLOOKED","Children Looked After","REV","Revenue","R2166","Child Protection Assmt Service Soc Care","04-SUPPLIES","Supplies And Services","04F","Communications and computing","5858","Phones","3445054","201706",03/08/2016 00:00:00,12.5,"51500","Mobile Phones - Personal Numbers","REDACTED DATA","ORANGE PERSONAL COMMUNICATIONS SERVICES LIMITED","2178917","http://opencorporates.com/companies/gb/2178917","771592016"
"London Borough of Redbridge","http://opendatacommunities.org/doc/london-borough-council/redbridge","6BSOCIALSERV","Social Services","6CCHILLOOKED","Children Looked After","REV","Revenue","R2175","Ray Lodge Building","04-SUPPLIES","Supplies And Services","04F","Communications and computing","5858","Phones","3445054","201706",03/08/2016 00:00:00,12.5,"51500","Mobile Phones - Personal Numbers","REDACTED DATA","ORANGE PERSONAL COMMUNICATIONS SERVICES LIMITED","2178917","http://opencorporates.com/companies/gb/2178917","771592016"
"London Borough of Redbridge","http://opendatacommunities.org/doc/london-borough-council/redbridge","6BSOCIALSERV","Social Services","6CCHILLOOKED","Children Looked After","REV","Revenue","R2178","Early Intervention & Family Support Service","04-SUPPLIES","Supplies And Services","04F","Communications and computing","5858","Phones","3445054","201706",03/08/2016 00:00:00,12.5,"51500","Mobile Phones - Personal Numbers","REDACTED DATA","ORANGE PERSONAL COMMUNICATIONS SERVICES LIMITED","2178917","http://opencorporates.com/companies/gb/2178917","771592016"
"London Borough of Redbridge","http://opendatacommunities.org/doc/london-borough-council/redbridge","6BSOCIALSERV","Social Services","6COTHC&FSERV","Other Children's & Families' Services","REV","Revenue","R2169","Emergency Duty Team (EDT)","04-SUPPLIES","Supplies And Services","04F","Communications and computing","5858","Phones","3445054","201706",03/08/2016 00:00:00,12.5,"51500","Mobile Phones - Personal Numbers","REDACTED DATA","ORANGE PERSONAL COMMUNICATIONS SERVICES LIMITED","2178917","http://opencorporates.com/companies/gb/2178917","771592016"
"London Borough of Redbridge","http://opendatacommunities.org/doc/london-borough-council/redbridge","6BSOCIALSERV","Social Services","6COTHC&FSERV","Other Children's & Families' Services","REV","Revenue","R2169","Emergency Duty Team (EDT)","04-SUPPLIES","Supplies And Services","04F","Communications and computing","5858","Phones","3445054","201706",03/08/2016 00:00:00,12.5,"51500","Mobile Phones - Personal Numbers","REDACTED DATA","ORANGE PERSONAL COMMUNICATIONS SERVICES LIMITED","2178917","http://opencorporates.com/companies/gb/2178917","771592016"
"London Borough of Redbridge","http://opendatacommunities.org/doc/london-borough-council/redbridge","6BSOCIALSERV","Social Services","6COTHC&FSERV","Other Children's & Families' Services","REV","Revenue","R2169","Emergency Duty Team (EDT)","04-SUPPLIES","Supplies And Services","04F","Communications and computing","5858","Phones","3445054","201706",03/08/2016 00:00:00,12.5,"51500","Mobile Phones - Personal Numbers","REDACTED DATA","ORANGE PERSONAL COMMUNICATIONS SERVICES LIMITED","2178917","http://opencorporates.com/companies/gb/2178917","771592016"
"London Borough of Redbridge","http://opendatacommunities.org/doc/london-borough-council/redbridge","6BSOCIALSERV","Social Services","6COTHC&FSERV","Other Children's & Families' Services","REV","Revenue","R2169","Emergency Duty Team (EDT)","04-SUPPLIES","Supplies And Services","04F","Communications and computing","5858","Phones","3445054","201706",03/08/2016 00:00:00,12.5,"51500","Mobile Phones - Personal Numbers","REDACTED DATA","ORANGE PERSONAL COMMUNICATIONS SERVICES LIMITED","2178917","http://opencorporates.com/companies/gb/2178917","771592016"
"London Borough of Redbridge","http://opendatacommunities.org/doc/london-borough-council/redbridge","6BSOCIALSERV","Social Services","6COTHC&FSERV","Other Children's & Families' Services","REV","Revenue","R2169","Emergency Duty Team (EDT)","04-SUPPLIES","Supplies And Services","04F","Communications and computing","5858","Phones","3445054","201706",03/08/2016 00:00:00,12.5,"51500","Mobile Phones - Personal Numbers","REDACTED DATA","ORANGE PERSONAL COMMUNICATIONS SERVICES LIMITED","2178917","http://opencorporates.com/companies/gb/2178917","771592016"
"London Borough of Redbridge","http://opendatacommunities.org/doc/london-borough-council/redbridge","6BSOCIALSERV","Social Services","6COTHC&FSERV","Other Children's & Families' Services","REV","Revenue","R2169","Emergency Duty Team (EDT)","04-SUPPLIES","Supplies And Services","04F","Communications and computing","5858","Phones","3445054","201706",03/08/2016 00:00:00,12.5,"51500","Mobile Phones - Personal Numbers","REDACTED DATA","ORANGE PERSONAL COMMUNICATIONS SERVICES LIMITED","2178917","http://opencorporates.com/companies/gb/2178917","771592016"
"London Borough of Redbridge","http://opendatacommunities.org/doc/london-borough-council/redbridge","6BSOCIALSERV","Social Services","6COTHC&FSERV","Other Children's & Families' Services","REV","Revenue","R2169","Emergency Duty Team (EDT)","04-SUPPLIES","Supplies And Services","04F","Communications and computing","5858","Phones","3445054","201706",03/08/2016 00:00:00,12.5,"51500","Mobile Phones - Personal Numbers","REDACTED DATA","ORANGE PERSONAL COMMUNICATIONS SERVICES LIMITED","2178917","http://opencorporates.com/companies/gb/2178917","771592016"
"London Borough of Redbridge","http://opendatacommunities.org/doc/london-borough-council/redbridge","6BSOCIALSERV","Social Services","6COTHC&FSERV","Other Children's & Families' Services","REV","Revenue","R2169","Emergency Duty Team (EDT)","04-SUPPLIES","Supplies And Services","04F","Communications and computing","5858","Phones","3445054","201706",03/08/2016 00:00:00,12.5,"51500","Mobile Phones - Personal Numbers","REDACTED DATA","ORANGE PERSONAL COMMUNICATIONS SERVICES LIMITED","2178917","http://opencorporates.com/companies/gb/2178917","771592016"
"London Borough of Redbridge","http://opendatacommunities.org/doc/london-borough-council/redbridge","6BSOCIALSERV","Social Services","6CSUPPSERMGT","Support Service & Management Costs","REV","Revenue","R2133","Chief Children and Families Officer","04-SUPPLIES","Supplies And Services","04F","Communications and computing","5858","Phones","3445054","201706",03/08/2016 00:00:00,12.5,"51500","Mobile Phones - Personal Numbers","REDACTED DATA","ORANGE PERSONAL COMMUNICATIONS SERVICES LIMITED","2178917","http://opencorporates.com/companies/gb/2178917","771592016"
"London Borough of Redbridge","http://opendatacommunities.org/doc/london-borough-council/redbridge","6BSOCIALSERV","Social Services","6CSUPPSERMGT","Support Service & Management Costs","REV","Revenue","R2133","Chief Children and Families Officer","04-SUPPLIES","Supplies And Services","04F","Communications and computing","5858","Phones","3445054","201706",03/08/2016 00:00:00,12.5,"51500","Mobile Phones - Personal Numbers","REDACTED DATA","ORANGE PERSONAL COMMUNICATIONS SERVICES LIMITED","2178917","http://opencorporates.com/companies/gb/2178917","771592016"
"London Borough of Redbridge","http://opendatacommunities.org/doc/london-borough-council/redbridge","7BCDC","Corporate & Democratic Core","7CCORPMGT","Corporate Management","REV","Revenue","R8501","Director of Environment, Housing and Community Safety","04-SUPPLIES","Supplies And Services","04F","Communications and computing","5858","Phones","3445054","201706",03/08/2016 00:00:00,12.5,"51500","Mobile Phones - Personal Numbers","REDACTED DATA","ORANGE PERSONAL COMMUNICATIONS SERVICES LIMITED","2178917","http://opencorporates.com/companies/gb/2178917","771592016"
"London Borough of Redbridge","http://opendatacommunities.org/doc/london-borough-council/redbridge","7BCDC","Corporate & Democratic Core","7CCORPMGT","Corporate Management","REV","Revenue","R8501","Director of Environment, Housing and Community Safety","04-SUPPLIES","Supplies And Services","04F","Communications and computing","5858","Phones","3445054","201706",03/08/2016 00:00:00,12.5,"51500","Mobile Phones - Personal Numbers","REDACTED DATA","ORANGE PERSONAL COMMUNICATIONS SERVICES LIMITED","2178917","http://opencorporates.com/companies/gb/2178917","771592016"
"London Borough of Redbridge","http://opendatacommunities.org/doc/london-borough-council/redbridge","7BCDC","Corporate & Democratic Core","7CCORPMGT","Corporate Management","REV","Revenue","R8501","Director of Environment, Housing and Community Safety","04-SUPPLIES","Supplies And Services","04F","Communications and computing","5858","Phones","3445054","201706",03/08/2016 00:00:00,12.5,"51500","Mobile Phones - Personal Numbers","REDACTED DATA","ORANGE PERSONAL COMMUNICATIONS SERVICES LIMITED","2178917","http://opencorporates.com/companies/gb/2178917","771592016"
"London Borough of Redbridge","http://opendatacommunities.org/doc/london-borough-council/redbridge","7BCDC","Corporate & Democratic Core","7CCORPMGT","Corporate Management","REV","Revenue","R9804","Members Exp/Allowances","04-SUPPLIES","Supplies And Services","04F","Communications and computing","5858","Phones","3445054","201706",03/08/2016 00:00:00,12.5,"51500","Mobile Phones - Personal Numbers","REDACTED DATA","ORANGE PERSONAL COMMUNICATIONS SERVICES LIMITED","2178917","http://opencorporates.com/companies/gb/2178917","771592016"
"London Borough of Redbridge","http://opendatacommunities.org/doc/london-borough-council/redbridge","7BCDC","Corporate & Democratic Core","7CCORPMGT","Corporate Management","REV","Revenue","R9804","Members Exp/Allowances","04-SUPPLIES","Supplies And Services","04F","Communications and computing","5858","Phones","3445054","201706",03/08/2016 00:00:00,12.5,"51500","Mobile Phones - Personal Numbers","REDACTED DATA","ORANGE PERSONAL COMMUNICATIONS SERVICES LIMITED","2178917","http://opencorporates.com/companies/gb/2178917","771592016"
"London Borough of Redbridge","http://opendatacommunities.org/doc/london-borough-council/redbridge","7BCDC","Corporate & Democratic Core","7CCORPMGT","Corporate Management","REV","Revenue","R9804","Members Exp/Allowances","04-SUPPLIES","Supplies And Services","04F","Communications and computing","5858","Phones","3445054","201706",03/08/2016 00:00:00,12.5,"51500","Mobile Phones - Personal Numbers","REDACTED DATA","ORANGE PERSONAL COMMUNICATIONS SERVICES LIMITED","2178917","http://opencorporates.com/companies/gb/2178917","771592016"
"London Borough of Redbridge","http://opendatacommunities.org/doc/london-borough-council/redbridge","7BCDC","Corporate & Democratic Core","7CCORPMGT","Corporate Management","REV","Revenue","R9804","Members Exp/Allowances","04-SUPPLIES","Supplies And Services","04F","Communications and computing","5858","Phones","3445054","201706",03/08/2016 00:00:00,12.5,"51500","Mobile Phones - Personal Numbers","REDACTED DATA","ORANGE PERSONAL COMMUNICATIONS SERVICES LIMITED","2178917","http://opencorporates.com/companies/gb/2178917","771592016"
"London Borough of Redbridge","http://opendatacommunities.org/doc/london-borough-council/redbridge","7BCDC","Corporate & Democratic Core","7CCORPMGT","Corporate Management","REV","Revenue","R9804","Members Exp/Allowances","04-SUPPLIES","Supplies And Services","04F","Communications and computing","5858","Phones","3445054","201706",03/08/2016 00:00:00,12.5,"51500","Mobile Phones - Personal Numbers","REDACTED DATA","ORANGE PERSONAL COMMUNICATIONS SERVICES LIMITED","2178917","http://opencorporates.com/companies/gb/2178917","771592016"
"London Borough of Redbridge","http://opendatacommunities.org/doc/london-borough-council/redbridge","7BCDC","Corporate & Democratic Core","7CCORPMGT","Corporate Management","REV","Revenue","R9804","Members Exp/Allowances","04-SUPPLIES","Supplies And Services","04F","Communications and computing","5858","Phones","3445054","201706",03/08/2016 00:00:00,12.5,"51500","Mobile Phones - Personal Numbers","REDACTED DATA","ORANGE PERSONAL COMMUNICATIONS SERVICES LIMITED","2178917","http://opencorporates.com/companies/gb/2178917","771592016"
"London Borough of Redbridge","http://opendatacommunities.org/doc/london-borough-council/redbridge","7BCDC","Corporate & Democratic Core","7CCORPMGT","Corporate Management","REV","Revenue","R9804","Members Exp/Allowances","04-SUPPLIES","Supplies And Services","04F","Communications and computing","5858","Phones","3445054","201706",03/08/2016 00:00:00,12.5,"51500","Mobile Phones - Personal Numbers","REDACTED DATA","ORANGE PERSONAL COMMUNICATIONS SERVICES LIMITED","2178917","http://opencorporates.com/companies/gb/2178917","771592016"
"London Borough of Redbridge","http://opendatacommunities.org/doc/london-borough-council/redbridge","7BCDC","Corporate & Democratic Core","7CCORPMGT","Corporate Management","REV","Revenue","R9804","Members Exp/Allowances","04-SUPPLIES","Supplies And Services","04F","Communications and computing","5858","Phones","3445054","201706",03/08/2016 00:00:00,12.5,"51500","Mobile Phones - Personal Numbers","REDACTED DATA","ORANGE PERSONAL COMMUNICATIONS SERVICES LIMITED","2178917","http://opencorporates.com/companies/gb/2178917","771592016"
"London Borough of Redbridge","http://opendatacommunities.org/doc/london-borough-council/redbridge","7BCDC","Corporate & Democratic Core","7CCORPMGT","Corporate Management","REV","Revenue","R9804","Members Exp/Allowances","04-SUPPLIES","Supplies And Services","04F","Communications and computing","5858","Phones","3445054","201706",03/08/2016 00:00:00,12.5,"51500","Mobile Phones - Personal Numbers","REDACTED DATA","ORANGE PERSONAL COMMUNICATIONS SERVICES LIMITED","2178917","http://opencorporates.com/companies/gb/2178917","771592016"
"London Borough of Redbridge","http://opendatacommunities.org/doc/london-borough-council/redbridge","7BCDC","Corporate & Democratic Core","7CCORPMGT","Corporate Management","REV","Revenue","R9804","Members Exp/Allowances","04-SUPPLIES","Supplies And Services","04F","Communications and computing","5858","Phones","3445054","201706",03/08/2016 00:00:00,12.5,"51500","Mobile Phones - Personal Numbers","REDACTED DATA","ORANGE PERSONAL COMMUNICATIONS SERVICES LIMITED","2178917","http://opencorporates.com/companies/gb/2178917","771592016"
"London Borough of Redbridge","http://opendatacommunities.org/doc/london-borough-council/redbridge","7BCDC","Corporate & Democratic Core","7CCORPMGT","Corporate Management","REV","Revenue","R9804","Members Exp/Allowances","04-SUPPLIES","Supplies And Services","04F","Communications and computing","5858","Phones","3445054","201706",03/08/2016 00:00:00,12.5,"51500","Mobile Phones - Personal Numbers","REDACTED DATA","ORANGE PERSONAL COMMUNICATIONS SERVICES LIMITED","2178917","http://opencorporates.com/companies/gb/2178917","771592016"
"London Borough of Redbridge","http://opendatacommunities.org/doc/london-borough-council/redbridge","7BCDC","Corporate & Democratic Core","7CCORPMGT","Corporate Management","REV","Revenue","R9804","Members Exp/Allowances","04-SUPPLIES","Supplies And Services","04F","Communications and computing","5858","Phones","3445054","201706",03/08/2016 00:00:00,12.5,"51500","Mobile Phones - Personal Numbers","REDACTED DATA","ORANGE PERSONAL COMMUNICATIONS SERVICES LIMITED","2178917","http://opencorporates.com/companies/gb/2178917","771592016"
"London Borough of Redbridge","http://opendatacommunities.org/doc/london-borough-council/redbridge","7BCDC","Corporate & Democratic Core","7CCORPMGT","Corporate Management","REV","Revenue","R9804","Members Exp/Allowances","04-SUPPLIES","Supplies And Services","04F","Communications and computing","5858","Phones","3445054","201706",03/08/2016 00:00:00,12.5,"51500","Mobile Phones - Personal Numbers","REDACTED DATA","ORANGE PERSONAL COMMUNICATIONS SERVICES LIMITED","2178917","http://opencorporates.com/companies/gb/2178917","771592016"
"London Borough of Redbridge","http://opendatacommunities.org/doc/london-borough-council/redbridge","7BCDC","Corporate & Democratic Core","7CCORPMGT","Corporate Management","REV","Revenue","R9804","Members Exp/Allowances","04-SUPPLIES","Supplies And Services","04F","Communications and computing","5858","Phones","3445054","201706",03/08/2016 00:00:00,12.5,"51500","Mobile Phones - Personal Numbers","REDACTED DATA","ORANGE PERSONAL COMMUNICATIONS SERVICES LIMITED","2178917","http://opencorporates.com/companies/gb/2178917","771592016"
"London Borough of Redbridge","http://opendatacommunities.org/doc/london-borough-council/redbridge","7BCDC","Corporate & Democratic Core","7CCORPMGT","Corporate Management","REV","Revenue","R9804","Members Exp/Allowances","04-SUPPLIES","Supplies And Services","04F","Communications and computing","5858","Phones","3445054","201706",03/08/2016 00:00:00,12.5,"51500","Mobile Phones - Personal Numbers","REDACTED DATA","ORANGE PERSONAL COMMUNICATIONS SERVICES LIMITED","2178917","http://opencorporates.com/companies/gb/2178917","771592016"
"London Borough of Redbridge","http://opendatacommunities.org/doc/london-borough-council/redbridge","7BCDC","Corporate & Democratic Core","7CCORPMGT","Corporate Management","REV","Revenue","R9804","Members Exp/Allowances","04-SUPPLIES","Supplies And Services","04F","Communications and computing","5858","Phones","3445054","201706",03/08/2016 00:00:00,12.5,"51500","Mobile Phones - Personal Numbers","REDACTED DATA","ORANGE PERSONAL COMMUNICATIONS SERVICES LIMITED","2178917","http://opencorporates.com/companies/gb/2178917","771592016"
"London Borough of Redbridge","http://opendatacommunities.org/doc/london-borough-council/redbridge","7BCDC","Corporate & Democratic Core","7CCORPMGT","Corporate Management","REV","Revenue","R9804","Members Exp/Allowances","04-SUPPLIES","Supplies And Services","04F","Communications and computing","5858","Phones","3445054","201706",03/08/2016 00:00:00,12.5,"51500","Mobile Phones - Personal Numbers","REDACTED DATA","ORANGE PERSONAL COMMUNICATIONS SERVICES LIMITED","2178917","http://opencorporates.com/companies/gb/2178917","771592016"
"London Borough of Redbridge","http://opendatacommunities.org/doc/london-borough-council/redbridge","7BCDC","Corporate & Democratic Core","7CCORPMGT","Corporate Management","REV","Revenue","R9804","Members Exp/Allowances","04-SUPPLIES","Supplies And Services","04F","Communications and computing","5858","Phones","3445054","201706",03/08/2016 00:00:00,12.5,"51500","Mobile Phones - Personal Numbers","REDACTED DATA","ORANGE PERSONAL COMMUNICATIONS SERVICES LIMITED","2178917","http://opencorporates.com/companies/gb/2178917","771592016"
"London Borough of Redbridge","http://opendatacommunities.org/doc/london-borough-council/redbridge","7BCDC","Corporate & Democratic Core","7CCORPMGT","Corporate Management","REV","Revenue","R9804","Members Exp/Allowances","04-SUPPLIES","Supplies And Services","04F","Communications and computing","5858","Phones","3445054","201706",03/08/2016 00:00:00,12.5,"51500","Mobile Phones - Personal Numbers","REDACTED DATA","ORANGE PERSONAL COMMUNICATIONS SERVICES LIMITED","2178917","http://opencorporates.com/companies/gb/2178917","771592016"
"London Borough of Redbridge","http://opendatacommunities.org/doc/london-borough-council/redbridge","7BCDC","Corporate & Democratic Core","7CCORPMGT","Corporate Management","REV","Revenue","R9804","Members Exp/Allowances","04-SUPPLIES","Supplies And Services","04F","Communications and computing","5858","Phones","3445054","201706",03/08/2016 00:00:00,12.5,"51500","Mobile Phones - Personal Numbers","REDACTED DATA","ORANGE PERSONAL COMMUNICATIONS SERVICES LIMITED","2178917","http://opencorporates.com/companies/gb/2178917","771592016"
"London Borough of Redbridge","http://opendatacommunities.org/doc/london-borough-council/redbridge","7BCDC","Corporate & Democratic Core","7CCORPMGT","Corporate Management","REV","Revenue","R9804","Members Exp/Allowances","04-SUPPLIES","Supplies And Services","04F","Communications and computing","5858","Phones","3445054","201706",03/08/2016 00:00:00,12.5,"51500","Mobile Phones - Personal Numbers","REDACTED DATA","ORANGE PERSONAL COMMUNICATIONS SERVICES LIMITED","2178917","http://opencorporates.com/companies/gb/2178917","771592016"
"London Borough of Redbridge","http://opendatacommunities.org/doc/london-borough-council/redbridge","7BCDC","Corporate & Democratic Core","7CCORPMGT","Corporate Management","REV","Revenue","R9804","Members Exp/Allowances","04-SUPPLIES","Supplies And Services","04F","Communications and computing","5858","Phones","3445054","201706",03/08/2016 00:00:00,12.5,"51500","Mobile Phones - Personal Numbers","REDACTED DATA","ORANGE PERSONAL COMMUNICATIONS SERVICES LIMITED","2178917","http://opencorporates.com/companies/gb/2178917","771592016"
"London Borough of Redbridge","http://opendatacommunities.org/doc/london-borough-council/redbridge","7BCDC","Corporate & Democratic Core","7CCORPMGT","Corporate Management","REV","Revenue","R9827","Pub Rels and Infn","04-SUPPLIES","Supplies And Services","04F","Communications and computing","5858","Phones","3445054","201706",03/08/2016 00:00:00,12.5,"51500","Mobile Phones - Personal Numbers","REDACTED DATA","ORANGE PERSONAL COMMUNICATIONS SERVICES LIMITED","2178917","http://opencorporates.com/companies/gb/2178917","771592016"
"London Borough of Redbridge","http://opendatacommunities.org/doc/london-borough-council/redbridge","9BNONBVO","Outside the BVACOP Objective Structure","9CNONBVO","Outside the BVACOP Objective Structure","REV","Revenue","R5214","Environmental Services Team","04-SUPPLIES","Supplies And Services","04F","Communications and computing","5858","Phones","3445054","201706",03/08/2016 00:00:00,12.5,"51500","Mobile Phones - Personal Numbers","REDACTED DATA","ORANGE PERSONAL COMMUNICATIONS SERVICES LIMITED","2178917","http://opencorporates.com/companies/gb/2178917","771592016"
"London Borough of Redbridge","http://opendatacommunities.org/doc/london-borough-council/redbridge","9BNONBVO","Outside the BVACOP Objective Structure","9CNONBVO","Outside the BVACOP Objective Structure","REV","Revenue","R5214","Environmental Services Team","04-SUPPLIES","Supplies And Services","04F","Communications and computing","5858","Phones","3445054","201706",03/08/2016 00:00:00,12.5,"51500","Mobile Phones - Personal Numbers","REDACTED DATA","ORANGE PERSONAL COMMUNICATIONS SERVICES LIMITED","2178917","http://opencorporates.com/companies/gb/2178917","771592016"
"London Borough of Redbridge","http://opendatacommunities.org/doc/london-borough-council/redbridge","9BNONBVO","Outside the BVACOP Objective Structure","9CNONBVO","Outside the BVACOP Objective Structure","REV","Revenue","R5214","Environmental Services Team","04-SUPPLIES","Supplies And Services","04F","Communications and computing","5858","Phones","3445054","201706",03/08/2016 00:00:00,12.5,"51500","Mobile Phones - Personal Numbers","REDACTED DATA","ORANGE PERSONAL COMMUNICATIONS SERVICES LIMITED","2178917","http://opencorporates.com/companies/gb/2178917","771592016"
"London Borough of Redbridge","http://opendatacommunities.org/doc/london-borough-council/redbridge","9BNONBVO","Outside the BVACOP Objective Structure","9CNONBVO","Outside the BVACOP Objective Structure","REV","Revenue","R5214","Environmental Services Team","04-SUPPLIES","Supplies And Services","04F","Communications and computing","5858","Phones","3445054","201706",03/08/2016 00:00:00,12.5,"51500","Mobile Phones - Personal Numbers","REDACTED DATA","ORANGE PERSONAL COMMUNICATIONS SERVICES LIMITED","2178917","http://opencorporates.com/companies/gb/2178917","771592016"
"London Borough of Redbridge","http://opendatacommunities.org/doc/london-borough-council/redbridge","9BNONBVO","Outside the BVACOP Objective Structure","9CNONBVO","Outside the BVACOP Objective Structure","REV","Revenue","R7602","Street Cleansing DSO","04-SUPPLIES","Supplies And Services","04F","Communications and computing","5858","Phones","3445054","201706",03/08/2016 00:00:00,12.5,"51500","Mobile Phones - Personal Numbers","REDACTED DATA","ORANGE PERSONAL COMMUNICATIONS SERVICES LIMITED","2178917","http://opencorporates.com/companies/gb/2178917","771592016"
"London Borough of Redbridge","http://opendatacommunities.org/doc/london-borough-council/redbridge","9BNONBVO","Outside the BVACOP Objective Structure","9CNONBVO","Outside the BVACOP Objective Structure","REV","Revenue","R7602","Street Cleansing DSO","04-SUPPLIES","Supplies And Services","04F","Communications and computing","5858","Phones","3445054","201706",03/08/2016 00:00:00,12.5,"51500","Mobile Phones - Personal Numbers","REDACTED DATA","ORANGE PERSONAL COMMUNICATIONS SERVICES LIMITED","2178917","http://opencorporates.com/companies/gb/2178917","771592016"
"London Borough of Redbridge","http://opendatacommunities.org/doc/london-borough-council/redbridge","9BNONBVO","Outside the BVACOP Objective Structure","9CNONBVO","Outside the BVACOP Objective Structure","REV","Revenue","R7602","Street Cleansing DSO","04-SUPPLIES","Supplies And Services","04F","Communications and computing","5858","Phones","3445054","201706",03/08/2016 00:00:00,12.5,"51500","Mobile Phones - Personal Numbers","REDACTED DATA","ORANGE PERSONAL COMMUNICATIONS SERVICES LIMITED","2178917","http://opencorporates.com/companies/gb/2178917","771592016"
"London Borough of Redbridge","http://opendatacommunities.org/doc/london-borough-council/redbridge","9BNONBVO","Outside the BVACOP Objective Structure","9CNONBVO","Outside the BVACOP Objective Structure","REV","Revenue","R7602","Street Cleansing DSO","04-SUPPLIES","Supplies And Services","04F","Communications and computing","5858","Phones","3445054","201706",03/08/2016 00:00:00,12.5,"51500","Mobile Phones - Personal Numbers","REDACTED DATA","ORANGE PERSONAL COMMUNICATIONS SERVICES LIMITED","2178917","http://opencorporates.com/companies/gb/2178917","771592016"
"London Borough of Redbridge","http://opendatacommunities.org/doc/london-borough-council/redbridge","9BNONBVO","Outside the BVACOP Objective Structure","9CNONBVO","Outside the BVACOP Objective Structure","REV","Revenue","R7602","Street Cleansing DSO","04-SUPPLIES","Supplies And Services","04F","Communications and computing","5858","Phones","3445054","201706",03/08/2016 00:00:00,12.5,"51500","Mobile Phones - Personal Numbers","REDACTED DATA","ORANGE PERSONAL COMMUNICATIONS SERVICES LIMITED","2178917","http://opencorporates.com/companies/gb/2178917","771592016"
"London Borough of Redbridge","http://opendatacommunities.org/doc/london-borough-council/redbridge","9BNONBVO","Outside the BVACOP Objective Structure","9CNONBVO","Outside the BVACOP Objective Structure","REV","Revenue","R7602","Street Cleansing DSO","04-SUPPLIES","Supplies And Services","04F","Communications and computing","5858","Phones","3445054","201706",03/08/2016 00:00:00,12.5,"51500","Mobile Phones - Personal Numbers","REDACTED DATA","ORANGE PERSONAL COMMUNICATIONS SERVICES LIMITED","2178917","http://opencorporates.com/companies/gb/2178917","771592016"
"London Borough of Redbridge","http://opendatacommunities.org/doc/london-borough-council/redbridge","9BNONBVO","Outside the BVACOP Objective Structure","9CNONBVO","Outside the BVACOP Objective Structure","REV","Revenue","R7602","Street Cleansing DSO","04-SUPPLIES","Supplies And Services","04F","Communications and computing","5858","Phones","3445054","201706",03/08/2016 00:00:00,12.5,"51500","Mobile Phones - Personal Numbers","REDACTED DATA","ORANGE PERSONAL COMMUNICATIONS SERVICES LIMITED","2178917","http://opencorporates.com/companies/gb/2178917","771592016"
"London Borough of Redbridge","http://opendatacommunities.org/doc/london-borough-council/redbridge","9BNONBVO","Outside the BVACOP Objective Structure","9CNONBVO","Outside the BVACOP Objective Structure","REV","Revenue","R7602","Street Cleansing DSO","04-SUPPLIES","Supplies And Services","04F","Communications and computing","5858","Phones","3445054","201706",03/08/2016 00:00:00,12.5,"51500","Mobile Phones - Personal Numbers","REDACTED DATA","ORANGE PERSONAL COMMUNICATIONS SERVICES LIMITED","2178917","http://opencorporates.com/companies/gb/2178917","771592016"
"London Borough of Redbridge","http://opendatacommunities.org/doc/london-borough-council/redbridge","9BNONBVO","Outside the BVACOP Objective Structure","9CNONBVO","Outside the BVACOP Objective Structure","REV","Revenue","R7602","Street Cleansing DSO","04-SUPPLIES","Supplies And Services","04F","Communications and computing","5858","Phones","3445054","201706",03/08/2016 00:00:00,12.5,"51500","Mobile Phones - Personal Numbers","REDACTED DATA","ORANGE PERSONAL COMMUNICATIONS SERVICES LIMITED","2178917","http://opencorporates.com/companies/gb/2178917","771592016"
"London Borough of Redbridge","http://opendatacommunities.org/doc/london-borough-council/redbridge","9BNONBVO","Outside the BVACOP Objective Structure","9CNONBVO","Outside the BVACOP Objective Structure","REV","Revenue","R7602","Street Cleansing DSO","04-SUPPLIES","Supplies And Services","04F","Communications and computing","5858","Phones","3445054","201706",03/08/2016 00:00:00,12.5,"51500","Mobile Phones - Personal Numbers","REDACTED DATA","ORANGE PERSONAL COMMUNICATIONS SERVICES LIMITED","2178917","http://opencorporates.com/companies/gb/2178917","771592016"
"London Borough of Redbridge","http://opendatacommunities.org/doc/london-borough-council/redbridge","4BPUBLICTRAN","Public Transport","4CPARKING","Parking Services","REV","Revenue","R7037","Parking Enforcements Non CCTV","04-SUPPLIES","Supplies And Services","04F","Communications and computing","5850","Computer Equipment - General Supplies","60320052","201706",08/09/2016 00:00:00,4127.8,"20703","Computer Systems and Software","REDACTED DATA","CIVICA  UK LTD","1628868","http://opencorporates.com/companies/gb/1628868","391171065"
"London Borough of Redbridge","http://opendatacommunities.org/doc/london-borough-council/redbridge","3BINDSCHFUND","Individual School Funds","3CDELPRIMARY","Delegated Individual Primary School Budgets","REV","Revenue","S2735","Winston : COMPUTERS","04-SUPPLIES","Supplies And Services","04F","Communications and computing","5862","Curriculum Software","60319644","201706",19/07/2016 00:00:00,4114.05,"29360","Educational Services","REDACTED DATA","Espresso Education Ltd","",,"887908256"
"London Borough of Redbridge","http://opendatacommunities.org/doc/london-borough-council/redbridge","9BNONBVO","Outside the BVACOP Objective Structure","9CNONBVO","Outside the BVACOP Objective Structure","REV","Revenue","R7602","Street Cleansing DSO","04-SUPPLIES","Supplies And Services","04C","Clothes, uniform and laundry","5651","Protective Clothing","60317857","201706",09/08/2016 00:00:00,4100.7,"86070","Workwear and Protective Equipment","REDACTED DATA","PCI (GB) LTD T/A PCI TRUSTYLE","6661924","http://opencorporates.com/companies/gb/6661924","739492294"
"London Borough of Redbridge","http://opendatacommunities.org/doc/london-borough-council/redbridge","6BSOCIALSERV","Social Services","4CMANGT&SUPP","Management & Support Services","REV","Revenue","R2150","CQ and F - Training","01-EMPLOYEES","Employees","01B","Indirect employee expenses","2403","External Training","60320885","201706",20/09/2016 00:00:00,4086,"79980","Training Services","REDACTED DATA","SAFE AND SOUND DERBY (JUST WHISTLE)","4411425","http://opencorporates.com/companies/gb/4411425","159905275"
"London Borough of Redbridge","http://opendatacommunities.org/doc/london-borough-council/redbridge","3BNONSCHFUND","Non-School Funding","6CCHILLOOKED","Children Looked After","REV","Revenue","R2238","Looked After Children Placements LA","05-THIRD","Third Party Payments","05H","Private contractors","6917","Fostering Costs - Agency","60320429","201706",01/09/2016 00:00:00,4891.63,"1880","Adoption and Fostering","REDACTED DATA","BY THE BRIDGE","4050928","http://opencorporates.com/companies/gb/4050928",""
"London Borough of Redbridge","http://opendatacommunities.org/doc/london-borough-council/redbridge","6BADULTSOCIA","Adult Social Care","6CSUPPSERMGT","Support Service & Management Costs","REV","Revenue","R4433","Systems Team","04-SUPPLIES","Supplies And Services","04E","Services","5754","Consultancy","60319109","201706",31/08/2016 00:00:00,4060,"20690","Computer Support and Services","REDACTED DATA","SERVELEC ABACUS LTD","8490654","http://opencorporates.com/companies/gb/8490654","648280518"
"London Borough of Redbridge","http://opendatacommunities.org/doc/london-borough-council/redbridge","6BADULTSOCIA","Adult Social Care","6COTHADSERV","Other Adult Services","REV","Revenue","R4315","CCG Direct Payments","06-TRANSFER","Transfer Payments","06B","Social Services Clients","7053","Direct Payments","3443473","201706",19/09/2016 00:00:00,4824,"90005","Home Care Services DP","REDACTED DATA","REDACTED DATA","",,""
"London Borough of Redbridge","http://opendatacommunities.org/doc/london-borough-council/redbridge","3BINDSCHFUND","Individual School Funds","3CDELPRIMARY","Delegated Individual Primary School Budgets","REV","Revenue","S2339","GROVE : PERSONNEL","01-EMPLOYEES","Employees","01A","Direct employee expenses","4","Agency Staff - Pay","60320593","201706",17/06/2016 00:00:00,3455,"29300","Education Agencies and Authorities","REDACTED DATA","DESTINATION EDUCATION LTD","",,"930151073"
"London Borough of Redbridge","http://opendatacommunities.org/doc/london-borough-council/redbridge","3BINDSCHFUND","Individual School Funds","3CDELPRIMARY","Delegated Individual Primary School Budgets","REV","Revenue","S2339","GROVE : PERSONNEL","01-EMPLOYEES","Employees","01A","Direct employee expenses","409","Agency Staff Pay","60320593","201706",17/06/2016 00:00:00,552,"29300","Education Agencies and Authorities","REDACTED DATA","DESTINATION EDUCATION LTD","",,"930151073"
"London Borough of Redbridge","http://opendatacommunities.org/doc/london-borough-council/redbridge","7BCDC","Corporate & Democratic Core","7CCORPMGT","Corporate Management","REV","Revenue","R9828","Redbridge Life","01-EMPLOYEES","Employees","01A","Direct employee expenses","4","Agency Staff - Pay","60321781","201706",15/09/2016 00:00:00,4000,"25070","Designers - Graphic","REDACTED DATA","YELLOW BALLOON LTD","6974571","http://opencorporates.com/companies/gb/6974571","981680781"
"London Borough of Redbridge","http://opendatacommunities.org/doc/london-borough-council/redbridge","3BNONSCHFUND","Non-School Funding","3CNONSCH","Non Schools","REV","Revenue","R3962","Early Years - 3 and 4 Year Olds","05-THIRD","Third Party Payments","05A","Independent units within the council","6517","Non-Maintained Schools","3442333","201706",06/09/2016 00:00:00,4798.17,"59760","Playgroups, Nurseries and Creches","REDACTED DATA","LITTLE BEARS NURSERY SCHOOL LTD","5208881","http://opencorporates.com/companies/gb/5208881",""
"London Borough of Redbridge","http://opendatacommunities.org/doc/london-borough-council/redbridge","6BADULTSOCIA","Adult Social Care","6CADLEARNDIS","Adults Under 65 with Learning Disabilities","REV","Revenue","R4241","CCG � LD Continuing Care","06-TRANSFER","Transfer Payments","06B","Social Services Clients","7053","Direct Payments","3443937","201706",19/09/2016 00:00:00,4797.76,"90005","Home Care Services DP","REDACTED DATA","REDACTED DATA","",,""
"London Borough of Redbridge","http://opendatacommunities.org/doc/london-borough-council/redbridge","5BGFHOUSING","General Fund Housing","5CHOMELESS","Homelessness","REV","Revenue","R5630","HAC Temporary Accomodation","05-THIRD","Third Party Payments","05H","Private contractors","6916","Leasing Payments To Landlords","70088581","201706",01/09/2016 00:00:00,389.99,"47846","Letting Agents","REDACTED DATA","LETTING INTERNATIONAL LTD","3425414","http://opencorporates.com/companies/gb/3425414","710849440"
"London Borough of Redbridge","http://opendatacommunities.org/doc/london-borough-council/redbridge","5BGFHOUSING","General Fund Housing","5CHOMELESS","Homelessness","REV","Revenue","R5630","HAC Temporary Accomodation","05-THIRD","Third Party Payments","05H","Private contractors","6916","Leasing Payments To Landlords","70088581","201706",01/09/2016 00:00:00,4324.5,"47846","Letting Agents","REDACTED DATA","LETTING INTERNATIONAL LTD","3425414","http://opencorporates.com/companies/gb/3425414","710849440"
"London Borough of Redbridge","http://opendatacommunities.org/doc/london-borough-council/redbridge","9BNONBVO","Outside the BVACOP Objective Structure","9CNONBVO","Outside the BVACOP Objective Structure","CAP","Capital","C4294","Mayespark - Renew boilers domestic hot water storage","99-NONBV","Capital, Balance Sheet and Control","50E","Capital - Contract Payments","9159","Heating (Central Heating & Boiler), Electrical wiring installation","70088435","201706",05/09/2016 00:00:00,3992.6,"11400","Building Services","REDACTED DATA","INVICTA BUILDING SERVICES LTD","4851667","http://opencorporates.com/companies/gb/4851667","820451759"
"London Borough of Redbridge","http://opendatacommunities.org/doc/london-borough-council/redbridge","6BADULTSOCIA","Adult Social Care","6CADLEARNDIS","Adults Under 65 with Learning Disabilities","REV","Revenue","R4215","LD Direct Payments","06-TRANSFER","Transfer Payments","06B","Social Services Clients","7053","Direct Payments","3444112","201706",19/09/2016 00:00:00,4781.2,"90005","Home Care Services DP","REDACTED DATA","REDACTED DATA","",,""
"London Borough of Redbridge","http://opendatacommunities.org/doc/london-borough-council/redbridge","6BADULTSOCIA","Adult Social Care","6CADLEARNDIS","Adults Under 65 with Learning Disabilities","REV","Revenue","R4215","LD Direct Payments","06-TRANSFER","Transfer Payments","06B","Social Services Clients","7053","Direct Payments","3443751","201706",19/09/2016 00:00:00,5162.8,"90005","Home Care Services DP","REDACTED DATA","REDACTED DATA","",,""
"London Borough of Redbridge","http://opendatacommunities.org/doc/london-borough-council/redbridge","6BADULTSOCIA","Adult Social Care","6CADLEARNDIS","Adults Under 65 with Learning Disabilities","REV","Revenue","R4215","LD Direct Payments","09-INCOME","Income","09C","Customer and Client Receipts","8545","Direct Payments Income","3443751","201706",19/09/2016 00:00:00,-190.8,"90005","Home Care Services DP","REDACTED DATA","REDACTED DATA","",,""
"London Borough of Redbridge","http://opendatacommunities.org/doc/london-borough-council/redbridge","6BADULTSOCIA","Adult Social Care","6CADLEARNDIS","Adults Under 65 with Learning Disabilities","REV","Revenue","R4215","LD Direct Payments","09-INCOME","Income","09C","Customer and Client Receipts","8545","Direct Payments Income","3443751","201706",19/09/2016 00:00:00,-190.8,"90005","Home Care Services DP","REDACTED DATA","REDACTED DATA","",,""
"London Borough of Redbridge","http://opendatacommunities.org/doc/london-borough-council/redbridge","1BCENTRALPUB","Central Services to the Public","1CLOCALTAXCO","Local Tax Collection","REV","Revenue","R5760","Local Tax Collection","04-SUPPLIES","Supplies And Services","04H","Grants and subscriptions","5957","Bailiff Fees","70088821","201706",01/09/2016 00:00:00,183.79,"24230","Debt Collection Agencies","REDACTED DATA","EQUITA LIMITED","",,""
"London Borough of Redbridge","http://opendatacommunities.org/doc/london-borough-council/redbridge","9BNONBVO","Outside the BVACOP Objective Structure","9CNONBVO","Outside the BVACOP Objective Structure","BAL","Balance Sheet","B0059","DUMMY VAT ACCOUNT","99-NONBV","Capital, Balance Sheet and Control","50L","Debtors","9359","VAT only invoices","70088821","201706",01/09/2016 00:00:00,-4547.15,"24230","Debt Collection Agencies","REDACTED DATA","EQUITA LIMITED","",,""
"London Borough of Redbridge","http://opendatacommunities.org/doc/london-borough-council/redbridge","9BNONBVO","Outside the BVACOP Objective Structure","9CNONBVO","Outside the BVACOP Objective Structure","BAL","Balance Sheet","B0059","DUMMY VAT ACCOUNT","99-NONBV","Capital, Balance Sheet and Control","50L","Debtors","9359","VAT only invoices","70088821","201706",01/09/2016 00:00:00,4547.15,"24230","Debt Collection Agencies","REDACTED DATA","EQUITA LIMITED","",,""
"London Borough of Redbridge","http://opendatacommunities.org/doc/london-borough-council/redbridge","6BADULTSOCIA","Adult Social Care","6CADLEARNDIS","Adults Under 65 with Learning Disabilities","REV","Revenue","R4388","LD Nursing","05-THIRD","Third Party Payments","05H","Private contractors","6909","Nursing Homes","90774335","201706",12/09/2016 00:00:00,448,"64710","Residential Care Homes","REDACTED DATA","VOYAGE LIMITED","3157168","http://opencorporates.com/companies/gb/3157168",""
"London Borough of Redbridge","http://opendatacommunities.org/doc/london-borough-council/redbridge","6BADULTSOCIA","Adult Social Care","6CADLEARNDIS","Adults Under 65 with Learning Disabilities","REV","Revenue","R4388","LD Nursing","05-THIRD","Third Party Payments","05H","Private contractors","6909","Nursing Homes","90774335","201706",12/09/2016 00:00:00,5142.44,"64710","Residential Care Homes","REDACTED DATA","VOYAGE LIMITED","3157168","http://opencorporates.com/companies/gb/3157168",""
"London Borough of Redbridge","http://opendatacommunities.org/doc/london-borough-council/redbridge","6BADULTSOCIA","Adult Social Care","6CADLEARNDIS","Adults Under 65 with Learning Disabilities","REV","Revenue","R4388","LD Nursing","09-INCOME","Income","09C","Customer and Client Receipts","8557","Nursing Home Charges","90774335","201706",12/09/2016 00:00:00,-448,"64710","Residential Care Homes","REDACTED DATA","VOYAGE LIMITED","3157168","http://opencorporates.com/companies/gb/3157168",""
"London Borough of Redbridge","http://opendatacommunities.org/doc/london-borough-council/redbridge","6BADULTSOCIA","Adult Social Care","6CADLEARNDIS","Adults Under 65 with Learning Disabilities","REV","Revenue","R4388","LD Nursing","09-INCOME","Income","09C","Customer and Client Receipts","8557","Nursing Home Charges","90774335","201706",12/09/2016 00:00:00,-377.6,"64710","Residential Care Homes","REDACTED DATA","VOYAGE LIMITED","3157168","http://opencorporates.com/companies/gb/3157168",""
"London Borough of Redbridge","http://opendatacommunities.org/doc/london-borough-council/redbridge","3BNONSCHFUND","Non-School Funding","3CNONSCH","Non Schools","REV","Revenue","R3962","Early Years - 3 and 4 Year Olds","05-THIRD","Third Party Payments","05A","Independent units within the council","6517","Non-Maintained Schools","3442331","201706",06/09/2016 00:00:00,4733.16,"59760","Playgroups, Nurseries and Creches","REDACTED DATA","LITTLE ACORNS CHILDREN CLUB CIC","7930059","http://opencorporates.com/companies/gb/7930059",""
"London Borough of Redbridge","http://opendatacommunities.org/doc/london-borough-council/redbridge","3BLEACENTFND","LEA Centrally Held School Funds","3CSCHSTRATMG","Schools Strategic Management","REV","Revenue","R3279","IT Unit - Trading Acc","04-SUPPLIES","Supplies And Services","04A","Equipment, furniture and materials","5502","Equipment Purchase","60319171","201706",01/09/2016 00:00:00,3937.5,"29360","Educational Services","REDACTED DATA","SERVELEC SYNERGY LIMITED","",,"648280518"
"London Borough of Redbridge","http://opendatacommunities.org/doc/london-borough-council/redbridge","6BADULTSOCIA","Adult Social Care","6CADLEARNDIS","Adults Under 65 with Learning Disabilities","REV","Revenue","R4218","LD Individual Budgets","06-TRANSFER","Transfer Payments","06B","Social Services Clients","7053","Direct Payments","3443988","201706",19/09/2016 00:00:00,4915.4,"90005","Home Care Services DP","REDACTED DATA","REDACTED DATA","",,""
"London Borough of Redbridge","http://opendatacommunities.org/doc/london-borough-council/redbridge","6BADULTSOCIA","Adult Social Care","6CADLEARNDIS","Adults Under 65 with Learning Disabilities","REV","Revenue","R4218","LD Individual Budgets","09-INCOME","Income","09C","Customer and Client Receipts","8545","Direct Payments Income","3443988","201706",19/09/2016 00:00:00,-191.32,"90005","Home Care Services DP","REDACTED DATA","REDACTED DATA","",,""
"London Borough of Redbridge","http://opendatacommunities.org/doc/london-borough-council/redbridge","3BNONSCHFUND","Non-School Funding","6CCHILLOOKED","Children Looked After","REV","Revenue","R2238","Looked After Children Placements LA","05-THIRD","Third Party Payments","05H","Private contractors","6917","Fostering Costs - Agency","60318919","201706",01/09/2016 00:00:00,4714.28,"1880","Adoption and Fostering","REDACTED DATA","CHILDREN OF COLOUR LTD","4852625","http://opencorporates.com/companies/gb/4852625",""
"London Borough of Redbridge","http://opendatacommunities.org/doc/london-borough-council/redbridge","6BADULTSOCIA","Adult Social Care","6CADLEARNDIS","Adults Under 65 with Learning Disabilities","REV","Revenue","R4188","LD - Residential Care","05-THIRD","Third Party Payments","05F","Voluntary associations","6802","Residential Homes","90773983","201706",12/09/2016 00:00:00,5231.24,"53350","Nursing Homes","REDACTED DATA","ACORN VILLAGE","",,""
"London Borough of Redbridge","http://opendatacommunities.org/doc/london-borough-council/redbridge","6BADULTSOCIA","Adult Social Care","6CADLEARNDIS","Adults Under 65 with Learning Disabilities","REV","Revenue","R4188","LD - Residential Care","09-INCOME","Income","09C","Customer and Client Receipts","8555","Accommodation Charges","90773983","201706",12/09/2016 00:00:00,-522.8,"53350","Nursing Homes","REDACTED DATA","ACORN VILLAGE","",,""
"London Borough of Redbridge","http://opendatacommunities.org/doc/london-borough-council/redbridge","3BNONSCHFUND","Non-School Funding","6CCHILLOOKED","Children Looked After","REV","Revenue","R2238","Looked After Children Placements LA","05-THIRD","Third Party Payments","05H","Private contractors","6907","Private Homes","60319093","201706",02/09/2016 00:00:00,4700,"64710","Residential Care Homes","REDACTED DATA","CARE 2 SHARE 2","",,""
"London Borough of Redbridge","http://opendatacommunities.org/doc/london-borough-council/redbridge","6BADULTSOCIA","Adult Social Care","6COLDINCMENT","Older People (65 or over) incl. Older Mentally Ill","REV","Revenue","R4385","OP Nursing","05-THIRD","Third Party Payments","05H","Private contractors","6909","Nursing Homes","90773867","201706",12/09/2016 00:00:00,6095.16,"53350","Nursing Homes","REDACTED DATA","BUPA CARE HOMES(GABLE COURT)","",,"239731641"
"London Borough of Redbridge","http://opendatacommunities.org/doc/london-borough-council/redbridge","6BADULTSOCIA","Adult Social Care","6COLDINCMENT","Older People (65 or over) incl. Older Mentally Ill","REV","Revenue","R4385","OP Nursing","05-THIRD","Third Party Payments","05H","Private contractors","6909","Nursing Homes","90773867","201706",12/09/2016 00:00:00,1344,"53350","Nursing Homes","REDACTED DATA","BUPA CARE HOMES(GABLE COURT)","",,"239731641"
"London Borough of Redbridge","http://opendatacommunities.org/doc/london-borough-council/redbridge","6BADULTSOCIA","Adult Social Care","6COLDINCMENT","Older People (65 or over) incl. Older Mentally Ill","REV","Revenue","R4385","OP Nursing","09-INCOME","Income","09C","Customer and Client Receipts","8557","Nursing Home Charges","90773867","201706",12/09/2016 00:00:00,-1500.96,"53350","Nursing Homes","REDACTED DATA","BUPA CARE HOMES(GABLE COURT)","",,"239731641"
"London Borough of Redbridge","http://opendatacommunities.org/doc/london-borough-council/redbridge","6BADULTSOCIA","Adult Social Care","6COLDINCMENT","Older People (65 or over) incl. Older Mentally Ill","REV","Revenue","R4385","OP Nursing","09-INCOME","Income","09C","Customer and Client Receipts","8557","Nursing Home Charges","90773867","201706",12/09/2016 00:00:00,84.14,"53350","Nursing Homes","REDACTED DATA","BUPA CARE HOMES(GABLE COURT)","",,"239731641"
"London Borough of Redbridge","http://opendatacommunities.org/doc/london-borough-council/redbridge","6BADULTSOCIA","Adult Social Care","6COLDINCMENT","Older People (65 or over) incl. Older Mentally Ill","REV","Revenue","R4385","OP Nursing","09-INCOME","Income","09C","Customer and Client Receipts","8557","Nursing Home Charges","90773867","201706",12/09/2016 00:00:00,-1344,"53350","Nursing Homes","REDACTED DATA","BUPA CARE HOMES(GABLE COURT)","",,"239731641"
"London Borough of Redbridge","http://opendatacommunities.org/doc/london-borough-council/redbridge","6BADULTSOCIA","Adult Social Care","6CADLEARNDIS","Adults Under 65 with Learning Disabilities","REV","Revenue","R4215","LD Direct Payments","06-TRANSFER","Transfer Payments","06B","Social Services Clients","7053","Direct Payments","3443527","201706",19/09/2016 00:00:00,5008.6,"90005","Home Care Services DP","REDACTED DATA","REDACTED DATA","",,""
"London Borough of Redbridge","http://opendatacommunities.org/doc/london-borough-council/redbridge","6BADULTSOCIA","Adult Social Care","6CADLEARNDIS","Adults Under 65 with Learning Disabilities","REV","Revenue","R4215","LD Direct Payments","09-INCOME","Income","09C","Customer and Client Receipts","8545","Direct Payments Income","3443527","201706",19/09/2016 00:00:00,-337.6,"90005","Home Care Services DP","REDACTED DATA","REDACTED DATA","",,""
"London Borough of Redbridge","http://opendatacommunities.org/doc/london-borough-council/redbridge","2BPLANPOL","Planning Policy","","","REV","Revenue","R6505","Planning Policy","01-EMPLOYEES","Employees","01A","Direct employee expenses","4","Agency Staff - Pay","60320961","201706",07/09/2016 00:00:00,3885,"31230","Employment and Recruitment Agencies","REDACTED DATA","VIVID RESOURCING LIMITED","8898919045","http://opencorporates.com/companies/gb/8898919045",""
"London Borough of Redbridge","http://opendatacommunities.org/doc/london-borough-council/redbridge","9BNONBVO","Outside the BVACOP Objective Structure","9CNONBVO","Outside the BVACOP Objective Structure","CAP","Capital","C2108","Aids and Adaptations","99-NONBV","Capital, Balance Sheet and Control","50E","Capital - Contract Payments","9150","Main Contract","60319523","201706",07/09/2016 00:00:00,4655,"73190","Stairlifts - Mnfrs and Installers","REDACTED DATA","EMS STAIRLIFTS LTD","6427222","http://opencorporates.com/companies/gb/6427222","632372652"
"London Borough of Redbridge","http://opendatacommunities.org/doc/london-borough-council/redbridge","3BLEACENTFND","LEA Centrally Held School Funds","3CNONSCH","Non Schools","REV","Revenue","R2234","Colleges and ISP Top up fees","05-THIRD","Third Party Payments","05G","Other establishments","7433","OOB Post 16 Top Up","60321469","201706",05/09/2016 00:00:00,4652.05,"64710","Residential Care Homes","REDACTED DATA","ST ELIZABETH'S CENTRE","3492921","http://opencorporates.com/companies/gb/3492921","216707373"
"London Borough of Redbridge","http://opendatacommunities.org/doc/london-borough-council/redbridge","1BCENTRALPUB","Central Services to the Public","1CLOCALTAXCO","Local Tax Collection","REV","Revenue","R5760","Local Tax Collection","04-SUPPLIES","Supplies And Services","04D","Printing, stationery and general office expenses","5706","Printing","60319108","201706",30/08/2016 00:00:00,3850.92,"49180","Mailing Houses","REDACTED DATA","DSI BILLING SERVICES","3823171","http://opencorporates.com/companies/gb/3823171","739980671"
"London Borough of Redbridge","http://opendatacommunities.org/doc/london-borough-council/redbridge","1BOTHEROPI&E","Other Operating Income & Expenditure","1CTRADSURDEF","Trading Account Surpluses & Deficits","REV","Revenue","R9152","Financial Services","01-EMPLOYEES","Employees","01A","Direct employee expenses","4","Agency Staff - Pay","60320640","201706",24/08/2016 00:00:00,3850,"31230","Employment and Recruitment Agencies","REDACTED DATA","ALLEN LANE LIMITED","5115229","http://opencorporates.com/companies/gb/5115229","835970985"
"London Borough of Redbridge","http://opendatacommunities.org/doc/london-borough-council/redbridge","1BOTHEROPI&E","Other Operating Income & Expenditure","1CTRADSURDEF","Trading Account Surpluses & Deficits","REV","Revenue","R9152","Financial Services","01-EMPLOYEES","Employees","01A","Direct employee expenses","4","Agency Staff - Pay","60320645","201706",24/08/2016 00:00:00,3850,"31230","Employment and Recruitment Agencies","REDACTED DATA","ALLEN LANE LIMITED","5115229","http://opencorporates.com/companies/gb/5115229","835970985"
"London Borough of Redbridge","http://opendatacommunities.org/doc/london-borough-council/redbridge","1BOTHEROPI&E","Other Operating Income & Expenditure","1CTRADSURDEF","Trading Account Surpluses & Deficits","REV","Revenue","R9152","Financial Services","01-EMPLOYEES","Employees","01A","Direct employee expenses","4","Agency Staff - Pay","60321050","201706",13/09/2016 00:00:00,3850,"31230","Employment and Recruitment Agencies","REDACTED DATA","ALLEN LANE LIMITED","5115229","http://opencorporates.com/companies/gb/5115229","835970985"
"London Borough of Redbridge","http://opendatacommunities.org/doc/london-borough-council/redbridge","1BOTHEROPI&E","Other Operating Income & Expenditure","1CTRADSURDEF","Trading Account Surpluses & Deficits","REV","Revenue","R9152","Financial Services","01-EMPLOYEES","Employees","01A","Direct employee expenses","4","Agency Staff - Pay","60319673","201706",23/08/2016 00:00:00,3850,"31230","Employment and Recruitment Agencies","REDACTED DATA","ALLEN LANE LIMITED","5115229","http://opencorporates.com/companies/gb/5115229","835970985"
"London Borough of Redbridge","http://opendatacommunities.org/doc/london-borough-council/redbridge","3BINDSCHFUND","Individual School Funds","3CNONSCH","Non Schools","REV","Revenue","R2001","Secondary Schools SEN Top Up Fees","05-THIRD","Third Party Payments","05G","Other establishments","7432","OOB Pre 16 Top Up","60321310","201706",23/09/2016 00:00:00,1419.04,"67981","Schools - Local Authority","REDACTED DATA","ST EDWARD'S C OF E SCHOOL & SIXTH FORM COLLEGE","7709271","http://opencorporates.com/companies/gb/7709271",""
"London Borough of Redbridge","http://opendatacommunities.org/doc/london-borough-council/redbridge","3BINDSCHFUND","Individual School Funds","3CNONSCH","Non Schools","REV","Revenue","R2001","Secondary Schools SEN Top Up Fees","05-THIRD","Third Party Payments","05G","Other establishments","7432","OOB Pre 16 Top Up","60321310","201706",23/09/2016 00:00:00,3192.84,"67981","Schools - Local Authority","REDACTED DATA","ST EDWARD'S C OF E SCHOOL & SIXTH FORM COLLEGE","7709271","http://opencorporates.com/companies/gb/7709271",""
"London Borough of Redbridge","http://opendatacommunities.org/doc/london-borough-council/redbridge","6BADULTSOCIA","Adult Social Care","6CADLEARNDIS","Adults Under 65 with Learning Disabilities","REV","Revenue","R4215","LD Direct Payments","06-TRANSFER","Transfer Payments","06B","Social Services Clients","7053","Direct Payments","3443490","201706",19/09/2016 00:00:00,4709,"90005","Home Care Services DP","REDACTED DATA","REDACTED DATA","",,""
"London Borough of Redbridge","http://opendatacommunities.org/doc/london-borough-council/redbridge","6BADULTSOCIA","Adult Social Care","6CADLEARNDIS","Adults Under 65 with Learning Disabilities","REV","Revenue","R4215","LD Direct Payments","09-INCOME","Income","09C","Customer and Client Receipts","8545","Direct Payments Income","3443490","201706",19/09/2016 00:00:00,-99.48,"90005","Home Care Services DP","REDACTED DATA","REDACTED DATA","",,""
"London Borough of Redbridge","http://opendatacommunities.org/doc/london-borough-council/redbridge","6BADULTSOCIA","Adult Social Care","6CADLEARNDIS","Adults Under 65 with Learning Disabilities","REV","Revenue","R4188","LD - Residential Care","05-THIRD","Third Party Payments","05F","Voluntary associations","6802","Residential Homes","90774256","201706",12/09/2016 00:00:00,5645.52,"64710","Residential Care Homes","REDACTED DATA","SEEABILITY - THE ROYAL SCHOOL FO THE BLIND","CHARITY  255913","http://opencorporates.com/companies/gb/CHARITY  255913","235566158"
"London Borough of Redbridge","http://opendatacommunities.org/doc/london-borough-council/redbridge","6BADULTSOCIA","Adult Social Care","6CADLEARNDIS","Adults Under 65 with Learning Disabilities","REV","Revenue","R4188","LD - Residential Care","09-INCOME","Income","09C","Customer and Client Receipts","8555","Accommodation Charges","90774256","201706",12/09/2016 00:00:00,-524.7,"64710","Residential Care Homes","REDACTED DATA","SEEABILITY - THE ROYAL SCHOOL FO THE BLIND","CHARITY  255913","http://opencorporates.com/companies/gb/CHARITY  255913","235566158"
"London Borough of Redbridge","http://opendatacommunities.org/doc/london-borough-council/redbridge","6BADULTSOCIA","Adult Social Care","6CADLEARNDIS","Adults Under 65 with Learning Disabilities","REV","Revenue","R4188","LD - Residential Care","09-INCOME","Income","09C","Customer and Client Receipts","8555","Accommodation Charges","90774256","201706",12/09/2016 00:00:00,-513.56,"64710","Residential Care Homes","REDACTED DATA","SEEABILITY - THE ROYAL SCHOOL FO THE BLIND","CHARITY  255913","http://opencorporates.com/companies/gb/CHARITY  255913","235566158"
"London Borough of Redbridge","http://opendatacommunities.org/doc/london-borough-council/redbridge","6BADULTSOCIA","Adult Social Care","6CADLEARNDIS","Adults Under 65 with Learning Disabilities","REV","Revenue","R4241","CCG � LD Continuing Care","06-TRANSFER","Transfer Payments","06B","Social Services Clients","7053","Direct Payments","3443599","201706",19/09/2016 00:00:00,4596,"90005","Home Care Services DP","REDACTED DATA","REDACTED DATA","",,""
"London Borough of Redbridge","http://opendatacommunities.org/doc/london-borough-council/redbridge","6BADULTSOCIA","Adult Social Care","6CADLEARNDIS","Adults Under 65 with Learning Disabilities","REV","Revenue","R4215","LD Direct Payments","06-TRANSFER","Transfer Payments","06B","Social Services Clients","7053","Direct Payments","3444021","201706",19/09/2016 00:00:00,4586.96,"90005","Home Care Services DP","REDACTED DATA","REDACTED DATA","",,""
"London Borough of Redbridge","http://opendatacommunities.org/doc/london-borough-council/redbridge","3BNONSCHFUND","Non-School Funding","6CCHILLOOKED","Children Looked After","REV","Revenue","R2238","Looked After Children Placements LA","05-THIRD","Third Party Payments","05H","Private contractors","6907","Private Homes","60319005","201706",01/09/2016 00:00:00,3800.16,"1266","Accommodation Agencies - Residential","REDACTED DATA","NETPEX  LTD","3140728","http://opencorporates.com/companies/gb/3140728","821068356"
"London Borough of Redbridge","http://opendatacommunities.org/doc/london-borough-council/redbridge","6BADULTSOCIA","Adult Social Care","6COLDINCMENT","Older People (65 or over) incl. Older Mentally Ill","REV","Revenue","R4385","OP Nursing","05-THIRD","Third Party Payments","05H","Private contractors","6909","Nursing Homes","90773627","201706",09/08/2016 00:00:00,1120,"53350","Nursing Homes","REDACTED DATA","CARE UK COMMUNITY PARTNERSHIPS LTD","1668247","http://opencorporates.com/companies/gb/1668247",""
"London Borough of Redbridge","http://opendatacommunities.org/doc/london-borough-council/redbridge","6BADULTSOCIA","Adult Social Care","6COLDINCMENT","Older People (65 or over) incl. Older Mentally Ill","REV","Revenue","R4385","OP Nursing","05-THIRD","Third Party Payments","05H","Private contractors","6909","Nursing Homes","90773627","201706",09/08/2016 00:00:00,5500,"53350","Nursing Homes","REDACTED DATA","CARE UK COMMUNITY PARTNERSHIPS LTD","1668247","http://opencorporates.com/companies/gb/1668247",""
"London Borough of Redbridge","http://opendatacommunities.org/doc/london-borough-council/redbridge","6BADULTSOCIA","Adult Social Care","6COLDINCMENT","Older People (65 or over) incl. Older Mentally Ill","REV","Revenue","R4385","OP Nursing","05-THIRD","Third Party Payments","05H","Private contractors","6909","Nursing Homes","90773627","201706",09/08/2016 00:00:00,5130,"53350","Nursing Homes","REDACTED DATA","CARE UK COMMUNITY PARTNERSHIPS LTD","1668247","http://opencorporates.com/companies/gb/1668247",""
"London Borough of Redbridge","http://opendatacommunities.org/doc/london-borough-council/redbridge","6BADULTSOCIA","Adult Social Care","6COLDINCMENT","Older People (65 or over) incl. Older Mentally Ill","REV","Revenue","R4385","OP Nursing","09-INCOME","Income","09C","Customer and Client Receipts","8557","Nursing Home Charges","90773627","201706",09/08/2016 00:00:00,-941.7,"53350","Nursing Homes","REDACTED DATA","CARE UK COMMUNITY PARTNERSHIPS LTD","1668247","http://opencorporates.com/companies/gb/1668247",""
"London Borough of Redbridge","http://opendatacommunities.org/doc/london-borough-council/redbridge","6BADULTSOCIA","Adult Social Care","6COLDINCMENT","Older People (65 or over) incl. Older Mentally Ill","REV","Revenue","R4385","OP Nursing","09-INCOME","Income","09C","Customer and Client Receipts","8557","Nursing Home Charges","90773627","201706",09/08/2016 00:00:00,-5130,"53350","Nursing Homes","REDACTED DATA","CARE UK COMMUNITY PARTNERSHIPS LTD","1668247","http://opencorporates.com/companies/gb/1668247",""
"London Borough of Redbridge","http://opendatacommunities.org/doc/london-borough-council/redbridge","1BCENTRALPUB","Central Services to the Public","1CLOCALTAXCO","Local Tax Collection","REV","Revenue","R5760","Local Tax Collection","01-EMPLOYEES","Employees","01A","Direct employee expenses","4","Agency Staff - Pay","3445520","201706",21/09/2016 00:00:00,892.5,"31230","Employment and Recruitment Agencies","REDACTED DATA","ADECCO UK LIMITED","593232","http://opencorporates.com/companies/gb/593232","232347975"
"London Borough of Redbridge","http://opendatacommunities.org/doc/london-borough-council/redbridge","1BCENTRALPUB","Central Services to the Public","1CLOCALTAXCO","Local Tax Collection","REV","Revenue","R5760","Local Tax Collection","01-EMPLOYEES","Employees","01A","Direct employee expenses","4","Agency Staff - Pay","3445520","201706",21/09/2016 00:00:00,474.48,"31230","Employment and Recruitment Agencies","REDACTED DATA","ADECCO UK LIMITED","593232","http://opencorporates.com/companies/gb/593232","232347975"
"London Borough of Redbridge","http://opendatacommunities.org/doc/london-borough-council/redbridge","1BCENTRALPUB","Central Services to the Public","1CLOCALTAXCO","Local Tax Collection","REV","Revenue","R5760","Local Tax Collection","01-EMPLOYEES","Employees","01A","Direct employee expenses","4","Agency Staff - Pay","3445520","201706",21/09/2016 00:00:00,760.32,"31230","Employment and Recruitment Agencies","REDACTED DATA","ADECCO UK LIMITED","593232","http://opencorporates.com/companies/gb/593232","232347975"
"London Borough of Redbridge","http://opendatacommunities.org/doc/london-borough-council/redbridge","1BCENTRALPUB","Central Services to the Public","1CLOCALTAXCO","Local Tax Collection","REV","Revenue","R5760","Local Tax Collection","01-EMPLOYEES","Employees","01A","Direct employee expenses","4","Agency Staff - Pay","3445520","201706",21/09/2016 00:00:00,855.36,"31230","Employment and Recruitment Agencies","REDACTED DATA","ADECCO UK LIMITED","593232","http://opencorporates.com/companies/gb/593232","232347975"
"London Borough of Redbridge","http://opendatacommunities.org/doc/london-borough-council/redbridge","1BCENTRALPUB","Central Services to the Public","1CLOCALTAXCO","Local Tax Collection","REV","Revenue","R5760","Local Tax Collection","01-EMPLOYEES","Employees","01A","Direct employee expenses","4","Agency Staff - Pay","3445520","201706",21/09/2016 00:00:00,248.33,"31230","Employment and Recruitment Agencies","REDACTED DATA","ADECCO UK LIMITED","593232","http://opencorporates.com/companies/gb/593232","232347975"
"London Borough of Redbridge","http://opendatacommunities.org/doc/london-borough-council/redbridge","1BCENTRALPUB","Central Services to the Public","1CTRADSURDEF","Trading Account Surpluses & Deficits","REV","Revenue","R5753","Cashiers","01-EMPLOYEES","Employees","01A","Direct employee expenses","4","Agency Staff - Pay","3445520","201706",21/09/2016 00:00:00,501.75,"31230","Employment and Recruitment Agencies","REDACTED DATA","ADECCO UK LIMITED","593232","http://opencorporates.com/companies/gb/593232","232347975"
"London Borough of Redbridge","http://opendatacommunities.org/doc/london-borough-council/redbridge","1BCENTRALPUB","Central Services to the Public","1CTRADSURDEF","Trading Account Surpluses & Deficits","REV","Revenue","R5754","Income","01-EMPLOYEES","Employees","01A","Direct employee expenses","4","Agency Staff - Pay","3445520","201706",21/09/2016 00:00:00,198.56,"31230","Employment and Recruitment Agencies","REDACTED DATA","ADECCO UK LIMITED","593232","http://opencorporates.com/companies/gb/593232","232347975"
"London Borough of Redbridge","http://opendatacommunities.org/doc/london-borough-council/redbridge","1BCENTRALPUB","Central Services to the Public","1CTRADSURDEF","Trading Account Surpluses & Deficits","REV","Revenue","R5754","Income","01-EMPLOYEES","Employees","01A","Direct employee expenses","4","Agency Staff - Pay","3445520","201706",21/09/2016 00:00:00,397.12,"31230","Employment and Recruitment Agencies","REDACTED DATA","ADECCO UK LIMITED","593232","http://opencorporates.com/companies/gb/593232","232347975"
"London Borough of Redbridge","http://opendatacommunities.org/doc/london-borough-council/redbridge","1BCENTRALPUB","Central Services to the Public","1CTRADSURDEF","Trading Account Surpluses & Deficits","REV","Revenue","R5770","Income Assessment","01-EMPLOYEES","Employees","01A","Direct employee expenses","4","Agency Staff - Pay","3445520","201706",21/09/2016 00:00:00,443.52,"31230","Employment and Recruitment Agencies","REDACTED DATA","ADECCO UK LIMITED","593232","http://opencorporates.com/companies/gb/593232","232347975"
"London Borough of Redbridge","http://opendatacommunities.org/doc/london-borough-council/redbridge","1BCENTRALPUB","Central Services to the Public","1CTRADSURDEF","Trading Account Surpluses & Deficits","REV","Revenue","R5820","Customer Services Team","01-EMPLOYEES","Employees","01A","Direct employee expenses","4","Agency Staff - Pay","3445520","201706",21/09/2016 00:00:00,615.14,"31230","Employment and Recruitment Agencies","REDACTED DATA","ADECCO UK LIMITED","593232","http://opencorporates.com/companies/gb/593232","232347975"
"London Borough of Redbridge","http://opendatacommunities.org/doc/london-borough-council/redbridge","1BCENTRALPUB","Central Services to the Public","1CTRADSURDEF","Trading Account Surpluses & Deficits","REV","Revenue","R5824","P and B Telephone Team","01-EMPLOYEES","Employees","01A","Direct employee expenses","4","Agency Staff - Pay","3445520","201706",21/09/2016 00:00:00,759.38,"31230","Employment and Recruitment Agencies","REDACTED DATA","ADECCO UK LIMITED","593232","http://opencorporates.com/companies/gb/593232","232347975"
"London Borough of Redbridge","http://opendatacommunities.org/doc/london-borough-council/redbridge","1BCENTRALPUB","Central Services to the Public","1CTRADSURDEF","Trading Account Surpluses & Deficits","REV","Revenue","R5824","P and B Telephone Team","01-EMPLOYEES","Employees","01A","Direct employee expenses","4","Agency Staff - Pay","3445520","201706",21/09/2016 00:00:00,726.8,"31230","Employment and Recruitment Agencies","REDACTED DATA","ADECCO UK LIMITED","593232","http://opencorporates.com/companies/gb/593232","232347975"
"London Borough of Redbridge","http://opendatacommunities.org/doc/london-borough-council/redbridge","1BCENTRALPUB","Central Services to the Public","1CTRADSURDEF","Trading Account Surpluses & Deficits","REV","Revenue","R5824","P and B Telephone Team","01-EMPLOYEES","Employees","01A","Direct employee expenses","4","Agency Staff - Pay","3445520","201706",21/09/2016 00:00:00,653.4,"31230","Employment and Recruitment Agencies","REDACTED DATA","ADECCO UK LIMITED","593232","http://opencorporates.com/companies/gb/593232","232347975"
"London Borough of Redbridge","http://opendatacommunities.org/doc/london-borough-council/redbridge","1BCENTRALPUB","Central Services to the Public","1CTRADSURDEF","Trading Account Surpluses & Deficits","REV","Revenue","R6755","Emergency Plan Stratgy","01-EMPLOYEES","Employees","01A","Direct employee expenses","4","Agency Staff - Pay","3445520","201706",21/09/2016 00:00:00,54.05,"31230","Employment and Recruitment Agencies","REDACTED DATA","ADECCO UK LIMITED","593232","http://opencorporates.com/companies/gb/593232","232347975"
"London Borough of Redbridge","http://opendatacommunities.org/doc/london-borough-council/redbridge","1BOTHEROPI&E","Other Operating Income & Expenditure","1CELECTIONS","Elections","REV","Revenue","R9362","Electoral Registration","01-EMPLOYEES","Employees","01A","Direct employee expenses","4","Agency Staff - Pay","3445520","201706",21/09/2016 00:00:00,381.33,"31230","Employment and Recruitment Agencies","REDACTED DATA","ADECCO UK LIMITED","593232","http://opencorporates.com/companies/gb/593232","232347975"
"London Borough of Redbridge","http://opendatacommunities.org/doc/london-borough-council/redbridge","1BOTHEROPI&E","Other Operating Income & Expenditure","1CELECTIONS","Elections","REV","Revenue","R9362","Electoral Registration","01-EMPLOYEES","Employees","01A","Direct employee expenses","4","Agency Staff - Pay","3445520","201706",21/09/2016 00:00:00,434.85,"31230","Employment and Recruitment Agencies","REDACTED DATA","ADECCO UK LIMITED","593232","http://opencorporates.com/companies/gb/593232","232347975"
"London Borough of Redbridge","http://opendatacommunities.org/doc/london-borough-council/redbridge","1BOTHEROPI&E","Other Operating Income & Expenditure","1CELECTIONS","Elections","REV","Revenue","R9362","Electoral Registration","01-EMPLOYEES","Employees","01A","Direct employee expenses","4","Agency Staff - Pay","3445520","201706",21/09/2016 00:00:00,495.06,"31230","Employment and Recruitment Agencies","REDACTED DATA","ADECCO UK LIMITED","593232","http://opencorporates.com/companies/gb/593232","232347975"
"London Borough of Redbridge","http://opendatacommunities.org/doc/london-borough-council/redbridge","1BOTHEROPI&E","Other Operating Income & Expenditure","1CTRADSURDEF","Trading Account Surpluses & Deficits","REV","Revenue","R7207","Building Services","01-EMPLOYEES","Employees","01A","Direct employee expenses","4","Agency Staff - Pay","3445520","201706",21/09/2016 00:00:00,1415.63,"31230","Employment and Recruitment Agencies","REDACTED DATA","ADECCO UK LIMITED","593232","http://opencorporates.com/companies/gb/593232","232347975"
"London Borough of Redbridge","http://opendatacommunities.org/doc/london-borough-council/redbridge","1BOTHEROPI&E","Other Operating Income & Expenditure","1CTRADSURDEF","Trading Account Surpluses & Deficits","REV","Revenue","R7207","Building Services","01-EMPLOYEES","Employees","01A","Direct employee expenses","4","Agency Staff - Pay","3445520","201706",21/09/2016 00:00:00,817,"31230","Employment and Recruitment Agencies","REDACTED DATA","ADECCO UK LIMITED","593232","http://opencorporates.com/companies/gb/593232","232347975"
"London Borough of Redbridge","http://opendatacommunities.org/doc/london-borough-council/redbridge","1BOTHEROPI&E","Other Operating Income & Expenditure","1CTRADSURDEF","Trading Account Surpluses & Deficits","REV","Revenue","R7207","Building Services","01-EMPLOYEES","Employees","01A","Direct employee expenses","4","Agency Staff - Pay","3445520","201706",21/09/2016 00:00:00,692.3,"31230","Employment and Recruitment Agencies","REDACTED DATA","ADECCO UK LIMITED","593232","http://opencorporates.com/companies/gb/593232","232347975"
"London Borough of Redbridge","http://opendatacommunities.org/doc/london-borough-council/redbridge","1BOTHEROPI&E","Other Operating Income & Expenditure","1CTRADSURDEF","Trading Account Surpluses & Deficits","REV","Revenue","R9051","Strategic Procurement","01-EMPLOYEES","Employees","01A","Direct employee expenses","4","Agency Staff - Pay","3445520","201706",21/09/2016 00:00:00,2919.2,"31230","Employment and Recruitment Agencies","REDACTED DATA","ADECCO UK LIMITED","593232","http://opencorporates.com/companies/gb/593232","232347975"
"London Borough of Redbridge","http://opendatacommunities.org/doc/london-borough-council/redbridge","1BOTHEROPI&E","Other Operating Income & Expenditure","1CTRADSURDEF","Trading Account Surpluses & Deficits","REV","Revenue","R9152","Financial Services","01-EMPLOYEES","Employees","01A","Direct employee expenses","4","Agency Staff - Pay","3445520","201706",21/09/2016 00:00:00,1204.88,"31230","Employment and Recruitment Agencies","REDACTED DATA","ADECCO UK LIMITED","593232","http://opencorporates.com/companies/gb/593232","232347975"
"London Borough of Redbridge","http://opendatacommunities.org/doc/london-borough-council/redbridge","6BADULTSOCIA","Adult Social Care","6COLDINCMENT","Older People (65 or over) incl. Older Mentally Ill","REV","Revenue","R4385","OP Nursing","09-INCOME","Income","09C","Customer and Client Receipts","8557","Nursing Home Charges","90773627","201706",09/08/2016 00:00:00,-1120,"53350","Nursing Homes","REDACTED DATA","CARE UK COMMUNITY PARTNERSHIPS LTD","1668247","http://opencorporates.com/companies/gb/1668247",""
"London Borough of Redbridge","http://opendatacommunities.org/doc/london-borough-council/redbridge","3BNONSCHFUND","Non-School Funding","6CCHILLOOKED","Children Looked After","REV","Revenue","R2238","Looked After Children Placements LA","05-THIRD","Third Party Payments","05H","Private contractors","6917","Fostering Costs - Agency","60319214","201706",31/08/2016 00:00:00,4557,"1880","Adoption and Fostering","REDACTED DATA","NATIONAL FOSTERING AGENCY","3127814","http://opencorporates.com/companies/gb/3127814","673006159"
"London Borough of Redbridge","http://opendatacommunities.org/doc/london-borough-council/redbridge","6BSOCIALSERV","Social Services","6CASYLUMSEEK","Asylum Seekers","REV","Revenue","R2129","Unaccompanied Asylum Seekers","05-THIRD","Third Party Payments","05H","Private contractors","6917","Fostering Costs - Agency","60321194","201706",21/09/2016 00:00:00,4539.29,"1880","Adoption and Fostering","REDACTED DATA","FUTURE FOSTERING LTD","7159185","http://opencorporates.com/companies/gb/7159185",""
"London Borough of Redbridge","http://opendatacommunities.org/doc/london-borough-council/redbridge","6BADULTSOCIA","Adult Social Care","6CADLEARNDIS","Adults Under 65 with Learning Disabilities","REV","Revenue","R4241","CCG � LD Continuing Care","06-TRANSFER","Transfer Payments","06B","Social Services Clients","7053","Direct Payments","3444039","201706",19/09/2016 00:00:00,4515.12,"90005","Home Care Services DP","REDACTED DATA","REDACTED DATA","",,""
"London Borough of Redbridge","http://opendatacommunities.org/doc/london-borough-council/redbridge","3BLEACENTFND","LEA Centrally Held School Funds","3CSCHSTRATMG","Schools Strategic Management","REV","Revenue","R3507","Sch Admissions Sectio","01-EMPLOYEES","Employees","01B","Indirect employee expenses","2403","External Training","60318710","201705",26/08/2016 00:00:00,3755,"79980","Training Services","REDACTED DATA","TRAINING SYNERGY LTD","5333127","http://opencorporates.com/companies/gb/5333127","853747690"
"London Borough of Redbridge","http://opendatacommunities.org/doc/london-borough-council/redbridge","1BOTHEROPI&E","Other Operating Income & Expenditure","1CTRADSURDEF","Trading Account Surpluses & Deficits","REV","Revenue","R9149","Building Cleaning (Holding)","02-PREMISES","Premises","02I","Grounds maintenance costs","4750","Grounds Maintenance","60319898","201706",16/07/2016 00:00:00,3747.19,"90043","Highway Maintenance","REDACTED DATA","S H GOSS & CO LTD","",,""
"London Borough of Redbridge","http://opendatacommunities.org/doc/london-borough-council/redbridge","1BOTHEROPI&E","Other Operating Income & Expenditure","1CTRADSURDEF","Trading Account Surpluses & Deficits","REV","Revenue","R9149","Building Cleaning (Holding)","02-PREMISES","Premises","02I","Grounds maintenance costs","4750","Grounds Maintenance","60320893","201706",16/08/2016 00:00:00,3747.19,"90043","Highway Maintenance","REDACTED DATA","S H GOSS & CO LTD","",,""
"London Borough of Redbridge","http://opendatacommunities.org/doc/london-borough-council/redbridge","6BADULTSOCIA","Adult Social Care","6CADLEARNDIS","Adults Under 65 with Learning Disabilities","REV","Revenue","R4215","LD Direct Payments","06-TRANSFER","Transfer Payments","06B","Social Services Clients","7053","Direct Payments","3443586","201706",19/09/2016 00:00:00,4482.72,"90005","Home Care Services DP","REDACTED DATA","REDACTED DATA","",,""
"London Borough of Redbridge","http://opendatacommunities.org/doc/london-borough-council/redbridge","6BADULTSOCIA","Adult Social Care","6CADLEARNDIS","Adults Under 65 with Learning Disabilities","REV","Revenue","R4188","LD - Residential Care","05-THIRD","Third Party Payments","05F","Voluntary associations","6802","Residential Homes","90774210","201706",12/09/2016 00:00:00,4881.88,"64710","Residential Care Homes","REDACTED DATA","CAREONE LTD (RUSSELL LODGE)","4270516","http://opencorporates.com/companies/gb/4270516",""
"London Borough of Redbridge","http://opendatacommunities.org/doc/london-borough-council/redbridge","6BADULTSOCIA","Adult Social Care","6CADLEARNDIS","Adults Under 65 with Learning Disabilities","REV","Revenue","R4188","LD - Residential Care","09-INCOME","Income","09C","Customer and Client Receipts","8555","Accommodation Charges","90774210","201706",12/09/2016 00:00:00,-400.6,"64710","Residential Care Homes","REDACTED DATA","CAREONE LTD (RUSSELL LODGE)","4270516","http://opencorporates.com/companies/gb/4270516",""
"London Borough of Redbridge","http://opendatacommunities.org/doc/london-borough-council/redbridge","6BADULTSOCIA","Adult Social Care","6CADLEARNDIS","Adults Under 65 with Learning Disabilities","REV","Revenue","R4383","LD - External Day Care","05-THIRD","Third Party Payments","05H","Private contractors","6904","Day Centres","90778474","201706",13/09/2016 00:00:00,4476.8,"17020","Charities and Voluntary Organisations","REDACTED DATA","VIBRANCE","7094318","http://opencorporates.com/companies/gb/7094318",""
"London Borough of Redbridge","http://opendatacommunities.org/doc/london-borough-council/redbridge","6BADULTSOCIA","Adult Social Care","6CADLEARNDIS","Adults Under 65 with Learning Disabilities","REV","Revenue","R4383","LD - External Day Care","05-THIRD","Third Party Payments","05H","Private contractors","6904","Day Centres","90778472","201706",13/09/2016 00:00:00,4476.8,"17020","Charities and Voluntary Organisations","REDACTED DATA","VIBRANCE","7094318","http://opencorporates.com/companies/gb/7094318",""
"London Borough of Redbridge","http://opendatacommunities.org/doc/london-borough-council/redbridge","6BSOCIALSERV","Social Services","6CASYLUMSEEK","Asylum Seekers","REV","Revenue","R2129","Unaccompanied Asylum Seekers","05-THIRD","Third Party Payments","05H","Private contractors","6917","Fostering Costs - Agency","60319074","201706",01/09/2016 00:00:00,4467.9,"1880","Adoption and Fostering","REDACTED DATA","COMPASS FOSTERING LONDON & EASTERN LTD","3292070","http://opencorporates.com/companies/gb/3292070","153173918"
"London Borough of Redbridge","http://opendatacommunities.org/doc/london-borough-council/redbridge","3BINDSCHFUND","Individual School Funds","3CDELPRIMARY","Delegated Individual Primary School Budgets","REV","Revenue","S2374","GROVE: Headteachers Contingency","04-SUPPLIES","Supplies And Services","04A","Equipment, furniture and materials","5508","General Consumables","60319703","201706",05/09/2016 00:00:00,3720,"29360","Educational Services","REDACTED DATA","MASTER CLASS EDUCATION LTD","6314451","http://opencorporates.com/companies/gb/6314451","919201244"
"London Borough of Redbridge","http://opendatacommunities.org/doc/london-borough-council/redbridge","9BNONBVO","Outside the BVACOP Objective Structure","9CNONBVO","Outside the BVACOP Objective Structure","REV","Revenue","R7701","Veh Admin O'Head A/C","04-SUPPLIES","Supplies And Services","04A","Equipment, furniture and materials","5510","Materials","656196","201705",03/08/2016 00:00:00,620.5,"0","Not Classified","REDACTED DATA","ACORN TRUCK SALES LTD","",,"474770026"
"London Borough of Redbridge","http://opendatacommunities.org/doc/london-borough-council/redbridge","9BNONBVO","Outside the BVACOP Objective Structure","9CNONBVO","Outside the BVACOP Objective Structure","REV","Revenue","R7701","Veh Admin O'Head A/C","04-SUPPLIES","Supplies And Services","04A","Equipment, furniture and materials","5510","Materials","656196","201705",03/08/2016 00:00:00,921.23,"0","Not Classified","REDACTED DATA","ACORN TRUCK SALES LTD","",,"474770026"
"London Borough of Redbridge","http://opendatacommunities.org/doc/london-borough-council/redbridge","9BNONBVO","Outside the BVACOP Objective Structure","9CNONBVO","Outside the BVACOP Objective Structure","REV","Revenue","R7701","Veh Admin O'Head A/C","04-SUPPLIES","Supplies And Services","04A","Equipment, furniture and materials","5510","Materials","656196","201705",03/08/2016 00:00:00,566.78,"0","Not Classified","REDACTED DATA","ACORN TRUCK SALES LTD","",,"474770026"
"London Borough of Redbridge","http://opendatacommunities.org/doc/london-borough-council/redbridge","9BNONBVO","Outside the BVACOP Objective Structure","9CNONBVO","Outside the BVACOP Objective Structure","REV","Revenue","R7701","Veh Admin O'Head A/C","04-SUPPLIES","Supplies And Services","04A","Equipment, furniture and materials","5510","Materials","656196","201705",03/08/2016 00:00:00,266.39,"0","Not Classified","REDACTED DATA","ACORN TRUCK SALES LTD","",,"474770026"
"London Borough of Redbridge","http://opendatacommunities.org/doc/london-borough-council/redbridge","9BNONBVO","Outside the BVACOP Objective Structure","9CNONBVO","Outside the BVACOP Objective Structure","REV","Revenue","R7701","Veh Admin O'Head A/C","04-SUPPLIES","Supplies And Services","04A","Equipment, furniture and materials","5510","Materials","656196","201705",03/08/2016 00:00:00,160.7,"0","Not Classified","REDACTED DATA","ACORN TRUCK SALES LTD","",,"474770026"
"London Borough of Redbridge","http://opendatacommunities.org/doc/london-borough-council/redbridge","9BNONBVO","Outside the BVACOP Objective Structure","9CNONBVO","Outside the BVACOP Objective Structure","REV","Revenue","R7701","Veh Admin O'Head A/C","04-SUPPLIES","Supplies And Services","04A","Equipment, furniture and materials","5510","Materials","656196","201705",03/08/2016 00:00:00,597.72,"0","Not Classified","REDACTED DATA","ACORN TRUCK SALES LTD","",,"474770026"
"London Borough of Redbridge","http://opendatacommunities.org/doc/london-borough-council/redbridge","9BNONBVO","Outside the BVACOP Objective Structure","9CNONBVO","Outside the BVACOP Objective Structure","REV","Revenue","R7701","Veh Admin O'Head A/C","04-SUPPLIES","Supplies And Services","04A","Equipment, furniture and materials","5510","Materials","656196","201705",03/08/2016 00:00:00,431.04,"0","Not Classified","REDACTED DATA","ACORN TRUCK SALES LTD","",,"474770026"
"London Borough of Redbridge","http://opendatacommunities.org/doc/london-borough-council/redbridge","9BNONBVO","Outside the BVACOP Objective Structure","9CNONBVO","Outside the BVACOP Objective Structure","REV","Revenue","R7701","Veh Admin O'Head A/C","04-SUPPLIES","Supplies And Services","04A","Equipment, furniture and materials","5510","Materials","656196","201705",03/08/2016 00:00:00,145.18,"0","Not Classified","REDACTED DATA","ACORN TRUCK SALES LTD","",,"474770026"
"London Borough of Redbridge","http://opendatacommunities.org/doc/london-borough-council/redbridge","6BADULTSOCIA","Adult Social Care","6COLDINCMENT","Older People (65 or over) incl. Older Mentally Ill","REV","Revenue","R4211","Older People Direct Payments","06-TRANSFER","Transfer Payments","06B","Social Services Clients","7053","Direct Payments","70088870","201706",22/09/2016 00:00:00,4448.6,"90005","Home Care Services DP","REDACTED DATA","REDACTED DATA","",,""
"London Borough of Redbridge","http://opendatacommunities.org/doc/london-borough-council/redbridge","2BECODEV","Economic Development","","","REV","Revenue","R9896","Redbridge Investment Vehicle","04-SUPPLIES","Supplies And Services","04E","Services","5754","Consultancy","60321951","201706",07/06/2016 00:00:00,3700,"61896","Property and Estate Management","REDACTED DATA","GLENNY LLP","OC308550","http://opencorporates.com/companies/gb/OC308550","246358643"
"London Borough of Redbridge","http://opendatacommunities.org/doc/london-borough-council/redbridge","3BINDSCHFUND","Individual School Funds","3CDELPRIMARY","Delegated Individual Primary School Budgets","REV","Revenue","S2737","Winston : ADMINSTRATION","04-SUPPLIES","Supplies And Services","04A","Equipment, furniture and materials","5506","Furniture & Fittings - Purchase","60321302","201706",22/09/2016 00:00:00,3700,"29360","Educational Services","REDACTED DATA","MARK BRADFORD","",,"188585444"
"London Borough of Redbridge","http://opendatacommunities.org/doc/london-borough-council/redbridge","6BADULTSOCIA","Adult Social Care","6CADLEARNDIS","Adults Under 65 with Learning Disabilities","REV","Revenue","R4185","LD - Supported Living","06-TRANSFER","Transfer Payments","06B","Social Services Clients","7066","Supportive Lodgings (Transfer Payments)","90774166","201706",12/09/2016 00:00:00,4432,"17020","Charities and Voluntary Organisations","REDACTED DATA","MENCAP","550457","http://opencorporates.com/companies/gb/550457","233010136"
"London Borough of Redbridge","http://opendatacommunities.org/doc/london-borough-council/redbridge","6BADULTSOCIA","Adult Social Care","6CADLEARNDIS","Adults Under 65 with Learning Disabilities","REV","Revenue","R4188","LD - Residential Care","05-THIRD","Third Party Payments","05F","Voluntary associations","6802","Residential Homes","90774272","201706",12/09/2016 00:00:00,4734.04,"64710","Residential Care Homes","REDACTED DATA","TEALK SERVICES LTD (THE BEECHES- ILFORD)","4203171","http://opencorporates.com/companies/gb/4203171",""
"London Borough of Redbridge","http://opendatacommunities.org/doc/london-borough-council/redbridge","6BADULTSOCIA","Adult Social Care","6CADLEARNDIS","Adults Under 65 with Learning Disabilities","REV","Revenue","R4188","LD - Residential Care","09-INCOME","Income","09C","Customer and Client Receipts","8555","Accommodation Charges","90774272","201706",12/09/2016 00:00:00,-321.8,"64710","Residential Care Homes","REDACTED DATA","TEALK SERVICES LTD (THE BEECHES- ILFORD)","4203171","http://opencorporates.com/companies/gb/4203171",""
"London Borough of Redbridge","http://opendatacommunities.org/doc/london-borough-council/redbridge","6BADULTSOCIA","Adult Social Care","6COLDINCMENT","Older People (65 or over) incl. Older Mentally Ill","REV","Revenue","R4385","OP Nursing","05-THIRD","Third Party Payments","05H","Private contractors","6909","Nursing Homes","90773865","201706",12/09/2016 00:00:00,1344,"53350","Nursing Homes","REDACTED DATA","BUPA CARE HOMES(GABLE COURT)","",,"239731641"
"London Borough of Redbridge","http://opendatacommunities.org/doc/london-borough-council/redbridge","6BADULTSOCIA","Adult Social Care","6COLDINCMENT","Older People (65 or over) incl. Older Mentally Ill","REV","Revenue","R4385","OP Nursing","05-THIRD","Third Party Payments","05H","Private contractors","6909","Nursing Homes","90773865","201706",12/09/2016 00:00:00,5961.36,"53350","Nursing Homes","REDACTED DATA","BUPA CARE HOMES(GABLE COURT)","",,"239731641"
"London Borough of Redbridge","http://opendatacommunities.org/doc/london-borough-council/redbridge","6BADULTSOCIA","Adult Social Care","6COLDINCMENT","Older People (65 or over) incl. Older Mentally Ill","REV","Revenue","R4385","OP Nursing","09-INCOME","Income","09C","Customer and Client Receipts","8557","Nursing Home Charges","90773865","201706",12/09/2016 00:00:00,-1568.4,"53350","Nursing Homes","REDACTED DATA","BUPA CARE HOMES(GABLE COURT)","",,"239731641"
"London Borough of Redbridge","http://opendatacommunities.org/doc/london-borough-council/redbridge","6BADULTSOCIA","Adult Social Care","6COLDINCMENT","Older People (65 or over) incl. Older Mentally Ill","REV","Revenue","R4385","OP Nursing","09-INCOME","Income","09C","Customer and Client Receipts","8557","Nursing Home Charges","90773865","201706",12/09/2016 00:00:00,-1344,"53350","Nursing Homes","REDACTED DATA","BUPA CARE HOMES(GABLE COURT)","",,"239731641"
"London Borough of Redbridge","http://opendatacommunities.org/doc/london-borough-council/redbridge","2BBUILDCONT","Building Control","","","REV","Revenue","R6502","Enforcement and Appeals","01-EMPLOYEES","Employees","01A","Direct employee expenses","4","Agency Staff - Pay","60319613","201706",07/09/2016 00:00:00,3657,"31230","Employment and Recruitment Agencies","REDACTED DATA","THE OYSTER PARTNERSHIP LTD","5020374","http://opencorporates.com/companies/gb/5020374","832961025"
"London Borough of Redbridge","http://opendatacommunities.org/doc/london-borough-council/redbridge","6BADULTSOCIA","Adult Social Care","6CADLEARNDIS","Adults Under 65 with Learning Disabilities","REV","Revenue","R4188","LD - Residential Care","05-THIRD","Third Party Payments","05F","Voluntary associations","6802","Residential Homes","90774211","201706",12/09/2016 00:00:00,4692.52,"64710","Residential Care Homes","REDACTED DATA","CAREONE LTD (RUSSELL LODGE)","4270516","http://opencorporates.com/companies/gb/4270516",""
"London Borough of Redbridge","http://opendatacommunities.org/doc/london-borough-council/redbridge","6BADULTSOCIA","Adult Social Care","6CADLEARNDIS","Adults Under 65 with Learning Disabilities","REV","Revenue","R4188","LD - Residential Care","09-INCOME","Income","09C","Customer and Client Receipts","8555","Accommodation Charges","90774211","201706",12/09/2016 00:00:00,-321.8,"64710","Residential Care Homes","REDACTED DATA","CAREONE LTD (RUSSELL LODGE)","4270516","http://opencorporates.com/companies/gb/4270516",""
"London Borough of Redbridge","http://opendatacommunities.org/doc/london-borough-council/redbridge","1BOTHEROPI&E","Other Operating Income & Expenditure","1CTRADSURDEF","Trading Account Surpluses & Deficits","REV","Revenue","R9606","Perth Terrace","02-PREMISES","Premises","02B","Energy costs","4000","Electricity","80023316","201706",13/09/2016 00:00:00,3639.54,"39564","Gas Companies","REDACTED DATA","KENT COUNTY COUNCIL (GAS & ELECTRIC)","",,"204269191"
"London Borough of Redbridge","http://opendatacommunities.org/doc/london-borough-council/redbridge","6BADULTSOCIA","Adult Social Care","6CADLEARNDIS","Adults Under 65 with Learning Disabilities","REV","Revenue","R4188","LD - Residential Care","05-THIRD","Third Party Payments","05H","Private contractors","6902","Respite Care","90773847","201706",12/09/2016 00:00:00,2180,"20342","Colleges - Higher Education","REDACTED DATA","RUSKIN MILL TRUST LTD","7252866","http://opencorporates.com/companies/gb/7252866",""
"London Borough of Redbridge","http://opendatacommunities.org/doc/london-borough-council/redbridge","6BADULTSOCIA","Adult Social Care","6CADLEARNDIS","Adults Under 65 with Learning Disabilities","REV","Revenue","R4188","LD - Residential Care","05-THIRD","Third Party Payments","05H","Private contractors","6902","Respite Care","90773847","201706",12/09/2016 00:00:00,2180,"20342","Colleges - Higher Education","REDACTED DATA","RUSKIN MILL TRUST LTD","7252866","http://opencorporates.com/companies/gb/7252866",""
"London Borough of Redbridge","http://opendatacommunities.org/doc/london-borough-council/redbridge","6BADULTSOCIA","Adult Social Care","6CADLEARNDIS","Adults Under 65 with Learning Disabilities","REV","Revenue","R4188","LD - Residential Care","05-THIRD","Third Party Payments","05H","Private contractors","6902","Respite Care","90773846","201706",12/09/2016 00:00:00,2180,"20342","Colleges - Higher Education","REDACTED DATA","RUSKIN MILL TRUST LTD","7252866","http://opencorporates.com/companies/gb/7252866",""
"London Borough of Redbridge","http://opendatacommunities.org/doc/london-borough-council/redbridge","6BADULTSOCIA","Adult Social Care","6CADLEARNDIS","Adults Under 65 with Learning Disabilities","REV","Revenue","R4188","LD - Residential Care","05-THIRD","Third Party Payments","05H","Private contractors","6902","Respite Care","90773846","201706",12/09/2016 00:00:00,2180,"20342","Colleges - Higher Education","REDACTED DATA","RUSKIN MILL TRUST LTD","7252866","http://opencorporates.com/companies/gb/7252866",""
"London Borough of Redbridge","http://opendatacommunities.org/doc/london-borough-council/redbridge","6BADULTSOCIA","Adult Social Care","6COLDINCMENT","Older People (65 or over) incl. Older Mentally Ill","REV","Revenue","R4378","OP Residential","05-THIRD","Third Party Payments","05F","Voluntary associations","6802","Residential Homes","90773909","201706",12/09/2016 00:00:00,4355.52,"64710","Residential Care Homes","REDACTED DATA","ROSEWOOD LODGE","",,""
"London Borough of Redbridge","http://opendatacommunities.org/doc/london-borough-council/redbridge","2BENVIRONMEN","Environmental Services","2CENVTLHEALT","Environmental Health","REV","Revenue","R6759","Redbridge Enforcement Team","05-THIRD","Third Party Payments","05H","Private contractors","6914","Sub-Contractors","60318893","201705",31/08/2016 00:00:00,3625,"57130","Pest and Vermin Control Products","REDACTED DATA","SDK ENVIRONMENTAL LTD","3988788","http://opencorporates.com/companies/gb/3988788","388966174"
"London Borough of Redbridge","http://opendatacommunities.org/doc/london-borough-council/redbridge","3BNONSCHFUND","Non-School Funding","6CCHILLOOKED","Children Looked After","REV","Revenue","R2238","Looked After Children Placements LA","05-THIRD","Third Party Payments","05H","Private contractors","6917","Fostering Costs - Agency","60318978","201706",01/09/2016 00:00:00,4345.2,"1880","Adoption and Fostering","REDACTED DATA","DIVERSE CARE","4482942","http://opencorporates.com/companies/gb/4482942",""
"London Borough of Redbridge","http://opendatacommunities.org/doc/london-borough-council/redbridge","3BNONSCHFUND","Non-School Funding","6CCHILLOOKED","Children Looked After","REV","Revenue","R2238","Looked After Children Placements LA","05-THIRD","Third Party Payments","05H","Private contractors","6917","Fostering Costs - Agency","60318979","201706",01/09/2016 00:00:00,4345.2,"1880","Adoption and Fostering","REDACTED DATA","DIVERSE CARE","4482942","http://opencorporates.com/companies/gb/4482942",""
"London Borough of Redbridge","http://opendatacommunities.org/doc/london-borough-council/redbridge","3BNONSCHFUND","Non-School Funding","6CCHILLOOKED","Children Looked After","REV","Revenue","R2238","Looked After Children Placements LA","05-THIRD","Third Party Payments","05H","Private contractors","6917","Fostering Costs - Agency","60320428","201706",01/09/2016 00:00:00,4337.01,"1880","Adoption and Fostering","REDACTED DATA","BY THE BRIDGE","4050928","http://opencorporates.com/companies/gb/4050928",""
"London Borough of Redbridge","http://opendatacommunities.org/doc/london-borough-council/redbridge","3BNONSCHFUND","Non-School Funding","6CCHILLOOKED","Children Looked After","REV","Revenue","R2238","Looked After Children Placements LA","05-THIRD","Third Party Payments","05H","Private contractors","6917","Fostering Costs - Agency","60320424","201706",01/09/2016 00:00:00,4337.01,"1880","Adoption and Fostering","REDACTED DATA","BY THE BRIDGE","4050928","http://opencorporates.com/companies/gb/4050928",""
"London Borough of Redbridge","http://opendatacommunities.org/doc/london-borough-council/redbridge","6BADULTSOCIA","Adult Social Care","6CADLEARNDIS","Adults Under 65 with Learning Disabilities","REV","Revenue","R4188","LD - Residential Care","05-THIRD","Third Party Payments","05F","Voluntary associations","6802","Residential Homes","90773977","201706",12/09/2016 00:00:00,4655.2,"64710","Residential Care Homes","REDACTED DATA","AITHRIE RESIDENTIAL HOME","",,""
"London Borough of Redbridge","http://opendatacommunities.org/doc/london-borough-council/redbridge","6BADULTSOCIA","Adult Social Care","6CADLEARNDIS","Adults Under 65 with Learning Disabilities","REV","Revenue","R4188","LD - Residential Care","09-INCOME","Income","09C","Customer and Client Receipts","8555","Accommodation Charges","90773977","201706",12/09/2016 00:00:00,-321.8,"64710","Residential Care Homes","REDACTED DATA","AITHRIE RESIDENTIAL HOME","",,""
"London Borough of Redbridge","http://opendatacommunities.org/doc/london-borough-council/redbridge","9BNONBVO","Outside the BVACOP Objective Structure","9CNONBVO","Outside the BVACOP Objective Structure","REV","Revenue","R7602","Street Cleansing DSO","04-SUPPLIES","Supplies And Services","04A","Equipment, furniture and materials","5510","Materials","60320303","201706",15/09/2016 00:00:00,3561.5,"19000","Cleaning Contractors Equipment and Supplies","REDACTED DATA","BELL BRUSH","",,"229177840"
"London Borough of Redbridge","http://opendatacommunities.org/doc/london-borough-council/redbridge","9BNONBVO","Outside the BVACOP Objective Structure","9CNONBVO","Outside the BVACOP Objective Structure","REV","Revenue","R7602","Street Cleansing DSO","04-SUPPLIES","Supplies And Services","04C","Clothes, uniform and laundry","5651","Protective Clothing","60320303","201706",15/09/2016 00:00:00,49.5,"19000","Cleaning Contractors Equipment and Supplies","REDACTED DATA","BELL BRUSH","",,"229177840"
"London Borough of Redbridge","http://opendatacommunities.org/doc/london-borough-council/redbridge","6BADULTSOCIA","Adult Social Care","6CADLEARNDIS","Adults Under 65 with Learning Disabilities","REV","Revenue","R4383","LD - External Day Care","05-THIRD","Third Party Payments","05H","Private contractors","6904","Day Centres","90778551","201706",09/09/2016 00:00:00,3608,"24200","Day Centres","REDACTED DATA","TRINITY LONDON CARE LTD","5340964","http://opencorporates.com/companies/gb/5340964","873126228"
"London Borough of Redbridge","http://opendatacommunities.org/doc/london-borough-council/redbridge","3BLEACENTFND","LEA Centrally Held School Funds","3CNONSCH","Non Schools","REV","Revenue","R2004","SEN and CD Res Placements DSG","05-THIRD","Third Party Payments","05H","Private contractors","6906","Independent Schools","60319197","201706",05/09/2016 00:00:00,4325.36,"67981","Schools - Local Authority","REDACTED DATA","GURU GOBIND SINGH KHALSA COLLEGE","",,""
"London Borough of Redbridge","http://opendatacommunities.org/doc/london-borough-council/redbridge","3BNONSCHFUND","Non-School Funding","6CCHILLOOKED","Children Looked After","REV","Revenue","R2238","Looked After Children Placements LA","05-THIRD","Third Party Payments","05H","Private contractors","6917","Fostering Costs - Agency","60320423","201706",01/09/2016 00:00:00,4323.6,"1880","Adoption and Fostering","REDACTED DATA","BY THE BRIDGE","4050928","http://opencorporates.com/companies/gb/4050928",""
"London Borough of Redbridge","http://opendatacommunities.org/doc/london-borough-council/redbridge","3BINDSCHFUND","Individual School Funds","3CDELPRIMARY","Delegated Individual Primary School Budgets","REV","Revenue","S1050","CHRISTCHURCH : Supply Teachers","01-EMPLOYEES","Employees","01A","Direct employee expenses","409","Agency Staff Pay","60319822","201706",15/07/2016 00:00:00,3602,"29300","Education Agencies and Authorities","REDACTED DATA","DESTINATION EDUCATION LTD","",,"930151073"
"London Borough of Redbridge","http://opendatacommunities.org/doc/london-borough-council/redbridge","3BNONSCHFUND","Non-School Funding","3CSCHSTRATMG","Schools Strategic Management","REV","Revenue","R3003","IT Leasing","04-SUPPLIES","Supplies And Services","04A","Equipment, furniture and materials","5502","Equipment Purchase","60321343","201706",26/09/2016 00:00:00,3600,"17580","Childcare Services","REDACTED DATA","GROUPCALL LTD","4343112","http://opencorporates.com/companies/gb/4343112","831015868"
"London Borough of Redbridge","http://opendatacommunities.org/doc/london-borough-council/redbridge","3BOPTIONHLDG","Optional Holding Accounts","3CADULT","Adult Education","REV","Revenue","R3490","RIAE   Home Cost Centre","04-SUPPLIES","Supplies And Services","04A","Equipment, furniture and materials","5502","Equipment Purchase","3442413","201706",29/07/2016 00:00:00,3600,"57614","Photocopiers","REDACTED DATA","DIGITAL COPIER SYSTEMS (EASTERN) LTD","4160580","http://opencorporates.com/companies/gb/4160580","770240455"
"London Borough of Redbridge","http://opendatacommunities.org/doc/london-borough-council/redbridge","2BPLAN&DEVEL","Planning & Development Services","2CCOMMDEVT","Community Development","REV","Revenue","R9854","Voluntary Sector Support","04-SUPPLIES","Supplies And Services","04H","Grants and subscriptions","5950","Grants","60321976","201706",30/09/2016 00:00:00,4287.5,"17020","Charities and Voluntary Organisations","REDACTED DATA","REDBRIDGE EQUALITIES  & COMMUNITY COUNCIL","",,""
"London Borough of Redbridge","http://opendatacommunities.org/doc/london-borough-council/redbridge","5BGFHOUSING","General Fund Housing","5CHOMELESS","Homelessness","REV","Revenue","R5630","HAC Temporary Accomodation","05-THIRD","Third Party Payments","05H","Private contractors","6912","Bed & Breakfast Charges","70088697","201706",01/08/2016 00:00:00,4278,"47846","Letting Agents","REDACTED DATA","THEORI HOUSING MANAGEMENT SERVICES LIMITED","4048450","http://opencorporates.com/companies/gb/4048450","773898950"
"London Borough of Redbridge","http://opendatacommunities.org/doc/london-borough-council/redbridge","5BGFHOUSING","General Fund Housing","5CHOMELESS","Homelessness","REV","Revenue","R5630","HAC Temporary Accomodation","05-THIRD","Third Party Payments","05H","Private contractors","6916","Leasing Payments To Landlords","70088520","201706",26/08/2016 00:00:00,3757.51,"61896","Property and Estate Management","REDACTED DATA","BETTER LETTINGS LTD","6839022","http://opencorporates.com/companies/gb/6839022",""
"London Borough of Redbridge","http://opendatacommunities.org/doc/london-borough-council/redbridge","5BGFHOUSING","General Fund Housing","5CHOMELESS","Homelessness","REV","Revenue","R5630","HAC Temporary Accomodation","05-THIRD","Third Party Payments","05H","Private contractors","6916","Leasing Payments To Landlords","70088520","201706",26/08/2016 00:00:00,520,"61896","Property and Estate Management","REDACTED DATA","BETTER LETTINGS LTD","6839022","http://opencorporates.com/companies/gb/6839022",""
"London Borough of Redbridge","http://opendatacommunities.org/doc/london-borough-council/redbridge","3BNONSCHFUND","Non-School Funding","6CCHILLOOKED","Children Looked After","REV","Revenue","R2238","Looked After Children Placements LA","05-THIRD","Third Party Payments","05H","Private contractors","6917","Fostering Costs - Agency","60319337","201706",05/09/2016 00:00:00,4277.14,"1880","Adoption and Fostering","REDACTED DATA","ETHELBERT SPECIALIST HOMES LTD","3291503","http://opencorporates.com/companies/gb/3291503",""
"London Borough of Redbridge","http://opendatacommunities.org/doc/london-borough-council/redbridge","6BADULTSOCIA","Adult Social Care","6CADPHYSDIS","Adults Under 65 with Phys Disab or Sensory Impair","REV","Revenue","R4214","PD Direct Payments","06-TRANSFER","Transfer Payments","06B","Social Services Clients","7053","Direct Payments","3443836","201706",19/09/2016 00:00:00,4416,"90005","Home Care Services DP","REDACTED DATA","REDACTED DATA","",,""
"London Borough of Redbridge","http://opendatacommunities.org/doc/london-borough-council/redbridge","6BADULTSOCIA","Adult Social Care","6CADPHYSDIS","Adults Under 65 with Phys Disab or Sensory Impair","REV","Revenue","R4214","PD Direct Payments","09-INCOME","Income","09C","Customer and Client Receipts","8545","Direct Payments Income","3443836","201706",19/09/2016 00:00:00,-150.56,"90005","Home Care Services DP","REDACTED DATA","REDACTED DATA","",,""
"London Borough of Redbridge","http://opendatacommunities.org/doc/london-borough-council/redbridge","6BADULTSOCIA","Adult Social Care","6COLDINCMENT","Older People (65 or over) incl. Older Mentally Ill","REV","Revenue","R4378","OP Residential","05-THIRD","Third Party Payments","05F","Voluntary associations","6802","Residential Homes","90773871","201706",12/09/2016 00:00:00,5822.4,"53350","Nursing Homes","REDACTED DATA","BUPA CARE HOMES(GABLE COURT)","",,"239731641"
"London Borough of Redbridge","http://opendatacommunities.org/doc/london-borough-council/redbridge","6BADULTSOCIA","Adult Social Care","6COLDINCMENT","Older People (65 or over) incl. Older Mentally Ill","REV","Revenue","R4378","OP Residential","09-INCOME","Income","09C","Customer and Client Receipts","8555","Accommodation Charges","90773871","201706",12/09/2016 00:00:00,-1568.4,"53350","Nursing Homes","REDACTED DATA","BUPA CARE HOMES(GABLE COURT)","",,"239731641"
"London Borough of Redbridge","http://opendatacommunities.org/doc/london-borough-council/redbridge","6BADULTSOCIA","Adult Social Care","6CADMENHLTH","Adults Under 65 with Mental Health Needs","REV","Revenue","R4219","MH - Supported Living","06-TRANSFER","Transfer Payments","06B","Social Services Clients","7066","Supportive Lodgings (Transfer Payments)","90773719","201706",05/09/2016 00:00:00,4251.3,"1266","Accommodation Agencies - Residential","REDACTED DATA","SPENCER & ARLINGTON LTD","4377774","http://opencorporates.com/companies/gb/4377774",""
"London Borough of Redbridge","http://opendatacommunities.org/doc/london-borough-council/redbridge","9BNONBVO","Outside the BVACOP Objective Structure","9CNONBVO","Outside the BVACOP Objective Structure","CAP","Capital","C1001","Customer Access Strategy Capital","99-NONBV","Capital, Balance Sheet and Control","50A","Capital - Employee Costs","9006","Employee Costs - Other","60318539","201705",24/08/2016 00:00:00,3542,"20620","Computer Consultants","REDACTED DATA","REQUIRED EXPERIENCE LIMITED","4347037","http://opencorporates.com/companies/gb/4347037","GB989059356"
"London Borough of Redbridge","http://opendatacommunities.org/doc/london-borough-council/redbridge","6BSOCIALSERV","Social Services","6CCHILLOOKED","Children Looked After","REV","Revenue","R2177","Public Law Outline","04-SUPPLIES","Supplies And Services","04H","Grants and subscriptions","5954","Professional Fees","60320183","201706",18/08/2016 00:00:00,3540,"6700","Barristers","REDACTED DATA","PAUL PAVLOU","1921581404","http://opencorporates.com/companies/gb/1921581404","653906618"
"London Borough of Redbridge","http://opendatacommunities.org/doc/london-borough-council/redbridge","1BCENTRALPUB","Central Services to the Public","1CLOCALTAXCO","Local Tax Collection","REV","Revenue","R5760","Local Tax Collection","04-SUPPLIES","Supplies And Services","04H","Grants and subscriptions","5957","Bailiff Fees","70088825","201706",25/06/2016 00:00:00,545,"24230","Debt Collection Agencies","REDACTED DATA","NEWLYN PLC","3770985","http://opencorporates.com/companies/gb/3770985","739828088"
"London Borough of Redbridge","http://opendatacommunities.org/doc/london-borough-council/redbridge","9BNONBVO","Outside the BVACOP Objective Structure","9CNONBVO","Outside the BVACOP Objective Structure","BAL","Balance Sheet","B0059","DUMMY VAT ACCOUNT","99-NONBV","Capital, Balance Sheet and Control","50L","Debtors","9359","VAT only invoices","70088825","201706",25/06/2016 00:00:00,-3697.25,"24230","Debt Collection Agencies","REDACTED DATA","NEWLYN PLC","3770985","http://opencorporates.com/companies/gb/3770985","739828088"
"London Borough of Redbridge","http://opendatacommunities.org/doc/london-borough-council/redbridge","9BNONBVO","Outside the BVACOP Objective Structure","9CNONBVO","Outside the BVACOP Objective Structure","BAL","Balance Sheet","B0059","DUMMY VAT ACCOUNT","99-NONBV","Capital, Balance Sheet and Control","50L","Debtors","9359","VAT only invoices","70088825","201706",25/06/2016 00:00:00,3697.25,"24230","Debt Collection Agencies","REDACTED DATA","NEWLYN PLC","3770985","http://opencorporates.com/companies/gb/3770985","739828088"
"London Borough of Redbridge","http://opendatacommunities.org/doc/london-borough-council/redbridge","6BADULTSOCIA","Adult Social Care","6CADLEARNDIS","Adults Under 65 with Learning Disabilities","REV","Revenue","R4215","LD Direct Payments","06-TRANSFER","Transfer Payments","06B","Social Services Clients","7053","Direct Payments","3443831","201706",19/09/2016 00:00:00,4225.88,"90005","Home Care Services DP","REDACTED DATA","REDACTED DATA","",,""
"London Borough of Redbridge","http://opendatacommunities.org/doc/london-borough-council/redbridge","3BOPTIONHLDG","Optional Holding Accounts","3CADULT","Adult Education","REV","Revenue","R3490","RIAE   Home Cost Centre","02-PREMISES","Premises","02H","Cleaning and domestic supplies","4621","Cleaning DSO Recharge","3443254","201706",25/08/2016 00:00:00,3506.25,"15269","Cleaning Services - Commercial","REDACTED DATA","LEWIS & GRAVES PARTNERSHIP LLP","8953594","http://opencorporates.com/companies/gb/8953594","135553810"
"London Borough of Redbridge","http://opendatacommunities.org/doc/london-borough-council/redbridge","1BOTHEROPI&E","Other Operating Income & Expenditure","1CELECTIONS","Elections","REV","Revenue","R9362","Electoral Registration","04-SUPPLIES","Supplies And Services","04D","Printing, stationery and general office expenses","5705","Postage","60321657","201706",20/09/2016 00:00:00,3503.87,"24510","Delivery Services","REDACTED DATA","ROYAL MAIL GROUP LTD","4138203","http://opencorporates.com/companies/gb/4138203","243170002"
"London Borough of Redbridge","http://opendatacommunities.org/doc/london-borough-council/redbridge","6BPUBHEALTH","Public Health","6CSUBSTANCEM","Substance Misuse","REV","Revenue","R4815","Drug Misuse - Adults","04-SUPPLIES","Supplies And Services","04K","Miscellaneous expenses","6235","Medical Requisites","60319218","201706",31/08/2016 00:00:00,3503.5,"50348","Medical Equipment Mnfrs","REDACTED DATA","ORION MEDICAL SUPPLIES LTD","8181275","http://opencorporates.com/companies/gb/8181275","142018357"
"London Borough of Redbridge","http://opendatacommunities.org/doc/london-borough-council/redbridge","3BNONSCHFUND","Non-School Funding","3CNONSCH","Non Schools","REV","Revenue","R3962","Early Years - 3 and 4 Year Olds","05-THIRD","Third Party Payments","05A","Independent units within the council","6517","Non-Maintained Schools","3442310","201706",06/09/2016 00:00:00,4203.8,"17600","Childminders","REDACTED DATA","HUSNA MALEK","7593376080","http://opencorporates.com/companies/gb/7593376080",""
"London Borough of Redbridge","http://opendatacommunities.org/doc/london-borough-council/redbridge","3BLEACENTFND","LEA Centrally Held School Funds","3CSCHSTRATMG","Schools Strategic Management","REV","Revenue","R3001","Bldgs and Dev Branch","02-PREMISES","Premises","02A","Repairs, alteration and maintenance of buildings","3026","Minor Maintenance","60319899","201706",31/03/2016 00:00:00,3500,"61896","Property and Estate Management","REDACTED DATA","VALUATION OFFICE AGENCY","",,"888848141"
"London Borough of Redbridge","http://opendatacommunities.org/doc/london-borough-council/redbridge","6BADULTSOCIA","Adult Social Care","6COLDINCMENT","Older People (65 or over) incl. Older Mentally Ill","REV","Revenue","R4378","OP Residential","05-THIRD","Third Party Payments","05F","Voluntary associations","6802","Residential Homes","90773872","201706",12/09/2016 00:00:00,5764.8,"53350","Nursing Homes","REDACTED DATA","BUPA CARE HOMES(GABLE COURT)","",,"239731641"
"London Borough of Redbridge","http://opendatacommunities.org/doc/london-borough-council/redbridge","6BADULTSOCIA","Adult Social Care","6COLDINCMENT","Older People (65 or over) incl. Older Mentally Ill","REV","Revenue","R4378","OP Residential","09-INCOME","Income","09C","Customer and Client Receipts","8555","Accommodation Charges","90773872","201706",12/09/2016 00:00:00,-1568.4,"53350","Nursing Homes","REDACTED DATA","BUPA CARE HOMES(GABLE COURT)","",,"239731641"
"London Borough of Redbridge","http://opendatacommunities.org/doc/london-borough-council/redbridge","9BNONBVO","Outside the BVACOP Objective Structure","9CNONBVO","Outside the BVACOP Objective Structure","CAP","Capital","C1041","Access Improvements Prog - DDA","99-NONBV","Capital, Balance Sheet and Control","50E","Capital - Contract Payments","9168","Windows","804392","201706",31/01/2016 00:00:00,3486.67,"11040","Builders","REDACTED DATA","M & G CONSTRUCTION LTD.","1918880","http://opencorporates.com/companies/gb/1918880","406392853"
"London Borough of Redbridge","http://opendatacommunities.org/doc/london-borough-council/redbridge","6BADULTSOCIA","Adult Social Care","6CADLEARNDIS","Adults Under 65 with Learning Disabilities","REV","Revenue","R4185","LD - Supported Living","06-TRANSFER","Transfer Payments","06B","Social Services Clients","7066","Supportive Lodgings (Transfer Payments)","90774167","201706",12/09/2016 00:00:00,4180,"17020","Charities and Voluntary Organisations","REDACTED DATA","MENCAP","550457","http://opencorporates.com/companies/gb/550457","233010136"
"London Borough of Redbridge","http://opendatacommunities.org/doc/london-borough-council/redbridge","6BADULTSOCIA","Adult Social Care","6COLDINCMENT","Older People (65 or over) incl. Older Mentally Ill","REV","Revenue","R4410","OP Voluntary Contracts","05-THIRD","Third Party Payments","05F","Voluntary associations","6800","Voluntary Organisations","90774360","201706",19/09/2016 00:00:00,4174.17,"17020","Charities and Voluntary Organisations","REDACTED DATA","REDBRIDGE GUJERATI WELFARE  ASSOCIATION","",,""
"London Borough of Redbridge","http://opendatacommunities.org/doc/london-borough-council/redbridge","6BADULTSOCIA","Adult Social Care","6COLDINCMENT","Older People (65 or over) incl. Older Mentally Ill","REV","Revenue","R4385","OP Nursing","05-THIRD","Third Party Payments","05H","Private contractors","6909","Nursing Homes","90773625","201706",09/08/2016 00:00:00,7473.72,"53350","Nursing Homes","REDACTED DATA","BUPA CARE SERVICES (HARTS HOUSE NURSING HOME)","",,""
"London Borough of Redbridge","http://opendatacommunities.org/doc/london-borough-council/redbridge","6BADULTSOCIA","Adult Social Care","6COLDINCMENT","Older People (65 or over) incl. Older Mentally Ill","REV","Revenue","R4385","OP Nursing","05-THIRD","Third Party Payments","05H","Private contractors","6909","Nursing Homes","90773625","201706",09/08/2016 00:00:00,1312,"53350","Nursing Homes","REDACTED DATA","BUPA CARE SERVICES (HARTS HOUSE NURSING HOME)","",,""
"London Borough of Redbridge","http://opendatacommunities.org/doc/london-borough-council/redbridge","6BADULTSOCIA","Adult Social Care","6COLDINCMENT","Older People (65 or over) incl. Older Mentally Ill","REV","Revenue","R4385","OP Nursing","09-INCOME","Income","09C","Customer and Client Receipts","8557","Nursing Home Charges","90773625","201706",09/08/2016 00:00:00,-3300.97,"53350","Nursing Homes","REDACTED DATA","BUPA CARE SERVICES (HARTS HOUSE NURSING HOME)","",,""
"London Borough of Redbridge","http://opendatacommunities.org/doc/london-borough-council/redbridge","6BADULTSOCIA","Adult Social Care","6COLDINCMENT","Older People (65 or over) incl. Older Mentally Ill","REV","Revenue","R4385","OP Nursing","09-INCOME","Income","09C","Customer and Client Receipts","8557","Nursing Home Charges","90773625","201706",09/08/2016 00:00:00,-1312,"53350","Nursing Homes","REDACTED DATA","BUPA CARE SERVICES (HARTS HOUSE NURSING HOME)","",,""
"London Borough of Redbridge","http://opendatacommunities.org/doc/london-borough-council/redbridge","6BADULTSOCIA","Adult Social Care","6CADLEARNDIS","Adults Under 65 with Learning Disabilities","REV","Revenue","R4383","LD - External Day Care","05-THIRD","Third Party Payments","05H","Private contractors","6904","Day Centres","90778476","201706",13/09/2016 00:00:00,4157.76,"17020","Charities and Voluntary Organisations","REDACTED DATA","VIBRANCE","7094318","http://opencorporates.com/companies/gb/7094318",""
"London Borough of Redbridge","http://opendatacommunities.org/doc/london-borough-council/redbridge","6BADULTSOCIA","Adult Social Care","6COLDINCMENT","Older People (65 or over) incl. Older Mentally Ill","REV","Revenue","R4378","OP Residential","05-THIRD","Third Party Payments","05F","Voluntary associations","6802","Residential Homes","90774199","201706",12/09/2016 00:00:00,4150,"64710","Residential Care Homes","REDACTED DATA","OAKWOOD LODGE","6798990","http://opencorporates.com/companies/gb/6798990",""
"London Borough of Redbridge","http://opendatacommunities.org/doc/london-borough-council/redbridge","3BNONSCHFUND","Non-School Funding","3CNONSCH","Non Schools","REV","Revenue","R3835","GSB Grounds Maintenance","02-PREMISES","Premises","02I","Grounds maintenance costs","4750","Grounds Maintenance","60320665","201706",16/09/2016 00:00:00,3455.37,"48583","Local Government","REDACTED DATA","VISION REDBRIDGE CULTURE AND LEISURE","6032714","http://opencorporates.com/companies/gb/6032714","906429031"
"London Borough of Redbridge","http://opendatacommunities.org/doc/london-borough-council/redbridge","6BADULTSOCIA","Adult Social Care","6CADLEARNDIS","Adults Under 65 with Learning Disabilities","REV","Revenue","R4188","LD - Residential Care","05-THIRD","Third Party Payments","05F","Voluntary associations","6802","Residential Homes","90773997","201706",12/09/2016 00:00:00,4132.88,"64710","Residential Care Homes","REDACTED DATA","ASHWOOD HOUSE LIMITED","3581014","http://opencorporates.com/companies/gb/3581014",""
"London Borough of Redbridge","http://opendatacommunities.org/doc/london-borough-council/redbridge","2BCULTUR&REL","Cultural & Related Services","2CREC&SPORT","Recreation & Sport","REV","Revenue","R6999","Leisure Client","02-PREMISES","Premises","02C","Rents","4120","Rents","60319997","201706",12/09/2016 00:00:00,4125,"1264","Accommodation Agencies - Business and Commercial","REDACTED DATA","AK & DA SOOD","",,""
"London Borough of Redbridge","http://opendatacommunities.org/doc/london-borough-council/redbridge","6BADULTSOCIA","Adult Social Care","6COLDINCMENT","Older People (65 or over) incl. Older Mentally Ill","REV","Revenue","R4378","OP Residential","05-THIRD","Third Party Payments","05F","Voluntary associations","6802","Residential Homes","90774267","201706",12/09/2016 00:00:00,5417.2,"64760","Rest and Retirement Homes","REDACTED DATA","ST JOSEPH'S REST HOME","",,""
"London Borough of Redbridge","http://opendatacommunities.org/doc/london-borough-council/redbridge","6BADULTSOCIA","Adult Social Care","6COLDINCMENT","Older People (65 or over) incl. Older Mentally Ill","REV","Revenue","R4378","OP Residential","09-INCOME","Income","09C","Customer and Client Receipts","8555","Accommodation Charges","90774267","201706",12/09/2016 00:00:00,-1307,"64760","Rest and Retirement Homes","REDACTED DATA","ST JOSEPH'S REST HOME","",,""
"London Borough of Redbridge","http://opendatacommunities.org/doc/london-borough-council/redbridge","1BOTHEROPI&E","Other Operating Income & Expenditure","1CTRADSURDEF","Trading Account Surpluses & Deficits","REV","Revenue","R9354","Legal Disbursements","04-SUPPLIES","Supplies And Services","04H","Grants and subscriptions","5954","Professional Fees","60321808","201706",24/08/2016 00:00:00,3415,"6700","Barristers","REDACTED DATA","MATT HUTCHINGS","",,"649890281"
"London Borough of Redbridge","http://opendatacommunities.org/doc/london-borough-council/redbridge","3BNONSCHFUND","Non-School Funding","6CCHILLOOKED","Children Looked After","REV","Revenue","R2238","Looked After Children Placements LA","05-THIRD","Third Party Payments","05H","Private contractors","6917","Fostering Costs - Agency","60320426","201706",01/09/2016 00:00:00,4096.29,"1880","Adoption and Fostering","REDACTED DATA","BY THE BRIDGE","4050928","http://opencorporates.com/companies/gb/4050928",""
"London Borough of Redbridge","http://opendatacommunities.org/doc/london-borough-council/redbridge","4BPUBLICTRAN","Public Transport","4CPARKING","Parking Services","REV","Revenue","R7036","On Street Parking Works","05-THIRD","Third Party Payments","05H","Private contractors","6915","Contractor Payments","60321215","201706",22/09/2016 00:00:00,3410,"1961","Advertising - Agencies","REDACTED DATA","CAVENDISH MEDIA LTD","3982290","http://opencorporates.com/companies/gb/3982290","756615116"
"London Borough of Redbridge","http://opendatacommunities.org/doc/london-borough-council/redbridge","5BGFHOUSING","General Fund Housing","5CHOMELESS","Homelessness","REV","Revenue","R5630","HAC Temporary Accomodation","05-THIRD","Third Party Payments","05H","Private contractors","6912","Bed & Breakfast Charges","70088503","201706",04/09/2016 00:00:00,4092,"47846","Letting Agents","REDACTED DATA","HILLS CONSORTIUM LTD","5618521","http://opencorporates.com/companies/gb/5618521","977358461"
"London Borough of Redbridge","http://opendatacommunities.org/doc/london-borough-council/redbridge","3BNONSCHFUND","Non-School Funding","3CNONSCH","Non Schools","REV","Revenue","R3962","Early Years - 3 and 4 Year Olds","05-THIRD","Third Party Payments","05A","Independent units within the council","6517","Non-Maintained Schools","3442396","201706",06/09/2016 00:00:00,4089.54,"59760","Playgroups, Nurseries and Creches","REDACTED DATA","WINSTON HOUSE PREPARATORY SCHOOL","",,""
"London Borough of Redbridge","http://opendatacommunities.org/doc/london-borough-council/redbridge","3BINDSCHFUND","Individual School Funds","3CDELSECOND","Delegated Individual Secondary School Budgets","REV","Revenue","S2021","TRINITY : Energy","02-PREMISES","Premises","02B","Energy costs","4000","Electricity","80023184","201706",17/08/2016 00:00:00,3402.7,"39564","Gas Companies","REDACTED DATA","KENT COUNTY COUNCIL (GAS & ELECTRIC)","",,"204269191"
"London Borough of Redbridge","http://opendatacommunities.org/doc/london-borough-council/redbridge","3BINDSCHFUND","Individual School Funds","3CDELSECOND","Delegated Individual Secondary School Budgets","REV","Revenue","S3536","KING SOLOMON-  Building Repairs & Maintenance","02-PREMISES","Premises","02A","Repairs, alteration and maintenance of buildings","3056","Schools ONLY - Minor Maintenance","60319973","201706",31/08/2016 00:00:00,3400,"30580","Electricians and Electrical Contractors","REDACTED DATA","EVANS & SHEA LTD","9365711","http://opencorporates.com/companies/gb/9365711","212776513"
"London Borough of Redbridge","http://opendatacommunities.org/doc/london-borough-council/redbridge","6BADULTSOCIA","Adult Social Care","6CADLEARNDIS","Adults Under 65 with Learning Disabilities","REV","Revenue","R4185","LD - Supported Living","06-TRANSFER","Transfer Payments","06B","Social Services Clients","7066","Supportive Lodgings (Transfer Payments)","90774168","201706",12/09/2016 00:00:00,4112,"17020","Charities and Voluntary Organisations","REDACTED DATA","MENCAP","550457","http://opencorporates.com/companies/gb/550457","233010136"
"London Borough of Redbridge","http://opendatacommunities.org/doc/london-borough-council/redbridge","6BADULTSOCIA","Adult Social Care","6CADLEARNDIS","Adults Under 65 with Learning Disabilities","REV","Revenue","R4185","LD - Supported Living","09-INCOME","Income","09C","Customer and Client Receipts","8553","Care Package Charges","90774168","201706",12/09/2016 00:00:00,-36,"17020","Charities and Voluntary Organisations","REDACTED DATA","MENCAP","550457","http://opencorporates.com/companies/gb/550457","233010136"
"London Borough of Redbridge","http://opendatacommunities.org/doc/london-borough-council/redbridge","6BADULTSOCIA","Adult Social Care","6CADMENHLTH","Adults Under 65 with Mental Health Needs","REV","Revenue","R4190","MH - Residential Care","05-THIRD","Third Party Payments","05F","Voluntary associations","6802","Residential Homes","90774145","201706",12/09/2016 00:00:00,135.71,"64710","Residential Care Homes","REDACTED DATA","KHAYA PROJECT LTD","6036747","http://opencorporates.com/companies/gb/6036747",""
"London Borough of Redbridge","http://opendatacommunities.org/doc/london-borough-council/redbridge","6BADULTSOCIA","Adult Social Care","6CADMENHLTH","Adults Under 65 with Mental Health Needs","REV","Revenue","R4190","MH - Residential Care","05-THIRD","Third Party Payments","05F","Voluntary associations","6802","Residential Homes","90774145","201706",12/09/2016 00:00:00,3935.71,"64710","Residential Care Homes","REDACTED DATA","KHAYA PROJECT LTD","6036747","http://opencorporates.com/companies/gb/6036747",""
"London Borough of Redbridge","http://opendatacommunities.org/doc/london-borough-council/redbridge","6BADULTSOCIA","Adult Social Care","6CADLEARNDIS","Adults Under 65 with Learning Disabilities","REV","Revenue","R4215","LD Direct Payments","06-TRANSFER","Transfer Payments","06B","Social Services Clients","7053","Direct Payments","3443806","201706",19/09/2016 00:00:00,4065.12,"90005","Home Care Services DP","REDACTED DATA","REDACTED DATA","",,""
"London Borough of Redbridge","http://opendatacommunities.org/doc/london-borough-council/redbridge","2BPLAN&DEVEL","Planning & Development Services","2CCOMMDEVT","Community Development","REV","Revenue","R9854","Voluntary Sector Support","04-SUPPLIES","Supplies And Services","04H","Grants and subscriptions","5950","Grants","60321975","201706",30/09/2016 00:00:00,4061.25,"17020","Charities and Voluntary Organisations","REDACTED DATA","REDBRIDGE FAITH FORUM","",,""
"London Borough of Redbridge","http://opendatacommunities.org/doc/london-borough-council/redbridge","3BINDSCHFUND","Individual School Funds","3CNONSCH","Non Schools","REV","Revenue","R2000","Primary Schools SEN Top Up Fees","05-THIRD","Third Party Payments","05G","Other establishments","7432","OOB Pre 16 Top Up","60321784","201706",22/06/2016 00:00:00,4041.68,"67981","Schools - Local Authority","REDACTED DATA","MANOR INFANT'S SCHOOL/ MANOR LONGBRIDGE","",,""
"London Borough of Redbridge","http://opendatacommunities.org/doc/london-borough-council/redbridge","3BINDSCHFUND","Individual School Funds","3CNONSCH","Non Schools","REV","Revenue","R2000","Primary Schools SEN Top Up Fees","05-THIRD","Third Party Payments","05G","Other establishments","7432","OOB Pre 16 Top Up","60321785","201706",30/09/2016 00:00:00,4041.68,"67981","Schools - Local Authority","REDACTED DATA","MANOR INFANT'S SCHOOL/ MANOR LONGBRIDGE","",,""
"London Borough of Redbridge","http://opendatacommunities.org/doc/london-borough-council/redbridge","3BNONSCHFUND","Non-School Funding","6CCHILLOOKED","Children Looked After","REV","Revenue","R2238","Looked After Children Placements LA","05-THIRD","Third Party Payments","05H","Private contractors","6917","Fostering Costs - Agency","60320427","201706",01/09/2016 00:00:00,4033.41,"1880","Adoption and Fostering","REDACTED DATA","BY THE BRIDGE","4050928","http://opencorporates.com/companies/gb/4050928",""
"London Borough of Redbridge","http://opendatacommunities.org/doc/london-borough-council/redbridge","6BADULTSOCIA","Adult Social Care","6COLDINCMENT","Older People (65 or over) incl. Older Mentally Ill","REV","Revenue","R4385","OP Nursing","05-THIRD","Third Party Payments","05H","Private contractors","6909","Nursing Homes","90773616","201706",09/08/2016 00:00:00,7151.16,"53350","Nursing Homes","REDACTED DATA","FOREST PINES CARE LTD - ST JOSEPH NURSING HOME","9112755","http://opencorporates.com/companies/gb/9112755",""
"London Borough of Redbridge","http://opendatacommunities.org/doc/london-borough-council/redbridge","6BADULTSOCIA","Adult Social Care","6COLDINCMENT","Older People (65 or over) incl. Older Mentally Ill","REV","Revenue","R4385","OP Nursing","05-THIRD","Third Party Payments","05H","Private contractors","6909","Nursing Homes","90773616","201706",09/08/2016 00:00:00,1344,"53350","Nursing Homes","REDACTED DATA","FOREST PINES CARE LTD - ST JOSEPH NURSING HOME","9112755","http://opencorporates.com/companies/gb/9112755",""
"London Borough of Redbridge","http://opendatacommunities.org/doc/london-borough-council/redbridge","6BADULTSOCIA","Adult Social Care","6COLDINCMENT","Older People (65 or over) incl. Older Mentally Ill","REV","Revenue","R4385","OP Nursing","09-INCOME","Income","09C","Customer and Client Receipts","8557","Nursing Home Charges","90773616","201706",09/08/2016 00:00:00,-1344,"53350","Nursing Homes","REDACTED DATA","FOREST PINES CARE LTD - ST JOSEPH NURSING HOME","9112755","http://opencorporates.com/companies/gb/9112755",""
"London Borough of Redbridge","http://opendatacommunities.org/doc/london-borough-council/redbridge","6BADULTSOCIA","Adult Social Care","6COLDINCMENT","Older People (65 or over) incl. Older Mentally Ill","REV","Revenue","R4385","OP Nursing","09-INCOME","Income","09C","Customer and Client Receipts","8557","Nursing Home Charges","90773616","201706",09/08/2016 00:00:00,-2851.08,"53350","Nursing Homes","REDACTED DATA","FOREST PINES CARE LTD - ST JOSEPH NURSING HOME","9112755","http://opencorporates.com/companies/gb/9112755",""
"London Borough of Redbridge","http://opendatacommunities.org/doc/london-borough-council/redbridge","6BADULTSOCIA","Adult Social Care","6COLDINCMENT","Older People (65 or over) incl. Older Mentally Ill","REV","Revenue","R4385","OP Nursing","09-INCOME","Income","09C","Customer and Client Receipts","8557","Nursing Home Charges","90773616","201706",09/08/2016 00:00:00,-266.9,"53350","Nursing Homes","REDACTED DATA","FOREST PINES CARE LTD - ST JOSEPH NURSING HOME","9112755","http://opencorporates.com/companies/gb/9112755",""
"London Borough of Redbridge","http://opendatacommunities.org/doc/london-borough-council/redbridge","6BADULTSOCIA","Adult Social Care","6CADMENHLTH","Adults Under 65 with Mental Health Needs","REV","Revenue","R4190","MH - Residential Care","05-THIRD","Third Party Payments","05F","Voluntary associations","6802","Residential Homes","90773927","201706",05/09/2016 00:00:00,4020.08,"64710","Residential Care Homes","REDACTED DATA","KADIMA SUPPORT UK LTD","8817507","http://opencorporates.com/companies/gb/8817507",""
"London Borough of Redbridge","http://opendatacommunities.org/doc/london-borough-council/redbridge","6BADULTSOCIA","Adult Social Care","6CADLEARNDIS","Adults Under 65 with Learning Disabilities","REV","Revenue","R4188","LD - Residential Care","05-THIRD","Third Party Payments","05F","Voluntary associations","6802","Residential Homes","90774152","201706",12/09/2016 00:00:00,4007.52,"64710","Residential Care Homes","REDACTED DATA","LEYTON HOUSE COMMUNITY CARE LTD","4199578","http://opencorporates.com/companies/gb/4199578",""
"London Borough of Redbridge","http://opendatacommunities.org/doc/london-borough-council/redbridge","5BGFHOUSING","General Fund Housing","5CHOMELESS","Homelessness","REV","Revenue","R5630","HAC Temporary Accomodation","05-THIRD","Third Party Payments","05H","Private contractors","6912","Bed & Breakfast Charges","70088853","201706",07/08/2016 00:00:00,3335.5,"47846","Letting Agents","REDACTED DATA","A & R PROPERTIES (LONDON) LTD","5985952","http://opencorporates.com/companies/gb/5985952",""
"London Borough of Redbridge","http://opendatacommunities.org/doc/london-borough-council/redbridge","2BCULTUR&REL","Cultural & Related Services","2CREC&SPORT","Recreation & Sport","REV","Revenue","R6999","Leisure Client","02-PREMISES","Premises","02C","Rents","4120","Rents","60321011","201706",21/09/2016 00:00:00,4000,"32695","Estate Agents and Property Buyers","REDACTED DATA","A & D ALEXANDROU LTD(ALEXANDROU PROPERTY RENTAL)","828089","http://opencorporates.com/companies/gb/828089",""
"London Borough of Redbridge","http://opendatacommunities.org/doc/london-borough-council/redbridge","3BLEACENTFND","LEA Centrally Held School Funds","3CFACILIMPRO","Facilitating School Improvement","REV","Revenue","R3240","Advisers/Inspectors","04-SUPPLIES","Supplies And Services","04E","Services","5959","Raising Standards in Schools","60319964","201706",12/09/2016 00:00:00,4000,"67981","Schools - Local Authority","REDACTED DATA","SOUTH PARK PRIMARY SCHOOL","",,""
"London Borough of Redbridge","http://opendatacommunities.org/doc/london-borough-council/redbridge","9BNONBVO","Outside the BVACOP Objective Structure","9CNONBVO","Outside the BVACOP Objective Structure","CAP","Capital","C2002","Disabled Facilities Grants (DFG)","99-NONBV","Capital, Balance Sheet and Control","50H","Capital - Deferred Charges","9251","Housing Grants - Mandatory","70088391","201706",13/05/2016 00:00:00,3997,"25800","Disability Equipment - Mnfrs and Suppliers","REDACTED DATA","RIGHT CHOICE MOBILITY(GRANT WORKS)","2287370195","http://opencorporates.com/companies/gb/2287370195","151554523"
"London Borough of Redbridge","http://opendatacommunities.org/doc/london-borough-council/redbridge","6BADULTSOCIA","Adult Social Care","6CADLEARNDIS","Adults Under 65 with Learning Disabilities","REV","Revenue","R4215","LD Direct Payments","06-TRANSFER","Transfer Payments","06B","Social Services Clients","7053","Direct Payments","3444286","201706",19/09/2016 00:00:00,3987.68,"90005","Home Care Services DP","REDACTED DATA","REDACTED DATA","",,""
"London Borough of Redbridge","http://opendatacommunities.org/doc/london-borough-council/redbridge","3BNONSCHFUND","Non-School Funding","6CCHILLOOKED","Children Looked After","REV","Revenue","R2238","Looked After Children Placements LA","05-THIRD","Third Party Payments","05H","Private contractors","6907","Private Homes","60319367","201706",31/08/2016 00:00:00,3985.71,"64710","Residential Care Homes","REDACTED DATA","IDEAL CARE SOLUTIONS LIMITED","7566021","http://opencorporates.com/companies/gb/7566021","114183936"
"London Borough of Redbridge","http://opendatacommunities.org/doc/london-borough-council/redbridge","6BPUBHEALTH","Public Health","6CSEXHEALTH","Sexual Health","REV","Revenue","R4804","STI Testing & Treatment","05-THIRD","Third Party Payments","05D","Health authorities","6703","Hospital Trusts","70088472","201706",12/08/2016 00:00:00,3985,"42200","Health Authorities","REDACTED DATA","CENTRAL & NORTH WEST LONDON NHS FOUNDATION TRUST","",,"654970895"
"London Borough of Redbridge","http://opendatacommunities.org/doc/london-borough-council/redbridge","3BNONSCHFUND","Non-School Funding","6CCHILLOOKED","Children Looked After","REV","Revenue","R2238","Looked After Children Placements LA","05-THIRD","Third Party Payments","05H","Private contractors","6917","Fostering Costs - Agency","60318938","201706",01/08/2016 00:00:00,3981.02,"1880","Adoption and Fostering","REDACTED DATA","WELCOME FOSTER CARE LTD","6350870","http://opencorporates.com/companies/gb/6350870",""
"London Borough of Redbridge","http://opendatacommunities.org/doc/london-borough-council/redbridge","3BINDSCHFUND","Individual School Funds","3CDELSECOND","Delegated Individual Secondary School Budgets","REV","Revenue","S3536","KING SOLOMON-  Building Repairs & Maintenance","02-PREMISES","Premises","02A","Repairs, alteration and maintenance of buildings","3056","Schools ONLY - Minor Maintenance","60319225","201706",31/08/2016 00:00:00,3314.66,"30580","Electricians and Electrical Contractors","REDACTED DATA","EVANS & SHEA LTD","9365711","http://opencorporates.com/companies/gb/9365711","212776513"
"London Borough of Redbridge","http://opendatacommunities.org/doc/london-borough-council/redbridge","1BOTHEROPI&E","Other Operating Income & Expenditure","1CTRADSURDEF","Trading Account Surpluses & Deficits","REV","Revenue","R9460","Human Resources misc","05-THIRD","Third Party Payments","05A","Independent units within the council","6513","Agency & Contracted Services","60319120","201706",31/08/2016 00:00:00,3960,"16580","Central Government","REDACTED DATA","DISCLOSURE AND BARRING SERVICE(DBS)","",,""
"London Borough of Redbridge","http://opendatacommunities.org/doc/london-borough-council/redbridge","4BPUBLICTRAN","Public Transport","4CPARKING","Parking Services","REV","Revenue","R7012","Ley St MSCP","01-EMPLOYEES","Employees","01A","Direct employee expenses","4","Agency Staff - Pay","60319659","201706",01/09/2016 00:00:00,3300,"69240","Security Services","REDACTED DATA","COVERDALE K9 SECURITY SERVICES LTD","5520509","http://opencorporates.com/companies/gb/5520509","888502190"
"London Borough of Redbridge","http://opendatacommunities.org/doc/london-borough-council/redbridge","6BADULTSOCIA","Adult Social Care","6CADMENHLTH","Adults Under 65 with Mental Health Needs","REV","Revenue","R4190","MH - Residential Care","05-THIRD","Third Party Payments","05F","Voluntary associations","6802","Residential Homes","90774151","201706",12/09/2016 00:00:00,3946.8,"64710","Residential Care Homes","REDACTED DATA","LEYTON HOUSE COMMUNITY CARE LTD","4199578","http://opencorporates.com/companies/gb/4199578",""
"London Borough of Redbridge","http://opendatacommunities.org/doc/london-borough-council/redbridge","5BGFHOUSING","General Fund Housing","5CHOMELESS","Homelessness","REV","Revenue","R5630","HAC Temporary Accomodation","05-THIRD","Third Party Payments","05H","Private contractors","6912","Bed & Breakfast Charges","70088916","201706",31/07/2016 00:00:00,3286,"47846","Letting Agents","REDACTED DATA","FINEFAIR CONSULTANCY  LTD(NIGHTLY LETS)","4661895","http://opencorporates.com/companies/gb/4661895","809945391"
"London Borough of Redbridge","http://opendatacommunities.org/doc/london-borough-council/redbridge","6BADULTSOCIA","Adult Social Care","6CADLEARNDIS","Adults Under 65 with Learning Disabilities","REV","Revenue","R4188","LD - Residential Care","05-THIRD","Third Party Payments","05F","Voluntary associations","6802","Residential Homes","90774073","201706",12/09/2016 00:00:00,4586.28,"64710","Residential Care Homes","REDACTED DATA","FITZROY SUPPORT","2699902","http://opencorporates.com/companies/gb/2699902",""
"London Borough of Redbridge","http://opendatacommunities.org/doc/london-borough-council/redbridge","6BADULTSOCIA","Adult Social Care","6CADLEARNDIS","Adults Under 65 with Learning Disabilities","REV","Revenue","R4188","LD - Residential Care","09-INCOME","Income","09C","Customer and Client Receipts","8555","Accommodation Charges","90774073","201706",12/09/2016 00:00:00,-648.44,"64710","Residential Care Homes","REDACTED DATA","FITZROY SUPPORT","2699902","http://opencorporates.com/companies/gb/2699902",""
"London Borough of Redbridge","http://opendatacommunities.org/doc/london-borough-council/redbridge","6BADULTSOCIA","Adult Social Care","6CADLEARNDIS","Adults Under 65 with Learning Disabilities","REV","Revenue","R4218","LD Individual Budgets","06-TRANSFER","Transfer Payments","06B","Social Services Clients","7053","Direct Payments","3443903","201706",19/09/2016 00:00:00,3926.16,"90005","Home Care Services DP","REDACTED DATA","REDACTED DATA","",,""
"London Borough of Redbridge","http://opendatacommunities.org/doc/london-borough-council/redbridge","6BSOCIALSERV","Social Services","6CCHILLOOKED","Children Looked After","REV","Revenue","R2113","SEN and CD - Section 5 and 6 Care Packages","06-TRANSFER","Transfer Payments","06B","Social Services Clients","7053","Direct Payments","3442122","201706",01/09/2016 00:00:00,3920.8,"90005","Home Care Services DP","REDACTED DATA","REDACTED DATA","",,""
"London Borough of Redbridge","http://opendatacommunities.org/doc/london-borough-council/redbridge","4BMANGT&SUPP","Management & Support Services","4CHIGHRDROUT","Highways/Roads (Routine)","REV","Revenue","R7061","Lighting Energy","05-THIRD","Third Party Payments","05H","Private contractors","6915","Contractor Payments","80023388","201706",16/09/2016 00:00:00,3265.68,"39564","Gas Companies","REDACTED DATA","KENT COUNTY COUNCIL (GAS & ELECTRIC)","",,"204269191"
"London Borough of Redbridge","http://opendatacommunities.org/doc/london-borough-council/redbridge","4BPUBLICTRAN","Public Transport","4CPARKING","Parking Services","REV","Revenue","R7037","Parking Enforcements Non CCTV","04-SUPPLIES","Supplies And Services","04F","Communications and computing","5850","Computer Equipment - General Supplies","60319287","201706",31/08/2016 00:00:00,3263.87,"13750","Car Parking and Garaging","REDACTED DATA","COBALT TELEPHONE TECHNOLOGIES LTD","3151938","http://opencorporates.com/companies/gb/3151938","636137149"
"London Borough of Redbridge","http://opendatacommunities.org/doc/london-borough-council/redbridge","3BINDSCHFUND","Individual School Funds","3CNONSCH","Non Schools","REV","Revenue","R2000","Primary Schools SEN Top Up Fees","05-THIRD","Third Party Payments","05G","Other establishments","7432","OOB Pre 16 Top Up","60320008","201706",09/09/2016 00:00:00,3913.67,"67981","Schools - Local Authority","REDACTED DATA","SMITHY STREET SCHOOL","",,""
"London Borough of Redbridge","http://opendatacommunities.org/doc/london-borough-council/redbridge","3BINDSCHFUND","Individual School Funds","3CDELSECOND","Delegated Individual Secondary School Budgets","REV","Revenue","S3012","MAYFIELD -  Advertising","01-EMPLOYEES","Employees","01B","Indirect employee expenses","2400","Advertising For Staff","60319936","201706",31/08/2016 00:00:00,3261.43,"1961","Advertising - Agencies","REDACTED DATA","ACCORD GROUP LTD","3874258","http://opencorporates.com/companies/gb/3874258","749570492"
"London Borough of Redbridge","http://opendatacommunities.org/doc/london-borough-council/redbridge","3BINDSCHFUND","Individual School Funds","3CDELSECOND","Delegated Individual Secondary School Budgets","REV","Revenue","S3012","MAYFIELD -  Advertising","01-EMPLOYEES","Employees","01B","Indirect employee expenses","2400","Advertising For Staff","60319937","201706",31/07/2016 00:00:00,3261.43,"1961","Advertising - Agencies","REDACTED DATA","ACCORD GROUP LTD","3874258","http://opencorporates.com/companies/gb/3874258","749570492"
"London Borough of Redbridge","http://opendatacommunities.org/doc/london-borough-council/redbridge","6BADULTSOCIA","Adult Social Care","6CADMENHLTH","Adults Under 65 with Mental Health Needs","REV","Revenue","R4190","MH - Residential Care","05-THIRD","Third Party Payments","05F","Voluntary associations","6802","Residential Homes","90774297","201706",12/09/2016 00:00:00,3903.48,"64710","Residential Care Homes","REDACTED DATA","TEALK SERVICES LTD (THE BEECHES- ILFORD)","4203171","http://opencorporates.com/companies/gb/4203171",""
"London Borough of Redbridge","http://opendatacommunities.org/doc/london-borough-council/redbridge","3BNONSCHFUND","Non-School Funding","3CNONSCH","Non Schools","REV","Revenue","R3962","Early Years - 3 and 4 Year Olds","05-THIRD","Third Party Payments","05A","Independent units within the council","6517","Non-Maintained Schools","3442298","201706",06/09/2016 00:00:00,3900.67,"17580","Childcare Services","REDACTED DATA","FIRST DAY NURSERY LTD","9750129","http://opencorporates.com/companies/gb/9750129",""
"London Borough of Redbridge","http://opendatacommunities.org/doc/london-borough-council/redbridge","3BNONSCHFUND","Non-School Funding","3CNONSCH","Non Schools","REV","Revenue","R3962","Early Years - 3 and 4 Year Olds","05-THIRD","Third Party Payments","05A","Independent units within the council","6517","Non-Maintained Schools","3442295","201706",06/09/2016 00:00:00,3900.67,"17580","Childcare Services","REDACTED DATA","ELJOY NURSERY LTD","9383003","http://opencorporates.com/companies/gb/9383003",""
"London Borough of Redbridge","http://opendatacommunities.org/doc/london-borough-council/redbridge","6BADULTSOCIA","Adult Social Care","6CADLEARNDIS","Adults Under 65 with Learning Disabilities","REV","Revenue","R4241","CCG � LD Continuing Care","06-TRANSFER","Transfer Payments","06B","Social Services Clients","7053","Direct Payments","3443624","201706",19/09/2016 00:00:00,3897.6,"90005","Home Care Services DP","REDACTED DATA","REDACTED DATA","",,""
"London Borough of Redbridge","http://opendatacommunities.org/doc/london-borough-council/redbridge","6BADULTSOCIA","Adult Social Care","6CADLEARNDIS","Adults Under 65 with Learning Disabilities","REV","Revenue","R4188","LD - Residential Care","05-THIRD","Third Party Payments","05F","Voluntary associations","6802","Residential Homes","90774209","201706",12/09/2016 00:00:00,4286.72,"64710","Residential Care Homes","REDACTED DATA","CAREONE LTD (RUSSELL LODGE)","4270516","http://opencorporates.com/companies/gb/4270516",""
"London Borough of Redbridge","http://opendatacommunities.org/doc/london-borough-council/redbridge","6BADULTSOCIA","Adult Social Care","6CADLEARNDIS","Adults Under 65 with Learning Disabilities","REV","Revenue","R4188","LD - Residential Care","09-INCOME","Income","09C","Customer and Client Receipts","8555","Accommodation Charges","90774209","201706",12/09/2016 00:00:00,-400.6,"64710","Residential Care Homes","REDACTED DATA","CAREONE LTD (RUSSELL LODGE)","4270516","http://opencorporates.com/companies/gb/4270516",""
"London Borough of Redbridge","http://opendatacommunities.org/doc/london-borough-council/redbridge","6BADULTSOCIA","Adult Social Care","6CADPHYSDIS","Adults Under 65 with Phys Disab or Sensory Impair","REV","Revenue","R4214","PD Direct Payments","06-TRANSFER","Transfer Payments","06B","Social Services Clients","7053","Direct Payments","3443495","201706",19/09/2016 00:00:00,4000,"90005","Home Care Services DP","REDACTED DATA","REDACTED DATA","",,""
"London Borough of Redbridge","http://opendatacommunities.org/doc/london-borough-council/redbridge","6BADULTSOCIA","Adult Social Care","6CADPHYSDIS","Adults Under 65 with Phys Disab or Sensory Impair","REV","Revenue","R4214","PD Direct Payments","09-INCOME","Income","09C","Customer and Client Receipts","8545","Direct Payments Income","3443495","201706",19/09/2016 00:00:00,-114.8,"90005","Home Care Services DP","REDACTED DATA","REDACTED DATA","",,""
"London Borough of Redbridge","http://opendatacommunities.org/doc/london-borough-council/redbridge","6BADULTSOCIA","Adult Social Care","6CADMENHLTH","Adults Under 65 with Mental Health Needs","REV","Revenue","R4190","MH - Residential Care","05-THIRD","Third Party Payments","05F","Voluntary associations","6802","Residential Homes","90773999","201706",12/09/2016 00:00:00,3884.96,"64710","Residential Care Homes","REDACTED DATA","ASHWOOD HOUSE LIMITED","3581014","http://opencorporates.com/companies/gb/3581014",""
"London Borough of Redbridge","http://opendatacommunities.org/doc/london-borough-council/redbridge","3BNONSCHFUND","Non-School Funding","3CNONSCH","Non Schools","REV","Revenue","R3962","Early Years - 3 and 4 Year Olds","05-THIRD","Third Party Payments","05A","Independent units within the council","6517","Non-Maintained Schools","3442290","201706",06/09/2016 00:00:00,3880.61,"59760","Playgroups, Nurseries and Creches","REDACTED DATA","DAISYCHAIN PRE-SCHOOL","",,""
"London Borough of Redbridge","http://opendatacommunities.org/doc/london-borough-council/redbridge","3BINDSCHFUND","Individual School Funds","3CDELSECOND","Delegated Individual Secondary School Budgets","REV","Revenue","S3097","MAYFIELD -  Science","04-SUPPLIES","Supplies And Services","04A","Equipment, furniture and materials","5502","Equipment Purchase","60318675","201706",26/08/2016 00:00:00,3222.55,"68640","Scientific Apparatus and Instruments - Mnfrs","REDACTED DATA","TIMSTAR LABORATORY SUPPLIERS LTD","2223843","http://opencorporates.com/companies/gb/2223843","974815969"
"London Borough of Redbridge","http://opendatacommunities.org/doc/london-borough-council/redbridge","6BADULTSOCIA","Adult Social Care","6CADLEARNDIS","Adults Under 65 with Learning Disabilities","REV","Revenue","R4188","LD - Residential Care","05-THIRD","Third Party Payments","05F","Voluntary associations","6802","Residential Homes","90774212","201706",12/09/2016 00:00:00,4386.32,"64710","Residential Care Homes","REDACTED DATA","CAREONE LTD (RUSSELL LODGE)","4270516","http://opencorporates.com/companies/gb/4270516",""
"London Borough of Redbridge","http://opendatacommunities.org/doc/london-borough-council/redbridge","6BADULTSOCIA","Adult Social Care","6CADLEARNDIS","Adults Under 65 with Learning Disabilities","REV","Revenue","R4188","LD - Residential Care","09-INCOME","Income","09C","Customer and Client Receipts","8555","Accommodation Charges","90774212","201706",12/09/2016 00:00:00,-522.8,"64710","Residential Care Homes","REDACTED DATA","CAREONE LTD (RUSSELL LODGE)","4270516","http://opencorporates.com/companies/gb/4270516",""
"London Borough of Redbridge","http://opendatacommunities.org/doc/london-borough-council/redbridge","3BNONSCHFUND","Non-School Funding","6CCHILLOOKED","Children Looked After","REV","Revenue","R2238","Looked After Children Placements LA","05-THIRD","Third Party Payments","05H","Private contractors","6917","Fostering Costs - Agency","60321152","201706",01/09/2016 00:00:00,3852.6,"1880","Adoption and Fostering","REDACTED DATA","WELCOME FOSTER CARE LTD","6350870","http://opencorporates.com/companies/gb/6350870",""
"London Borough of Redbridge","http://opendatacommunities.org/doc/london-borough-council/redbridge","6BADULTSOCIA","Adult Social Care","6CADLEARNDIS","Adults Under 65 with Learning Disabilities","REV","Revenue","R4185","LD - Supported Living","06-TRANSFER","Transfer Payments","06B","Social Services Clients","7066","Supportive Lodgings (Transfer Payments)","90773716","201706",05/09/2016 00:00:00,3847.28,"1266","Accommodation Agencies - Residential","REDACTED DATA","SPENCER & ARLINGTON LTD","4377774","http://opencorporates.com/companies/gb/4377774",""
"London Borough of Redbridge","http://opendatacommunities.org/doc/london-borough-council/redbridge","6BADULTSOCIA","Adult Social Care","6CADMENHLTH","Adults Under 65 with Mental Health Needs","REV","Revenue","R4190","MH - Residential Care","05-THIRD","Third Party Payments","05F","Voluntary associations","6802","Residential Homes","90774150","201706",12/09/2016 00:00:00,3845.6,"64710","Residential Care Homes","REDACTED DATA","LEYTON HOUSE COMMUNITY CARE LTD","4199578","http://opencorporates.com/companies/gb/4199578",""
"London Borough of Redbridge","http://opendatacommunities.org/doc/london-borough-council/redbridge","6BADULTSOCIA","Adult Social Care","6CADMENHLTH","Adults Under 65 with Mental Health Needs","REV","Revenue","R4190","MH - Residential Care","05-THIRD","Third Party Payments","05F","Voluntary associations","6802","Residential Homes","90774144","201706",12/09/2016 00:00:00,3845.6,"64710","Residential Care Homes","REDACTED DATA","KHAYA PROJECT LTD","6036747","http://opencorporates.com/companies/gb/6036747",""
"London Borough of Redbridge","http://opendatacommunities.org/doc/london-borough-council/redbridge","6BADULTSOCIA","Adult Social Care","6CADLEARNDIS","Adults Under 65 with Learning Disabilities","REV","Revenue","R4185","LD - Supported Living","06-TRANSFER","Transfer Payments","06B","Social Services Clients","7066","Supportive Lodgings (Transfer Payments)","90774173","201706",12/09/2016 00:00:00,3840,"17020","Charities and Voluntary Organisations","REDACTED DATA","MENCAP","550457","http://opencorporates.com/companies/gb/550457","233010136"
"London Borough of Redbridge","http://opendatacommunities.org/doc/london-borough-council/redbridge","9BNONBVO","Outside the BVACOP Objective Structure","9CNONBVO","Outside the BVACOP Objective Structure","REV","Revenue","R7602","Street Cleansing DSO","05-THIRD","Third Party Payments","05H","Private contractors","6914","Sub-Contractors","60320729","201706",23/08/2016 00:00:00,3200,"90043","Highway Maintenance","REDACTED DATA","S H GOSS & CO LTD","",,""
"London Borough of Redbridge","http://opendatacommunities.org/doc/london-borough-council/redbridge","6BADULTSOCIA","Adult Social Care","6CADMENHLTH","Adults Under 65 with Mental Health Needs","REV","Revenue","R4190","MH - Residential Care","05-THIRD","Third Party Payments","05F","Voluntary associations","6802","Residential Homes","90774003","201706",12/09/2016 00:00:00,3838.72,"64710","Residential Care Homes","REDACTED DATA","ASHWOOD HOUSE LIMITED","3581014","http://opencorporates.com/companies/gb/3581014",""
"London Borough of Redbridge","http://opendatacommunities.org/doc/london-borough-council/redbridge","3BNONSCHFUND","Non-School Funding","3CNONSCH","Non Schools","REV","Revenue","R3962","Early Years - 3 and 4 Year Olds","05-THIRD","Third Party Payments","05A","Independent units within the council","6517","Non-Maintained Schools","3442353","201706",06/09/2016 00:00:00,3834.35,"59760","Playgroups, Nurseries and Creches","REDACTED DATA","PAVILION PREP AND KINDERGARTEN","",,""
"London Borough of Redbridge","http://opendatacommunities.org/doc/london-borough-council/redbridge","9BNONBVO","Outside the BVACOP Objective Structure","9CNONBVO","Outside the BVACOP Objective Structure","REV","Revenue","R7602","Street Cleansing DSO","04-SUPPLIES","Supplies And Services","04A","Equipment, furniture and materials","5510","Materials","60319815","201706",08/09/2016 00:00:00,3195,"5970","Bags - Paper, Plastic and Fabric - Suppliers","REDACTED DATA","GRANGEWOOD PLASTIC PACKAGING LTD","",,""
"London Borough of Redbridge","http://opendatacommunities.org/doc/london-borough-council/redbridge","1BOTHEROPI&E","Other Operating Income & Expenditure","1CTRADSURDEF","Trading Account Surpluses & Deficits","REV","Revenue","R9460","Human Resources misc","04-SUPPLIES","Supplies And Services","04F","Communications and computing","5853","Computer Software","60318629","201705",25/08/2016 00:00:00,3182.78,"20703","Computer Systems and Software","REDACTED DATA","MIDLAND SOFTWARE LTD - MIDLAND HR & PAYROLL SOLUTIONS","1852206","http://opencorporates.com/companies/gb/1852206","705850636"
"London Borough of Redbridge","http://opendatacommunities.org/doc/london-borough-council/redbridge","3BINDSCHFUND","Individual School Funds","3CDELSECOND","Delegated Individual Secondary School Budgets","REV","Revenue","S2145","TRINITY : Resources Department","04-SUPPLIES","Supplies And Services","04D","Printing, stationery and general office expenses","5703","Reprographics","60320880","201706",08/08/2016 00:00:00,3171.79,"57614","Photocopiers","REDACTED DATA","CANON UK LTD","1264300","http://opencorporates.com/companies/gb/1264300","523797128"
"London Borough of Redbridge","http://opendatacommunities.org/doc/london-borough-council/redbridge","6BSOCIALSERV","Social Services","6CCHILLOOKED","Children Looked After","REV","Revenue","R2199","Court Team CSWLAC","04-SUPPLIES","Supplies And Services","04E","Services","5760","Interpreters","60321791","201706",29/09/2016 00:00:00,3165,"48583","Local Government","REDACTED DATA","LONDON BOROUGH OF NEWHAM","",,"248481537"
"London Borough of Redbridge","http://opendatacommunities.org/doc/london-borough-council/redbridge","6BADULTSOCIA","Adult Social Care","6CADLEARNDIS","Adults Under 65 with Learning Disabilities","REV","Revenue","R4215","LD Direct Payments","06-TRANSFER","Transfer Payments","06B","Social Services Clients","7053","Direct Payments","3444188","201706",19/09/2016 00:00:00,3797.8,"98758","Statutory Payments to Individuals","REDACTED DATA","REDACTED DATA","",,""
"London Borough of Redbridge","http://opendatacommunities.org/doc/london-borough-council/redbridge","7BCDC","Corporate & Democratic Core","7CCORPMGT","Corporate Management","REV","Revenue","R8505","Transformation Holding Account","01-EMPLOYEES","Employees","01A","Direct employee expenses","4","Agency Staff - Pay","60320639","201706",24/08/2016 00:00:00,3154.45,"31230","Employment and Recruitment Agencies","REDACTED DATA","ALLEN LANE LIMITED","5115229","http://opencorporates.com/companies/gb/5115229","835970985"
"London Borough of Redbridge","http://opendatacommunities.org/doc/london-borough-council/redbridge","7BCDC","Corporate & Democratic Core","7CCORPMGT","Corporate Management","REV","Revenue","R8505","Transformation Holding Account","01-EMPLOYEES","Employees","01A","Direct employee expenses","4","Agency Staff - Pay","60320642","201706",24/08/2016 00:00:00,3154.45,"31230","Employment and Recruitment Agencies","REDACTED DATA","ALLEN LANE LIMITED","5115229","http://opencorporates.com/companies/gb/5115229","835970985"
"London Borough of Redbridge","http://opendatacommunities.org/doc/london-borough-council/redbridge","7BCDC","Corporate & Democratic Core","7CCORPMGT","Corporate Management","REV","Revenue","R8505","Transformation Holding Account","01-EMPLOYEES","Employees","01A","Direct employee expenses","4","Agency Staff - Pay","60321053","201706",13/09/2016 00:00:00,3154.45,"31230","Employment and Recruitment Agencies","REDACTED DATA","ALLEN LANE LIMITED","5115229","http://opencorporates.com/companies/gb/5115229","835970985"
"London Borough of Redbridge","http://opendatacommunities.org/doc/london-borough-council/redbridge","7BCDC","Corporate & Democratic Core","7CCORPMGT","Corporate Management","REV","Revenue","R8505","Transformation Holding Account","01-EMPLOYEES","Employees","01A","Direct employee expenses","4","Agency Staff - Pay","60319670","201706",23/08/2016 00:00:00,3154.45,"31230","Employment and Recruitment Agencies","REDACTED DATA","ALLEN LANE LIMITED","5115229","http://opencorporates.com/companies/gb/5115229","835970985"
"London Borough of Redbridge","http://opendatacommunities.org/doc/london-borough-council/redbridge","6BADULTSOCIA","Adult Social Care","6CADLEARNDIS","Adults Under 65 with Learning Disabilities","REV","Revenue","R4188","LD - Residential Care","05-THIRD","Third Party Payments","05F","Voluntary associations","6802","Residential Homes","90773973","201706",12/09/2016 00:00:00,4103.28,"64710","Residential Care Homes","REDACTED DATA","CARELINK LIMITED (S SHARMA)","",,""
"London Borough of Redbridge","http://opendatacommunities.org/doc/london-borough-council/redbridge","6BADULTSOCIA","Adult Social Care","6CADLEARNDIS","Adults Under 65 with Learning Disabilities","REV","Revenue","R4188","LD - Residential Care","09-INCOME","Income","09C","Customer and Client Receipts","8555","Accommodation Charges","90773973","201706",12/09/2016 00:00:00,-321.8,"64710","Residential Care Homes","REDACTED DATA","CARELINK LIMITED (S SHARMA)","",,""
"London Borough of Redbridge","http://opendatacommunities.org/doc/london-borough-council/redbridge","3BINDSCHFUND","Individual School Funds","3CDELPRIMARY","Delegated Individual Primary School Budgets","REV","Revenue","S2739","Winston : PERSONNEL","01-EMPLOYEES","Employees","01A","Direct employee expenses","4","Agency Staff - Pay","60321040","201706",26/07/2016 00:00:00,3030,"31230","Employment and Recruitment Agencies","REDACTED DATA","VISION TEACHING LTD","6102463","http://opencorporates.com/companies/gb/6102463","906146439"
"London Borough of Redbridge","http://opendatacommunities.org/doc/london-borough-council/redbridge","3BINDSCHFUND","Individual School Funds","3CDELPRIMARY","Delegated Individual Primary School Budgets","REV","Revenue","S2739","Winston : PERSONNEL","01-EMPLOYEES","Employees","01A","Direct employee expenses","9","Agency Staff Sickness Cover","60321040","201706",26/07/2016 00:00:00,120,"31230","Employment and Recruitment Agencies","REDACTED DATA","VISION TEACHING LTD","6102463","http://opencorporates.com/companies/gb/6102463","906146439"
"London Borough of Redbridge","http://opendatacommunities.org/doc/london-borough-council/redbridge","6BADULTSOCIA","Adult Social Care","6CADLEARNDIS","Adults Under 65 with Learning Disabilities","REV","Revenue","R4185","LD - Supported Living","06-TRANSFER","Transfer Payments","06B","Social Services Clients","7066","Supportive Lodgings (Transfer Payments)","90774171","201706",12/09/2016 00:00:00,3840,"17020","Charities and Voluntary Organisations","REDACTED DATA","MENCAP","550457","http://opencorporates.com/companies/gb/550457","233010136"
"London Borough of Redbridge","http://opendatacommunities.org/doc/london-borough-council/redbridge","6BADULTSOCIA","Adult Social Care","6CADLEARNDIS","Adults Under 65 with Learning Disabilities","REV","Revenue","R4185","LD - Supported Living","09-INCOME","Income","09C","Customer and Client Receipts","8553","Care Package Charges","90774171","201706",12/09/2016 00:00:00,-69.2,"17020","Charities and Voluntary Organisations","REDACTED DATA","MENCAP","550457","http://opencorporates.com/companies/gb/550457","233010136"
"London Borough of Redbridge","http://opendatacommunities.org/doc/london-borough-council/redbridge","6BADULTSOCIA","Adult Social Care","6COLDINCMENT","Older People (65 or over) incl. Older Mentally Ill","REV","Revenue","R4211","Older People Direct Payments","06-TRANSFER","Transfer Payments","06B","Social Services Clients","7053","Direct Payments","3443578","201706",19/09/2016 00:00:00,3769.6,"90005","Home Care Services DP","REDACTED DATA","REDACTED DATA","",,""
"London Borough of Redbridge","http://opendatacommunities.org/doc/london-borough-council/redbridge","6BADULTSOCIA","Adult Social Care","6COLDINCMENT","Older People (65 or over) incl. Older Mentally Ill","REV","Revenue","R4385","OP Nursing","05-THIRD","Third Party Payments","05H","Private contractors","6909","Nursing Homes","90774122","201706",12/09/2016 00:00:00,4816.71,"53350","Nursing Homes","REDACTED DATA","JEWISH CARE (MERIT  HOUSE)","2447900","http://opencorporates.com/companies/gb/2447900","587033133"
"London Borough of Redbridge","http://opendatacommunities.org/doc/london-borough-council/redbridge","6BADULTSOCIA","Adult Social Care","6COLDINCMENT","Older People (65 or over) incl. Older Mentally Ill","REV","Revenue","R4385","OP Nursing","09-INCOME","Income","09C","Customer and Client Receipts","8557","Nursing Home Charges","90774122","201706",12/09/2016 00:00:00,-1051.11,"53350","Nursing Homes","REDACTED DATA","JEWISH CARE (MERIT  HOUSE)","2447900","http://opencorporates.com/companies/gb/2447900","587033133"
"London Borough of Redbridge","http://opendatacommunities.org/doc/london-borough-council/redbridge","3BNONSCHFUND","Non-School Funding","6CCHILLOOKED","Children Looked After","REV","Revenue","R2238","Looked After Children Placements LA","05-THIRD","Third Party Payments","05H","Private contractors","6907","Private Homes","60319232","201706",01/09/2016 00:00:00,3764.29,"64710","Residential Care Homes","REDACTED DATA","RESOLVE CARE LTD","7905820","http://opencorporates.com/companies/gb/7905820",""
"London Borough of Redbridge","http://opendatacommunities.org/doc/london-borough-council/redbridge","1BOTHEROPI&E","Other Operating Income & Expenditure","1CTRADSURDEF","Trading Account Surpluses & Deficits","REV","Revenue","R9152","Financial Services","01-EMPLOYEES","Employees","01A","Direct employee expenses","4","Agency Staff - Pay","3445520","201706",21/09/2016 00:00:00,494.87,"31230","Employment and Recruitment Agencies","REDACTED DATA","ADECCO UK LIMITED","593232","http://opencorporates.com/companies/gb/593232","232347975"
"London Borough of Redbridge","http://opendatacommunities.org/doc/london-borough-council/redbridge","1BOTHEROPI&E","Other Operating Income & Expenditure","1CTRADSURDEF","Trading Account Surpluses & Deficits","REV","Revenue","R9152","Financial Services","01-EMPLOYEES","Employees","01A","Direct employee expenses","4","Agency Staff - Pay","3445520","201706",21/09/2016 00:00:00,1743.16,"31230","Employment and Recruitment Agencies","REDACTED DATA","ADECCO UK LIMITED","593232","http://opencorporates.com/companies/gb/593232","232347975"
"London Borough of Redbridge","http://opendatacommunities.org/doc/london-borough-council/redbridge","1BOTHEROPI&E","Other Operating Income & Expenditure","1CTRADSURDEF","Trading Account Surpluses & Deficits","REV","Revenue","R9152","Financial Services","01-EMPLOYEES","Employees","01A","Direct employee expenses","4","Agency Staff - Pay","3445520","201706",21/09/2016 00:00:00,149.18,"31230","Employment and Recruitment Agencies","REDACTED DATA","ADECCO UK LIMITED","593232","http://opencorporates.com/companies/gb/593232","232347975"
"London Borough of Redbridge","http://opendatacommunities.org/doc/london-borough-council/redbridge","1BOTHEROPI&E","Other Operating Income & Expenditure","1CTRADSURDEF","Trading Account Surpluses & Deficits","REV","Revenue","R9152","Financial Services","01-EMPLOYEES","Employees","01A","Direct employee expenses","4","Agency Staff - Pay","3445520","201706",21/09/2016 00:00:00,733.32,"31230","Employment and Recruitment Agencies","REDACTED DATA","ADECCO UK LIMITED","593232","http://opencorporates.com/companies/gb/593232","232347975"
"London Borough of Redbridge","http://opendatacommunities.org/doc/london-borough-council/redbridge","1BOTHEROPI&E","Other Operating Income & Expenditure","1CTRADSURDEF","Trading Account Surpluses & Deficits","REV","Revenue","R9152","Financial Services","01-EMPLOYEES","Employees","01A","Direct employee expenses","4","Agency Staff - Pay","3445520","201706",21/09/2016 00:00:00,1024.5,"31230","Employment and Recruitment Agencies","REDACTED DATA","ADECCO UK LIMITED","593232","http://opencorporates.com/companies/gb/593232","232347975"
"London Borough of Redbridge","http://opendatacommunities.org/doc/london-borough-council/redbridge","1BOTHEROPI&E","Other Operating Income & Expenditure","1CTRADSURDEF","Trading Account Surpluses & Deficits","REV","Revenue","R9154","Audit","01-EMPLOYEES","Employees","01A","Direct employee expenses","4","Agency Staff - Pay","3445520","201706",21/09/2016 00:00:00,929.18,"31230","Employment and Recruitment Agencies","REDACTED DATA","ADECCO UK LIMITED","593232","http://opencorporates.com/companies/gb/593232","232347975"
"London Borough of Redbridge","http://opendatacommunities.org/doc/london-borough-council/redbridge","1BOTHEROPI&E","Other Operating Income & Expenditure","1CTRADSURDEF","Trading Account Surpluses & Deficits","REV","Revenue","R9252","IT Services","01-EMPLOYEES","Employees","01A","Direct employee expenses","4","Agency Staff - Pay","3445520","201706",21/09/2016 00:00:00,1102.88,"31230","Employment and Recruitment Agencies","REDACTED DATA","ADECCO UK LIMITED","593232","http://opencorporates.com/companies/gb/593232","232347975"
"London Borough of Redbridge","http://opendatacommunities.org/doc/london-borough-council/redbridge","1BOTHEROPI&E","Other Operating Income & Expenditure","1CTRADSURDEF","Trading Account Surpluses & Deficits","REV","Revenue","R9252","IT Services","01-EMPLOYEES","Employees","01A","Direct employee expenses","4","Agency Staff - Pay","3445520","201706",21/09/2016 00:00:00,2592.55,"31230","Employment and Recruitment Agencies","REDACTED DATA","ADECCO UK LIMITED","593232","http://opencorporates.com/companies/gb/593232","232347975"
"London Borough of Redbridge","http://opendatacommunities.org/doc/london-borough-council/redbridge","1BOTHEROPI&E","Other Operating Income & Expenditure","1CTRADSURDEF","Trading Account Surpluses & Deficits","REV","Revenue","R9252","IT Services","01-EMPLOYEES","Employees","01A","Direct employee expenses","4","Agency Staff - Pay","3445520","201706",21/09/2016 00:00:00,1249.93,"31230","Employment and Recruitment Agencies","REDACTED DATA","ADECCO UK LIMITED","593232","http://opencorporates.com/companies/gb/593232","232347975"
"London Borough of Redbridge","http://opendatacommunities.org/doc/london-borough-council/redbridge","1BOTHEROPI&E","Other Operating Income & Expenditure","1CTRADSURDEF","Trading Account Surpluses & Deficits","REV","Revenue","R9252","IT Services","01-EMPLOYEES","Employees","01A","Direct employee expenses","4","Agency Staff - Pay","3445520","201706",21/09/2016 00:00:00,802.88,"31230","Employment and Recruitment Agencies","REDACTED DATA","ADECCO UK LIMITED","593232","http://opencorporates.com/companies/gb/593232","232347975"
"London Borough of Redbridge","http://opendatacommunities.org/doc/london-borough-council/redbridge","1BOTHEROPI&E","Other Operating Income & Expenditure","1CTRADSURDEF","Trading Account Surpluses & Deficits","REV","Revenue","R9252","IT Services","01-EMPLOYEES","Employees","01A","Direct employee expenses","4","Agency Staff - Pay","3445520","201706",21/09/2016 00:00:00,2023.9,"31230","Employment and Recruitment Agencies","REDACTED DATA","ADECCO UK LIMITED","593232","http://opencorporates.com/companies/gb/593232","232347975"
"London Borough of Redbridge","http://opendatacommunities.org/doc/london-borough-council/redbridge","3BNONSCHFUND","Non-School Funding","6CCHILLOOKED","Children Looked After","REV","Revenue","R2238","Looked After Children Placements LA","05-THIRD","Third Party Payments","05H","Private contractors","6964","Mother and Baby Units (Children Services)","60319231","201706",01/09/2016 00:00:00,3764.29,"64710","Residential Care Homes","REDACTED DATA","RESOLVE CARE LTD","7905820","http://opencorporates.com/companies/gb/7905820",""
"London Borough of Redbridge","http://opendatacommunities.org/doc/london-borough-council/redbridge","6BADULTSOCIA","Adult Social Care","6CADPHYSDIS","Adults Under 65 with Phys Disab or Sensory Impair","REV","Revenue","R4214","PD Direct Payments","06-TRANSFER","Transfer Payments","06B","Social Services Clients","7053","Direct Payments","3443496","201706",19/09/2016 00:00:00,3920,"90005","Home Care Services DP","REDACTED DATA","REDACTED DATA","",,""
"London Borough of Redbridge","http://opendatacommunities.org/doc/london-borough-council/redbridge","6BADULTSOCIA","Adult Social Care","6CADPHYSDIS","Adults Under 65 with Phys Disab or Sensory Impair","REV","Revenue","R4214","PD Direct Payments","09-INCOME","Income","09C","Customer and Client Receipts","8545","Direct Payments Income","3443496","201706",19/09/2016 00:00:00,-156.12,"90005","Home Care Services DP","REDACTED DATA","REDACTED DATA","",,""
"London Borough of Redbridge","http://opendatacommunities.org/doc/london-borough-council/redbridge","1BOTHEROPI&E","Other Operating Income & Expenditure","1CTRADSURDEF","Trading Account Surpluses & Deficits","REV","Revenue","R9051","Strategic Procurement","01-EMPLOYEES","Employees","01B","Indirect employee expenses","2403","External Training","60320060","201706",12/09/2016 00:00:00,3125,"79980","Training Services","REDACTED DATA","THE CHARTERED INSTITUTE OF PROCUREMENT & SUPPLY","1017938","http://opencorporates.com/companies/gb/1017938","342648942"
